{"text_format":"1","workbook":"xlsx","n_sheets":2,"sheets":["data","قوائم الفصول"],"not_rendered":{"charts":0,"images":1,"macros":1,"external_links":0,"defined_names":12,"comments":0,"pivot_tables":0},"unopened":[],"bounds":{"document_bytes":16777216,"sheet_cells":100000,"rows_first":2000,"rows_last":500,"rows_between":2000,"halvings":0,"cell_chars":16384,"cell_head_chars":4096},"cells_cut":0,"cells_raw":0,"read":"whole","date_system":"1900"}

{"sheet":"data","index":0,"n_rows":901,"n_cols":16384,"rows_kept":901,"cut":false,"hidden":false,"merged":[[1,2,1,3],[1,5,1,6]]}
[null,null,null,null,null,null,null,null,"2017-12-31",null,null,null,null,null,null,null,null,null,null,null,null,null,null,null,null,null,null,null,null,null,null,null,null,null,null,null,null,null,null,null,null,null,null,null,null,null,null,null,null,null,null,null,null,null,null,null,null,null,null,null,null,null,null,null,null,null,null,null,null,null,null,null,null,null,null,null,null,null,null,null,null,null,null,null,null,null,null,null,null,null,null,null,null,null,null,null,null,null,null,null,null,null,null,null,null,null,null,null,null,null,null,null,null,null,null,null,null,null,null,null,null,null,null,null,null,null,null,null,null,null,null,null,null,null,null,null,null,null,null,null,null,null,null,null,null,null,null,null,null,null,null,null,null,null,null,null,null,null,null,null,null,null,null,null,null,null,null,null,null,null,null,null,null,null,null,null,null,null,null,null,null,null,null,null,null,null,null,null,null,null,null,null,null,null,null,null,null,null,null,null,null,null,null,null,null,null,null,null,null,null,null,null,null,null,null,null,null,null,null,null,null,null,null,null,null,null,null,null,null,null,null,null,null,null,null,null,null,null,null,null,null,null,null,null,null,null,null,null,null,null,null,null,null,null,null,null,null,null,null,null,null,null,null,null,null,null,null,null,null,null,null,null,null,null,null,null,null,null,null,null,null,null,null,null,null,null,null,null,null,null,null,null,null,null,null,null,null,null,null,null,null,null,null,null,null,null,null,null,null,null,null,null,null,null,null,null,null,null,null,null,null,null,null,null,null,null,null,null,null,null,null,null,null,null,null,null,null,null,null,null,null,null,null,null,null,null,null,null,null,null,null,null,null,null,null,null,null,null,null,null,null,null,null,null,null,null,null,null,null,null,null,null,null,null,null,null,null,null,null,null,null,null,null,null,null,null,null,null,null,null,null,null,null,null,null,null,null,null,null,null,null,null,null,null,null,null,null,null,null,null,null,null,null,null,null,null,null,null,null,null,null,null,null,null,null,null,null,null,null,null,null,null,null,null,null,null,null,null,null,null,null,null,null,null,null,null,null,null,null,null,null,null,null,null,null,null,null,null,null,null,null,null,null,null,null,null,null,null,null,null,null,null,null,null,null,null,null,null,null,null,null,null,null,null,null,null,null,null,null,null,null,null,null,null,null,null,null,null,null,null,null,null,null,null,null,null,null,null,null,null,null,null,null,null,null,null,null,null,null,null,null,null,null,null,null,null,null,null,null,null,null,null,null,null,null,null,null,null,null,null,null,null,null,null,null,null,null,null,null,null,null,null,null,null,null,null,null,null,null,null,null,null,null,null,null,null,null,null,null,null,null,null,null,null,null,null,null,null,null,null,null,null,null,null,null,null,null,null,null,null,null,null,null,null,null,null,null,null,null,null,null,null,null,null,null,null,null,null,null,null,null,null,null,null,null,null,null,null,null,null,null,null,null,null,null,null,null,null,null,null,null,null,null,null,null,null,null,null,null,null,null,null,null,null,null,null,null,null,null,null,null,null,null,null,null,null,null,null,null,null,null,null,null,null,null,null,null,null,null,null,null,null,null,null,null,null,null,null,null,null,null,null,null,null,null,null,null,null,null,null,null,null,null,null,null,null,null,null,null,null,null,null,null,null,null,null,null,null,null,null,null,null,null,null,null,null,null,null,null,null,null,null,null,null,null,null,null,null,null,null,null,null,null,null,null,null,null,null,null,null,null,null,null,null,null,null,null,null,null,null,null,null,null,null,null,null,null,null,null,null,null,null,null,null,null,null,null,null,null,null,null,null,null,null,null,null,null,null,null,null,null,null,null,null,null,null,null,null,null,null,null,null,null,null,null,null,null,null,null,null,null,null,null,null,null,null,null,null,null,null,null,null,null,null,null,null,null,null,null,null,null,null,null,null,null,null,null,null,null,null,null,null,null,null,null,null,null,null,null,null,null,null,null,null,null,null,null,null,null,null,null,null,null,null,null,null,null,null,null,null,null,null,null,null,null,null,null,null,null,null,null,null,null,null,null,null,null,null,null,null,null,null,null,null,null,null,null,null,null,null,null,null,null,null,null,null,null,null,null,null,null,null,null,null,null,null,null,null,null,null,null,null,null,null,null,null,null,null,null,null,null,null,null,null,null,null,null,null,null,null,null,null,null,null,null,null,null,null,null,null,null,null,null,null,null,null,null,null,null,null,null,null,null,null,null,null,null,null,null,null,null,null,null,null,null,null,null,null,null,null,null,null,null,null,null,null,null,null,null,null,null,null,null,null,null,null,null,null,null,null,null,null,null,null,null,null,null,null,null,null,null,null,null,null,null,null,null,null,null,null,null,null,null,null,null,null,null,null,null,null,null,null,null,null,null,null,null,null,null,null,null,null,null,null,null,null,null,null,null,null,null,null,null,null,null,null,null,null,null,null,null,null,null,null,null,null,null,null,null,null,null,null,null,null,null,null,null,null,null,null,null,null,null,null,null,null,null,null,null,null,null,null,null,null,null,null,null,null,null,null,null,null,null,null,null,null,null,null,null,null,null,null,null,null,null,null,null,null,null,null,null,null,null,null,null,null,null,null,null,null,null,null,null,null,null,null,null,null,null,null,null,null,null,null,null,null,null,null,null,null,null,null,null,null,null,null,null,null,null,null,null,null,null,null,null,null,null,null,null,null,null,null,null,null,null,null,null,null,null,null,null,null,null,null,null,null,null,null,null,null,null,null,null,null,null,null,null,null,null,null,null,null,null,null,null,null,null,null,null,null,null,null,null,null,null,null,null,null,null,null,null,null,null,null,null,null,null,null,null,null,null,null,null,null,null,null,null,null,null,null,null,null,null,null,null,null,null,null,null,null,null,null,null,null,null,null,null,null,null,null,null,null,null,null,null,null,null,null,null,null,null,null,null,null,null,null,null,null,null,null,null,null,null,null,null,null,null,null,null,null,null,null,null,null,null,null,null,null,null,null,null,null,null,null,null,null,null,null,null,null,null,null,null,null,null,null,null,null,null,null,null,null,null,null,null,null,null,null,null,null,null,null,null,null,null,null,null,null,null,null,null,null,null,null,null,null,null,null,null,null,null,null,null,null,null,null,null,null,null,null,null,null,null,null,null,null,null,null,null,null,null,null,null,null,null,null,null,null,null,null,null,null,null,null,null,null,null,null,null,null,null,null,null,null,null,null,null,null,null,null,null,null,null,null,null,null,null,null,null,null,null,null,null,null,null,null,null,null,null,null,null,null,null,null,null,null,null,null,null,null,null,null,null,null,null,null,null,null,null,null,null,null,null,null,null,null,null,null,null,null,null,null,null,null,null,null,null,null,null,null,null,null,null,null,null,null,null,null,null,null,null,null,null,null,null,null,null,null,null,null,null,null,null,null,null,null,null,null,null,null,null,null,null,null,null,null,null,null,null,null,null,null,null,null,null,null,null,null,null,null,null,null,null,null,null,null,null,null,null,null,null,null,null,null,null,null,null,null,null,null,null,null,null,null,null,null,null,null,null,null,null,null,null,null,null,null,null,null,null,null,null,null,null,null,null,null,null,null,null,null,null,null,null,null,null,null,null,null,null,null,null,null,null,null,null,null,null,null,null,null,null,null,null,null,null,null,null,null,null,null,null,null,null,null,null,null,null,null,null,null,null,null,null,null,null,null,null,null,null,null,null,null,null,null,null,null,null,null,null,null,null,null,null,null,null,null,null,null,null,null,null,null,null,null,null,null,null,null,null,null,null,null,null,null,null,null,null,null,null,null,null,null,null,null,null,null,null,null,null,null,null,null,null,null,null,null,null,null,null,null,null,null,null,null,null,null,null,null,null,null,null,null,null,null,null,null,null,null,null,null,null,null,null,null,null,null,null,null,null,null,null,null,null,null,null,null,null,null,null,null,null,null,null,null,null,null,null,null,null,null,null,null,null,null,null,null,null,null,null,null,null,null,null,null,null,null,null,null,null,null,null,null,null,null,null,null,null,null,null,null,null,null,null,null,null,null,null,null,null,null,null,null,null,null,null,null,null,null,null,null,null,null,null,null,null,null,null,null,null,null,null,null,null,null,null,null,null,null,null,null,null,null,null,null,null,null,null,null,null,null,null,null,null,null,null,null,null,null,null,null,null,null,null,null,null,null,null,null,null,null,null,null,null,null,null,null,null,null,null,null,null,null,null,null,null,null,null,null,null,null,null,null,null,null,null,null,null,null,null,null,null,null,null,null,null,null,null,null,null,null,null,null,null,null,null,null,null,null,null,null,null,null,null,null,null,null,null,null,null,null,null,null,null,null,null,null,null,null,null,null,null,null,null,null,null,null,null,null,null,null,null,null,null,null,null,null,null,null,null,null,null,null,null,null,null,null,null,null,null,null,null,null,null,null,null,null,null,null,null,null,null,null,null,null,null,null,null,null,null,null,null,null,null,null,null,null,null,null,null,null,null,null,null,null,null,null,null,null,null,null,null,null,null,null,null,null,null,null,null,null,null,null,null,null,null,null,null,null,null,null,null,null,null,null,null,null,null,null,null,null,null,null,null,null,null,null,null,null,null,null,null,null,null,null,null,null,null,null,null,null,null,null,null,null,null,null,null,null,null,null,null,null,null,null,null,null,null,null,null,null,null,null,null,null,null,null,null,null,null,null,null,null,null,null,null,null,null,null,null,null,null,null,null,null,null,null,null,null,null,null,null,null,null,null,null,null,null,null,null,null,null,null,null,null,null,null,null,null,null,null,null,null,null,null,null,null,null,null,null,null,null,null,null,null,null,null,null,null,null,null,null,null,null,null,null,null,null,null,null,null,null,null,null,null,null,null,null,null,null,null,null,null,null,null,null,null,null,null,null,null,null,null,null,null,null,null,null,null,null,null,null,null,null,null,null,null,null,null,null,null,null,null,null,null,null,null,null,null,null,null,null,null,null,null,null,null,null,null,null,null,null,null,null,null,null,null,null,null,null,null,null,null,null,null,null,null,null,null,null,null,null,null,null,null,null,null,null,null,null,null,null,null,null,null,null,null,null,null,null,null,null,null,null,null,null,null,null,null,null,null,null,null,null,null,null,null,null,null,null,null,null,null,null,null,null,null,null,null,null,null,null,null,null,null,null,null,null,null,null,null,null,null,null,null,null,null,null,null,null,null,null,null,null,null,null,null,null,null,null,null,null,null,null,null,null,null,null,null,null,null,null,null,null,null,null,null,null,null,null,null,null,null,null,null,null,null,null,null,null,null,null,null,null,null,null,null,null,null,null,null,null,null,null,null,null,null,null,null,null,null,null,null,null,null,null,null,null,null,null,null,null,null,null,null,null,null,null,null,null,null,null,null,null,null,null,null,null,null,null,null,null,null,null,null,null,null,null,null,null,null,null,null,null,null,null,null,null,null,null,null,null,null,null,null,null,null,null,null,null,null,null,null,null,null,null,null,null,null,null,null,null,null,null,null,null,null,null,null,null,null,null,null,null,null,null,null,null,null,null,null,null,null,null,null,null,null,null,null,null,null,null,null,null,null,null,null,null,null,null,null,null,null,null,null,null,null,null,null,null,null,null,null,null,null,null,null,null,null,null,null,null,null,null,null,null,null,null,null,null,null,null,null,null,null,null,null,null,null,null,null,null,null,null,null,null,null,null,null,null,null,null,null,null,null,null,null,null,null,null,null,null,null,null,null,null,null,null,null,null,null,null,null,null,null,null,null,null,null,null,null,null,null,null,null,null,null,null,null,null,null,null,null,null,null,null,null,null,null,null,null,null,null,null,null,null,null,null,null,null,null,null,null,null,null,null,null,null,null,null,null,null,null,null,null,null,null,null,null,null,null,null,null,null,null,null,null,null,null,null,null,null,null,null,null,null,null,null,null,null,null,null,null,null,null,null,null,null,null,null,null,null,null,null,null,null,null,null,null,null,null,null,null,null,null,null,null,null,null,null,null,null,null,null,null,null,null,null,null,null,null,null,null,null,null,null,null,null,null,null,null,null,null,null,null,null,null,null,null,null,null,null,null,null,null,null,null,null,null,null,null,null,null,null,null,null,null,null,null,null,null,null,null,null,null,null,null,null,null,null,null,null,null,null,null,null,null,null,null,null,null,null,null,null,null,null,null,null,null,null,null,null,null,null,null,null,null,null,null,null,null,null,null,null,null,null,null,null,null,null,null,null,null,null,null,null,null,null,null,null,null,null,null,null,null,null,null,null,null,null,null,null,null,null,null,null,null,null,null,null,null,null,null,null,null,null,null,null,null,null,null,null,null,null,null,null,null,null,null,null,null,null,null,null,null,null,null,null,null,null,null,null,null,null,null,null,null,null,null,null,null,null,null,null,null,null,null,null,null,null,null,null,null,null,null,null,null,null,null,null,null,null,null,null,null,null,null,null,null,null,null,null,null,null,null,null,null,null,null,null,null,null,null,null,null,null,null,null,null,null,null,null,null,null,null,null,null,null,null,null,null,null,null,null,null,null,null,null,null,null,null,null,null,null,null,null,null,null,null,null,null,null,null,null,null,null,null,null,null,null,null,null,null,null,null,null,null,null,null,null,null,null,null,null,null,null,null,null,null,null,null,null,null,null,null,null,null,null,null,null,null,null,null,null,null,null,null,null,null,null,null,null,null,null,null,null,null,null,null,null,null,null,null,null,null,null,null,null,null,null,null,null,null,null,null,null,null,null,null,null,null,null,null,null,null,null,null,null,null,null,null,null,null,null,null,null,null,null,null,null,null,null,null,null,null,null,null,null,null,null,null,null,null,null,null,null,null,null,null,null,null,null,null,null,null,null,null,null,null,null,null,null,null,null,null,null,null,null,null,null,null,null,null,null,null,null,null,null,null,null,null,null,null,null,null,null,null,null,null,null,null,null,null,null,null,null,null,null,null,null,null,null,null,null,null,null,null,null,null,null,null,null,null,null,null,null,null,null,null,null,null,null,null,null,null,null,null,null,null,null,null,null,null,null,null,null,null,null,null,null,null,null,null,null,null,null,null,null,null,null,null,null,null,null,null,null,null,null,null,null,null,null,null,null,null,null,null,null,null,null,null,null,null,null,null,null,null,null,null,null,null,null,null,null,null,null,null,null,null,null,null,null,null,null,null,null,null,null,null,null,null,null,null,null,null,null,null,null,null,null,null,null,null,null,null,null,null,null,null,null,null,null,null,null,null,null,null,null,null,null,null,null,null,null,null,null,null,null,null,null,null,null,null,null,null,null,null,null,null,null,null,null,null,null,null,null,null,null,null,null,null,null,null,null,null,null,null,null,null,null,null,null,null,null,null,null,null,null,null,null,null,null,null,null,null,null,null,null,null,null,null,null,null,null,null,null,null,null,null,null,null,null,null,null,null,null,null,null,null,null,null,null,null,null,null,null,null,null,null,null,null,null,null,null,null,null,null,null,null,null,null,null,null,null,null,null,null,null,null,null,null,null,null,null,null,null,null,null,null,null,null,null,null,null,null,null,null,null,null,null,null,null,null,null,null,null,null,null,null,null,null,null,null,null,null,null,null,null,null,null,null,null,null,null,null,null,null,null,null,null,null,null,null,null,null,null,null,null,null,null,null,null,null,null,null,null,null,null,null,null,null,null,null,null,null,null,null,null,null,null,null,null,null,null,null,null,null,null,null,null,null,null,null,null,null,null,null,null,null,null,null,null,null,null,null,null,null,null,null,null,null,null,null,null,null,null,null,null,null,null,null,null,null,null,null,null,null,null,null,null,null,null,null,null,null,null,null,null,null,null,null,null,null,null,null,null,null,null,null,null,null,null,null,null,null,null,null,null,null,null,null,null,null,null,null,null,null,null,null,null,null,null,null,null,null,null,null,null,null,null,null,null,null,null,null,null,null,null,null,null,null,null,null,null,null,null,null,null,null,null,null,null,null,null,null,null,null,null,null,null,null,null,null,null,null,null,null,null,null,null,null,null,null,null,null,null,null,null,null,null,null,null,null,null,null,null,null,null,null,null,null,null,null,null,null,null,null,null,null,null,null,null,null,null,null,null,null,null,null,null,null,null,null,null,null,null,null,null,null,null,null,null,null,null,null,null,null,null,null,null,null,null,null,null,null,null,null,null,null,null,null,null,null,null,null,null,null,null,null,null,null,null,null,null,null,null,null,null,null,null,null,null,null,null,null,null,null,null,null,null,null,null,null,null,null,null,null,null,null,null,null,null,null,null,null,null,null,null,null,null,null,null,null,null,null,null,null,null,null,null,null,null,null,null,null,null,null,null,null,null,null,null,null,null,null,null,null,null,null,null,null,null,null,null,null,null,null,null,null,null,null,null,null,null,null,null,null,null,null,null,null,null,null,null,null,null,null,null,null,null,null,null,null,null,null,null,null,null,null,null,null,null,null,null,null,null,null,null,null,null,null,null,null,null,null,null,null,null,null,null,null,null,null,null,null,null,null,null,null,null,null,null,null,null,null,null,null,null,null,null,null,null,null,null,null,null,null,null,null,null,null,null,null,null,null,null,null,null,null,null,null,null,null,null,null,null,null,null,null,null,null,null,null,null,null,null,null,null,null,null,null,null,null,null,null,null,null,null,null,null,null,null,null,null,null,null,null,null,null,null,null,null,null,null,null,null,null,null,null,null,null,null,null,null,null,null,null,null,null,null,null,null,null,null,null,null,null,null,null,null,null,null,null,null,null,null,null,null,null,null,null,null,null,null,null,null,null,null,null,null,null,null,null,null,null,null,null,null,null,null,null,null,null,null,null,null,null,null,null,null,null,null,null,null,null,null,null,null,null,null,null,null,null,null,null,null,null,null,null,null,null,null,null,null,null,null,null,null,null,null,null,null,null,null,null,null,null,null,null,null,null,null,null,null,null,null,null,null,null,null,null,null,null,null,null,null,null,null,null,null,null,null,null,null,null,null,null,null,null,null,null,null,null,null,null,null,null,null,null,null,null,null,null,null,null,null,null,null,null,null,null,null,null,null,null,null,null,null,null,null,null,null,null,null,null,null,null,null,null,null,null,null,null,null,null,null,null,null,null,null,null,null,null,null,null,null,null,null,null,null,null,null,null,null,null,null,null,null,null,null,null,null,null,null,null,null,null,null,null,null,null,null,null,null,null,null,null,null,null,null,null,null,null,null,null,null,null,null,null,null,null,null,null,null,null,null,null,null,null,null,null,null,null,null,null,null,null,null,null,null,null,null,null,null,null,null,null,null,null,null,null,null,null,null,null,null,null,null,null,null,null,null,null,null,null,null,null,null,null,null,null,null,null,null,null,null,null,null,null,null,null,null,null,null,null,null,null,null,null,null,null,null,null,null,null,null,null,null,null,null,null,null,null,null,null,null,null,null,null,null,null,null,null,null,null,null,null,null,null,null,null,null,null,null,null,null,null,null,null,null,null,null,null,null,null,null,null,null,null,null,null,null,null,null,null,null,null,null,null,null,null,null,null,null,null,null,null,null,null,null,null,null,null,null,null,null,null,null,null,null,null,null,null,null,null,null,null,null,null,null,null,null,null,null,null,null,null,null,null,null,null,null,null,null,null,null,null,null,null,null,null,null,null,null,null,null,null,null,null,null,null,null,null,null,null,null,null,null,null,null,null,null,null,null,null,null,null,null,null,null,null,null,null,null,null,null,null,null,null,null,null,null,null,null,null,null,null,null,null,null,null,null,null,null,null,null,null,null,null,null,null,null,null,null,null,null,null,null,null,null,null,null,null,null,null,null,null,null,null,null,null,null,null,null,null,null,null,null,null,null,null,null,null,null,null,null,null,null,null,null,null,null,null,null,null,null,null,null,null,null,null,null,null,null,null,null,null,null,null,null,null,null,null,null,null,null,null,null,null,null,null,null,null,null,null,null,null,null,null,null,null,null,null,null,null,null,null,null,null,null,null,null,null,null,null,null,null,null,null,null,null,null,null,null,null,null,null,null,null,null,null,null,null,null,null,null,null,null,null,null,null,null,null,null,null,null,null,null,null,null,null,null,null,null,null,null,null,null,null,null,null,null,null,null,null,null,null,null,null,null,null,null,null,null,null,null,null,null,null,null,null,null,null,null,null,null,null,null,null,null,null,null,null,null,null,null,null,null,null,null,null,null,null,null,null,null,null,null,null,null,null,null,null,null,null,null,null,null,null,null,null,null,null,null,null,null,null,null,null,null,null,null,null,null,null,null,null,null,null,null,null,null,null,null,null,null,null,null,null,null,null,null,null,null,null,null,null,null,null,null,null,null,null,null,null,null,null,null,null,null,null,null,null,null,null,null,null,null,null,null,null,null,null,null,null,null,null,null,null,null,null,null,null,null,null,null,null,null,null,null,null,null,null,null,null,null,null,null,null,null,null,null,null,null,null,null,null,null,null,null,null,null,null,null,null,null,null,null,null,null,null,null,null,null,null,null,null,null,null,null,null,null,null,null,null,null,null,null,null,null,null,null,null,null,null,null,null,null,null,null,null,null,null,null,null,null,null,null,null,null,null,null,null,null,null,null,null,null,null,null,null,null,null,null,null,null,null,null,null,null,null,null,null,null,null,null,null,null,null,null,null,null,null,null,null,null,null,null,null,null,null,null,null,null,null,null,null,null,null,null,null,null,null,null,null,null,null,null,null,null,null,null,null,null,null,null,null,null,null,null,null,null,null,null,null,null,null,null,null,null,null,null,null,null,null,null,null,null,null,null,null,null,null,null,null,null,null,null,null,null,null,null,null,null,null,null,null,null,null,null,null,null,null,null,null,null,null,null,null,null,null,null,null,null,null,null,null,null,null,null,null,null,null,null,null,null,null,null,null,null,null,null,null,null,null,null,null,null,null,null,null,null,null,null,null,null,null,null,null,null,null,null,null,null,null,null,null,null,null,null,null,null,null,null,null,null,null,null,null,null,null,null,null,null,null,null,null,null,null,null,null,null,null,null,null,null,null,null,null,null,null,null,null,null,null,null,null,null,null,null,null,null,null,null,null,null,null,null,null,null,null,null,null,null,null,null,null,null,null,null,null,null,null,null,null,null,null,null,null,null,null,null,null,null,null,null,null,null,null,null,null,null,null,null,null,null,null,null,null,null,null,null,null,null,null,null,null,null,null,null,null,null,null,null,null,null,null,null,null,null,null,null,null,null,null,null,null,null,null,null,null,null,null,null,null,null,null,null,null,null,null,null,null,null,null,null,null,null,null,null,null,null,null,null,null,null,null,null,null,null,null,null,null,null,null,null,null,null,null,null,null,null,null,null,null,null,null,null,null,null,null,null,null,null,null,null,null,null,null,null,null,null,null,null,null,null,null,null,null,null,null,null,null,null,null,null,null,null,null,null,null,null,null,null,null,null,null,null,null,null,null,null,null,null,null,null,null,null,null,null,null,null,null,null,null,null,null,null,null,null,null,null,null,null,null,null,null,null,null,null,null,null,null,null,null,null,null,null,null,null,null,null,null,null,null,null,null,null,null,null,null,null,null,null,null,null,null,null,null,null,null,null,null,null,null,null,null,null,null,null,null,null,null,null,null,null,null,null,null,null,null,null,null,null,null,null,null,null,null,null,null,null,null,null,null,null,null,null,null,null,null,null,null,null,null,null,null,null,null,null,null,null,null,null,null,null,null,null,null,null,null,null,null,null,null,null,null,null,null,null,null,null,null,null,null,null,null,null,null,null,null,null,null,null,null,null,null,null,null,null,null,null,null,null,null,null,null,null,null,null,null,null,null,null,null,null,null,null,null,null,null,null,null,null,null,null,null,null,null,null,null,null,null,null,null,null,null,null,null,null,null,null,null,null,null,null,null,null,null,null,null,null,null,null,null,null,null,null,null,null,null,null,null,null,null,null,null,null,null,null,null,null,null,null,null,null,null,null,null,null,null,null,null,null,null,null,null,null,null,null,null,null,null,null,null,null,null,null,null,null,null,null,null,null,null,null,null,null,null,null,null,null,null,null,null,null,null,null,null,null,null,null,null,null,null,null,null,null,null,null,null,null,null,null,null,null,null,null,null,null,null,null,null,null,null,null,null,null,null,null,null,null,null,null,null,null,null,null,null,null,null,null,null,null,null,null,null,null,null,null,null,null,null,null,null,null,null,null,null,null,null,null,null,null,null,null,null,null,null,null,null,null,null,null,null,null,null,null,null,null,null,null,null,null,null,null,null,null,null,null,null,null,null,null,null,null,null,null,null,null,null,null,null,null,null,null,null,null,null,null,null,null,null,null,null,null,null,null,null,null,null,null,null,null,null,null,null,null,null,null,null,null,null,null,null,null,null,null,null,null,null,null,null,null,null,null,null,null,null,null,null,null,null,null,null,null,null,null,null,null,null,null,null,null,null,null,null,null,null,null,null,null,null,null,null,null,null,null,null,null,null,null,null,null,null,null,null,null,null,null,null,null,null,null,null,null,null,null,null,null,null,null,null,null,null,null,null,null,null,null,null,null,null,null,null,null,null,null,null,null,null,null,null,null,null,null,null,null,null,null,null,null,null,null,null,null,null,null,null,null,null,null,null,null,null,null,null,null,null,null,null,null,null,null,null,null,null,null,null,null,null,null,null,null,null,null,null,null,null,null,null,null,null,null,null,null,null,null,null,null,null,null,null,null,null,null,null,null,null,null,null,null,null,null,null,null,null,null,null,null,null,null,null,null,null,null,null,null,null,null,null,null,null,null,null,null,null,null,null,null,null,null,null,null,null,null,null,null,null,null,null,null,null,null,null,null,null,null,null,null,null,null,null,null,null,null,null,null,null,null,null,null,null,null,null,null,null,null,null,null,null,null,null,null,null,null,null,null,null,null,null,null,null,null,null,null,null,null,null,null,null,null,null,null,null,null,null,null,null,null,null,null,null,null,null,null,null,null,null,null,null,null,null,null,null,null,null,null,null,null,null,null,null,null,null,null,null,null,null,null,null,null,null,null,null,null,null,null,null,null,null,null,null,null,null,null,null,null,null,null,null,null,null,null,null,null,null,null,null,null,null,null,null,null,null,null,null,null,null,null,null,null,null,null,null,null,null,null,null,null,null,null,null,null,null,null,null,null,null,null,null,null,null,null,null,null,null,null,null,null,null,null,null,null,null,null,null,null,null,null,null,null,null,null,null,null,null,null,null,null,null,null,null,null,null,null,null,null,null,null,null,null,null,null,null,null,null,null,null,null,null,null,null,null,null,null,null,null,null,null,null,null,null,null,null,null,null,null,null,null,null,null,null,null,null,null,null,null,null,null,null,null,null,null,null,null,null,null,null,null,null,null,null,null,null,null,null,null,null,null,null,null,null,null,null,null,null,null,null,null,null,null,null,null,null,null,null,null,null,null,null,null,null,null,null,null,null,null,null,null,null,null,null,null,null,null,null,null,null,null,null,null,null,null,null,null,null,null,null,null,null,null,null,null,null,null,null,null,null,null,null,null,null,null,null,null,null,null,null,null,null,null,null,null,null,null,null,null,null,null,null,null,null,null,null,null,null,null,null,null,null,null,null,null,null,null,null,null,null,null,null,null,null,null,null,null,null,null,null,null,null,null,null,null,null,null,null,null,null,null,null,null,null,null,null,null,null,null,null,null,null,null,null,null,null,null,null,null,null,null,null,null,null,null,null,null,null,null,null,null,null,null,null,null,null,null,null,null,null,null,null,null,null,null,null,null,null,null,null,null,null,null,null,null,null,null,null,null,null,null,null,null,null,null,null,null,null,null,null,null,null,null,null,null,null,null,null,null,null,null,null,null,null,null,null,null,null,null,null,null,null,null,null,null,null,null,null,null,null,null,null,null,null,null,null,null,null,null,null,null,null,null,null,null,null,null,null,null,null,null,null,null,null,null,null,null,null,null,null,null,null,null,null,null,null,null,null,null,null,null,null,null,null,null,null,null,null,null,null,null,null,null,null,null,null,null,null,null,null,null,null,null,null,null,null,null,null,null,null,null,null,null,null,null,null,null,null,null,null,null,null,null,null,null,null,null,null,null,null,null,null,null,null,null,null,null,null,null,null,null,null,null,null,null,null,null,null,null,null,null,null,null,null,null,null,null,null,null,null,null,null,null,null,null,null,null,null,null,null,null,null,null,null,null,null,null,null,null,null,null,null,null,null,null,null,null,null,null,null,null,null,null,null,null,null,null,null,null,null,null,null,null,null,null,null,null,null,null,null,null,null,null,null,null,null,null,null,null,null,null,null,null,null,null,null,null,null,null,null,null,null,null,null,null,null,null,null,null,null,null,null,null,null,null,null,null,null,null,null,null,null,null,null,null,null,null,null,null,null,null,null,null,null,null,null,null,null,null,null,null,null,null,null,null,null,null,null,null,null,null,null,null,null,null,null,null,null,null,null,null,null,null,null,null,null,null,null,null,null,null,null,null,null,null,null,null,null,null,null,null,null,null,null,null,null,null,null,null,null,null,null,null,null,null,null,null,null,null,null,null,null,null,null,null,null,null,null,null,null,null,null,null,null,null,null,null,null,null,null,null,null,null,null,null,null,null,null,null,null,null,null,null,null,null,null,null,null,null,null,null,null,null,null,null,null,null,null,null,null,null,null,null,null,null,null,null,null,null,null,null,null,null,null,null,null,null,null,null,null,null,null,null,null,null,null,null,null,null,null,null,null,null,null,null,null,null,null,null,null,null,null,null,null,null,null,null,null,null,null,null,null,null,null,null,null,null,null,null,null,null,null,null,null,null,null,null,null,null,null,null,null,null,null,null,null,null,null,null,null,null,null,null,null,null,null,null,null,null,null,null,null,null,null,null,null,null,null,null,null,null,null,null,null,null,null,null,null,null,null,null,null,null,null,null,null,null,null,null,null,null,null,null,null,null,null,null,null,null,null,null,null,null,null,null,null,null,null,null,null,null,null,null,null,null,null,null,null,null,null,null,null,null,null,null,null,null,null,null,null,null,null,null,null,null,null,null,null,null,null,null,null,null,null,null,null,null,null,null,null,null,null,null,null,null,null,null,null,null,null,null,null,null,null,null,null,null,null,null,null,null,null,null,null,null,null,null,null,null,null,null,null,null,null,null,null,null,null,null,null,null,null,null,null,null,null,null,null,null,null,null,null,null,null,null,null,null,null,null,null,null,null,null,null,null,null,null,null,null,null,null,null,null,null,null,null,null,null,null,null,null,null,null,null,null,null,null,null,null,null,null,null,null,null,null,null,null,null,null,null,null,null,null,null,null,null,null,null,null,null,null,null,null,null,null,null,null,null,null,null,null,null,null,null,null,null,null,null,null,null,null,null,null,null,null,null,null,null,null,null,null,null,null,null,null,null,null,null,null,null,null,null,null,null,null,null,null,null,null,null,null,null,null,null,null,null,null,null,null,null,null,null,null,null,null,null,null,null,null,null,null,null,null,null,null,null,null,null,null,null,null,null,null,null,null,null,null,null,null,null,null,null,null,null,null,null,null,null,null,null,null,null,null,null,null,null,null,null,null,null,null,null,null,null,null,null,null,null,null,null,null,null,null,null,null,null,null,null,null,null,null,null,null,null,null,null,null,null,null,null,null,null,null,null,null,null,null,null,null,null,null,null,null,null,null,null,null,null,null,null,null,null,null,null,null,null,null,null,null,null,null,null,null,null,null,null,null,null,null,null,null,null,null,null,null,null,null,null,null,null,null,null,null,null,null,null,null,null,null,null,null,null,null,null,null,null,null,null,null,null,null,null,null,null,null,null,null,null,null,null,null,null,null,null,null,null,null,null,null,null,null,null,null,null,null,null,null,null,null,null,null,null,null,null,null,null,null,null,null,null,null,null,null,null,null,null,null,null,null,null,null,null,null,null,null,null,null,null,null,null,null,null,null,null,null,null,null,null,null,null,null,null,null,null,null,null,null,null,null,null,null,null,null,null,null,null,null,null,null,null,null,null,null,null,null,null,null,null,null,null,null,null,null,null,null,null,null,null,null,null,null,null,null,null,null,null,null,null,null,null,null,null,null,null,null,null,null,null,null,null,null,null,null,null,null,null,null,null,null,null,null,null,null,null,null,null,null,null,null,null,null,null,null,null,null,null,null,null,null,null,null,null,null,null,null,null,null,null,null,null,null,null,null,null,null,null,null,null,null,null,null,null,null,null,null,null,null,null,null,null,null,null,null,null,null,null,null,null,null,null,null,null,null,null,null,null,null,null,null,null,null,null,null,null,null,null,null,null,null,null,null,null,null,null,null,null,null,null,null,null,null,null,null,null,null,null,null,null,null,null,null,null,null,null,null,null,null,null,null,null,null,null,null,null,null,null,null,null,null,null,null,null,null,null,null,null,null,null,null,null,null,null,null,null,null,null,null,null,null,null,null,null,null,null,null,null,null,null,null,null,null,null,null,null,null,null,null,null,null,null,null,null,null,null,null,null,null,null,null,null,null,null,null,null,null,null,null,null,null,null,null,null,null,null,null,null,null,null,null,null,null,null,null,null,null,null,null,null,null,null,null,null,null,null,null,null,null,null,null,null,null,null,null,null,null,null,null,null,null,null,null,null,null,null,null,null,null,null,null,null,null,null,null,null,null,null,null,null,null,null,null,null,null,null,null,null,null,null,null,null,null,null,null,null,null,null,null,null,null,null,null,null,null,null,null,null,null,null,null,null,null,null,null,null,null,null,null,null,null,null,null,null,null,null,null,null,null,null,null,null,null,null,null,null,null,null,null,null,null,null,null,null,null,null,null,null,null,null,null,null,null,null,null,null,null,null,null,null,null,null,null,null,null,null,null,null,null,null,null,null,null,null,null,null,null,null,null,null,null,null,null,null,null,null,null,null,null,null,null,null,null,null,null,null,null,null,null,null,null,null,null,null,null,null,null,null,null,null,null,null,null,null,null,null,null,null,null,null,null,null,null,null,null,null,null,null,null,null,null,null,null,null,null,null,null,null,null,null,null,null,null,null,null,null,null,null,null,null,null,null,null,null,null,null,null,null,null,null,null,null,null,null,null,null,null,null,null,null,null,null,null,null,null,null,null,null,null,null,null,null,null,null,null,null,null,null,null,null,null,null,null,null,null,null,null,null,null,null,null,null,null,null,null,null,null,null,null,null,null,null,null,null,null,null,null,null,null,null,null,null,null,null,null,null,null,null,null,null,null,null,null,null,null,null,null,null,null,null,null,null,null,null,null,null,null,null,null,null,null,null,null,null,null,null,null,null,null,null,null,null,null,null,null,null,null,null,null,null,null,null,null,null,null,null,null,null,null,null,null,null,null,null,null,null,null,null,null,null,null,null,null,null,null,null,null,null,null,null,null,null,null,null,null,null,null,null,null,null,null,null,null,null,null,null,null,null,null,null,null,null,null,null,null,null,null,null,null,null,null,null,null,null,null,null,null,null,null,null,null,null,null,null,null,null,null,null,null,null,null,null,null,null,null,null,null,null,null,null,null,null,null,null,null,null,null,null,null,null,null,null,null,null,null,null,null,null,null,null,null,null,null,null,null,null,null,null,null,null,null,null,null,null,null,null,null,null,null,null,null,null,null,null,null,null,null,null,null,null,null,null,null,null,null,null,null,null,null,null,null,null,null,null,null,null,null,null,null,null,null,null,null,null,null,null,null,null,null,null,null,null,null,null,null,null,null,null,null,null,null,null,null,null,null,null,null,null,null,null,null,null,null,null,null,null,null,null,null,null,null,null,null,null,null,null,null,null,null,null,null,null,null,null,null,null,null,null,null,null,null,null,null,null,null,null,null,null,null,null,null,null,null,null,null,null,null,null,null,null,null,null,null,null,null,null,null,null,null,null,null,null,null,null,null,null,null,null,null,null,null,null,null,null,null,null,null,null,null,null,null,null,null,null,null,null,null,null,null,null,null,null,null,null,null,null,null,null,null,null,null,null,null,null,null,null,null,null,null,null,null,null,null,null,null,null,null,null,null,null,null,null,null,null,null,null,null,null,null,null,null,null,null,null,null,null,null,null,null,null,null,null,null,null,null,null,null,null,null,null,null,null,null,null,null,null,null,null,null,null,null,null,null,null,null,null,null,null,null,null,null,null,null,null,null,null,null,null,null,null,null,null,null,null,null,null,null,null,null,null,null,null,null,null,null,null,null,null,null,null,null,null,null,null,null,null,null,null,null,null,null,null,null,null,null,null,null,null,null,null,null,null,null,null,null,null,null,null,null,null,null,null,null,null,null,null,null,null,null,null,null,null,null,null,null,null,null,null,null,null,null,null,null,null,null,null,null,null,null,null,null,null,null,null,null,null,null,null,null,null,null,null,null,null,null,null,null,null,null,null,null,null,null,null,null,null,null,null,null,null,null,null,null,null,null,null,null,null,null,null,null,null,null,null,null,null,null,null,null,null,null,null,null,null,null,null,null,null,null,null,null,null,null,null,null,null,null,null,null,null,null,null,null,null,null,null,null,null,null,null,null,null,null,null,null,null,null,null,null,null,null,null,null,null,null,null,null,null,null,null,null,null,null,null,null,null,null,null,null,null,null,null,null,null,null,null,null,null,null,null,null,null,null,null,null,null,null,null,null,null,null,null,null,null,null,null,null,null,null,null,null,null,null,null,null,null,null,null,null,null,null,null,null,null,null,null,null,null,null,null,null,null,null,null,null,null,null,null,null,null,null,null,null,null,null,null,null,null,null,null,null,null,null,null,null,null,null,null,null,null,null,null,null,null,null,null,null,null,null,null,null,null,null,null,null,null,null,null,null,null,null,null,null,null,null,null,null,null,null,null,null,null,null,null,null,null,null,null,null,null,null,null,null,null,null,null,null,null,null,null,null,null,null,null,null,null,null,null,null,null,null,null,null,null,null,null,null,null,null,null,null,null,null,null,null,null,null,null,null,null,null,null,null,null,null,null,null,null,null,null,null,null,null,null,null,null,null,null,null,null,null,null,null,null,null,null,null,null,null,null,null,null,null,null,null,null,null,null,null,null,null,null,null,null,null,null,null,null,null,null,null,null,null,null,null,null,null,null,null,null,null,null,null,null,null,null,null,null,null,null,null,null,null,null,null,null,null,null,null,null,null,null,null,null,null,null,null,null,null,null,null,null,null,null,null,null,null,null,null,null,null,null,null,null,null,null,null,null,null,null,null,null,null,null,null,null,null,null,null,null,null,null,null,null,null,null,null,null,null,null,null,null,null,null,null,null,null,null,null,null,null,null,null,null,null,null,null,null,null,null,null,null,null,null,null,null,null,null,null,null,null,null,null,null,null,null,null,null,null,null,null,null,null,null,null,null,null,null,null,null,null,null,null,null,null,null,null,null,null,null,null,null,null,null,null,null,null,null,null,null,null,null,null,null,null,null,null,null,null,null,null,null,null,null,null,null,null,null,null,null,null,null,null,null,null,null,null,null,null,null,null,null,null,null,null,null,null,null,null,null,null,null,null,null,null,null,null,null,null,null,null,null,null,null,null,null,null,null,null,null,null,null,null,null,null,null,null,null,null,null,null,null,null,null,null,null,null,null,null,null,null,null,null,null,null,null,null,null,null,null,null,null,null,null,null,null,null,null,null,null,null,null,null,null,null,null,null,null,null,null,null,null,null,null,null,null,null,null,null,null,null,null,null,null,null,null,null,null,null,null,null,null,null,null,null,null,null,null,null,null,null,null,null,null,null,null,null,null,null,null,null,null,null,null,null,null,null,null,null,null,null,null,null,null,null,null,null,null,null,null,null,null,null,null,null,null,null,null,null,null,null,null,null,null,null,null,null,null,null,null,null,null,null,null,null,null,null,null,null,null,null,null,null,null,null,null,null,null,null,null,null,null,null,null,null,null,null,null,null,null,null,null,null,null,null,null,null,null,null,null,null,null,null,null,null,null,null,null,null,null,null,null,null,null,null,null,null,null,null,null,null,null,null,null,null,null,null,null,null,null,null,null,null,null,null,null,null,null,null,null,null,null,null,null,null,null,null,null,null,null,null,null,null,null,null,null,null,null,null,null,null,null,null,null,null,null,null,null,null,null,null,null,null,null,null,null,null,null,null,null,null,null,null,null,null,null,null,null,null,null,null,null,null,null,null,null,null,null,null,null,null,null,null,null,null,null,null,null,null,null,null,null,null,null,null,null,null,null,null,null,null,null,null,null,null,null,null,null,null,null,null,null,null,null,null,null,null,null,null,null,null,null,null,null,null,null,null,null,null,null,null,null,null,null,null,null,null,null,null,null,null,null,null,null,null,null,null,null,null,null,null,null,null,null,null,null,null,null,null,null,null,null,null,null,null,null,null,null,null,null,null,null,null,null,null,null,null,null,null,null,null,null,null,null,null,null,null,null,null,null,null,null,null,null,null,null,null,null,null,null,null,null,null,null,null,null,null,null,null,null,null,null,null,null,null,null,null,null,null,null,null,null,null,null,null,null,null,null,null,null,null,null,null,null,null,null,null,null,null,null,null,null,null,null,null,null,null,null,null,null,null,null,null,null,null,null,null,null,null,null,null,null,null,null,null,null,null,null,null,null,null,null,null,null,null,null,null,null,null,null,null,null,null,null,null,null,null,null,null,null,null,null,null,null,null,null,null,null,null,null,null,null,null,null,null,null,null,null,null,null,null,null,null,null,null,null,null,null,null,null,null,null,null,null,null,null,null,null,null,null,null,null,null,null,null,null,null,null,null,null,null,null,null,null,null,null,null,null,null,null,null,null,null,null,null,null,null,null,null,null,null,null,null,null,null,null,null,null,null,null,null,null,null,null,null,null,null,null,null,null,null,null,null,null,null,null,null,null,null,null,null,null,null,null,null,null,null,null,null,null,null,null,null,null,null,null,null,null,null,null,null,null,null,null,null,null,null,null,null,null,null,null,null,null,null,null,null,null,null,null,null,null,null,null,null,null,null,null,null,null,null,null,null,null,null,null,null,null,null,null,null,null,null,null,null,null,null,null,null,null,null,null,null,null,null,null,null,null,null,null,null,null,null,null,null,null,null,null,null,null,null,null,null,null,null,null,null,null,null,null,null,null,null,null,null,null,null,null,null,null,null,null,null,null,null,null,null,null,null,null,null,null,null,null,null,null,null,null,null,null,null,null,null,null,null,null,null,null,null,null,null,null,null,null,null,null,null,null,null,null,null,null,null,null,null,null,null,null,null,null,null,null,null,null,null,null,null,null,null,null,null,null,null,null,null,null,null,null,null,null,null,null,null,null,null,null,null,null,null,null,null,null,null,null,null,null,null,null,null,null,null,null,null,null,null,null,null,null,null,null,null,null,null,null,null,null,null,null,null,null,null,null,null,null,null,null,null,null,null,null,null,null,null,null,null,null,null,null,null,null,null,null,null,null,null,null,null,null,null,null,null,null,null,null,null,null,null,null,null,null,null,null,null,null,null,null,null,null,null,null,null,null,null,null,null,null,null,null,null,null,null,null,null,null,null,null,null,null,null,null,null,null,null,null,null,null,null,null,null,null,null,null,null,null,null,null,null,null,null,null,null,null,null,null,null,null,null,null,null,null,null,null,null,null,null,null,null,null,null,null,null,null,null,null,null,null,null,null,null,null,null,null,null,null,null,null,null,null,null,null,null,null,null,null,null,null,null,null,null,null,null,null,null,null,null,null,null,null,null,null,null,null,null,null,null,null,null,null,null,null,null,null,null,null,null,null,null,null,null,null,null,null,null,null,null,null,null,null,null,null,null,null,null,null,null,null,null,null,null,null,null,null,null,null,null,null,null,null,null,null,null,null,null,null,null,null,null,null,null,null,null,null,null,null,null,null,null,null,null,null,null,null,null,null,null,null,null,null,null,null,null,null,null,null,null,null,null,null,null,null,null,null,null,null,null,null,null,null,null,null,null,null,null,null,null,null,null,null,null,null,null,null,null,null,null,null,null,null,null,null,null,null,null,null,null,null,null,null,null,null,null,null,null,null,null,null,null,null,null,null,null,null,null,null,null,null,null,null,null,null,null,null,null,null,null,null,null,null,null,null,null,null,null,null,null,null,null,null,null,null,null,null,null,null,null,null,null,null,null,null,null,null,null,null,null,null,null,null,null,null,null,null,null,null,null,null,null,null,null,null,null,null,null,null,null,null,null,null,null,null,null,null,null,null,null,null,null,null,null,null,null,null,null,null,null,null,null,null,null,null,null,null,null,null,null,null,null,null,null,null,null,null,null,null,null,null,null,null,null,null,null,null,null,null,null,null,null,null,null,null,null,null,null,null,null,null,null,null,null,null,null,null,null,null,null,null,null,null,null,null,null,null,null,null,null,null,null,null,null,null,null,null,null,null,null,null,null,null,null,null,null,null,null,null,null,null,null,null,null,null,null,null,null,null,null,null,null,null,null,null,null,null,null,null,null,null,null,null,null,null,null,null,null,null,null,null,null,null,null,null,null,null,null,null,null,null,null,null,null,null,null,null,null,null,null,null,null,null,null,null,null,null,null,null,null,null,null,null,null,null,null,null,null,null,null,null,null,null,null,null,null,null,null,null,null,null,null,null,null,null,null,null,null,null,null,null,null,null,null,null,null,null,null,null,null,null,null,null,null,null,null,null,null,null,null,null,null,null,null,null,null,null,null,null,null,null,null,null,null,null,null,null,null,null,null,null,null,null,null,null,null,null,null,null,null,null,null,null,null,null,null,null,null,null,null,null,null,null,null,null,null,null,null,null,null,null,null,null,null,null,null,null,null,null,null,null,null,null,null,null,null,null,null,null,null,null,null,null,null,null,null,null,null,null,null,null,null,null,null,null,null,null,null,null,null,null,null,null,null,null,null,null,null,null,null,null,null,null,null,null,null,null,null,null,null,null,null,null,null,null,null,null,null,null,null,null,null,null,null,null,null,null,null,null,null,null,null,null,null,null,null,null,null,null,null,null,null,null,null,null,null,null,null,null,null,null,null,null,null,null,null,null,null,null,null,null,null,null,null,null,null,null,null,null,null,null,null,null,null,null,null,null,null,null,null,null,null,null,null,null,null,null,null,null,null,null,null,null,null,null,null,null,null,null,null,null,null,null,null,null,null,null,null,null,null,null,null,null,null,null,null,null,null,null,null,null,null,null,null,null,null,null,null,null,null,null,null,null,null,null,null,null,null,null,null,null,null,null,null,null,null,null,null,null,null,null,null,null,null,null,null,null,null,null,null,null,null,null,null,null,null,null,null,null,null,null,null,null,null,null,null,null,null,null,null,null,null,null,null,null,null,null,null,null,null,null,null,null,null,null,null,null,null,null,null,null,null,null,null,null,null,null,null,null,null,null,null,null,null,null,null,null,null,null,null,null,null,null,null,null,null,null,null,null,null,null,null,null,null,null,null,null,null,null,null,null,null,null,null,null,null,null,null,null,null,null,null,null,null,null,null,null,null,null,null,null,null,null,null,null,null,null,null,null,null,null,null,null,null,null,null,null,null,null,null,null,null,null,null,null,null,null,null,null,null,null,null,null,null,null,null,null,null,null,null,null,null,null,null,null,null,null,null,null,null,null,null,null,null,null,null,null,null,null,null,null,null,null,null,null,null,null,null,null,null,null,null,null,null,null,null,null,null,null,null,null,null,null,null,null,null,null,null,null,null,null,null,null,null,null,null,null,null,null,null,null,null,null,null,null,null,null,null,null,null,null,null,null,null,null,null,null,null,null,null,null,null,null,null,null,null,null,null,null,null,null,null,null,null,null,null,null,null,null,null,null,null,null,null,null,null,null,null,null,null,null,null,null,null,null,null,null,null,null,null,null,null,null,null,null,null,null,null,null,null,null,null,null,null,null,null,null,null,null,null,null,null,null,null,null,null,null,null,null,null,null,null,null,null,null,null,null,null,null,null,null,null,null,null,null,null,null,null,null,null,null,null,null,null,null,null,null,null,null,null,null,null,null,null,null,null,null,null,null,null,null,null,null,null,null,null,null,null,null,null,null,null,null,null,null,null,null,null,null,null,null,null,null,null,null,null,null,null,null,null,null,null,null,null,null,null,null,null,null,null,null,null,null,null,null,null,null,null,null,null,null,null,null,null,null,null,null,null,null,null,null,null,null,null,null,null,null,null,null,null,null,null,null,null,null,null,null,null,null,null,null,null,null,null,null,null,null,null,null,null,null,null,null,null,null,null,null,null,null,null,null,null,null,null,null,null,null,null,null,null,null,null,null,null,null,null,null,null,null,null,null,null,null,null,null,null,null,null,null,null,null,null,null,null,null,null,null,null,null,null,null,null,null,null,null,null,null,null,null,null,null,null,null,null,null,null,null,null,null,null,null,null,null,null,null,null,null,null,null,null,null,null,null,null,null,null,null,null,null,null,null,null,null,null,null,null,null,null,null,null,null,null,null,null,null,null,null,null,null,null,null,null,null,null,null,null,null,null,null,null,null,null,null,null,null,null,null,null,null,null,null,null,null,null,null,null,null,null,null,null,null,null,null,null,null,null,null,null,null,null,null,null,null,null,null,null,null,null,null,null,null,null,null,null,null,null,null,null,null,null,null,null,null,null,null,null,null,null,null,null,null,null,null,null,null,null,null,null,null,null,null,null,null,null,null,null,null,null,null,null,null,null,null,null,null,null,null,null,null,null,null,null,null,null,null,null,null,null,null,null,null,null,null,null,null,null,null,null,null,null,null,null,null,null,null,null,null,null,null,null,null,null,null,null,null,null,null,null,null,null,null,null,null,null,null,null,null,null,null,null,null,null,null,null,null,null,null,null,null,null,null,null,null,null,null,null,null,null,null,null,null,null,null,null,null,null,null,null,null,null,null,null,null,null,null,null,null,null,null,null,null,null,null,null,null,null,null,null,null,null,null,null,null,null,null,null,null,null,null,null,null,null,null,null,null,null,null,null,null,null,null,null,null,null,null,null,null,null,null,null,null,null,null,null,null,null,null,null,null,null,null,null,null,null,null,null,null,null,null,null,null,null,null,null,null,null,null,null,null,null,null,null,null,null,null,null,null,null,null,null,null,null,null,null,null,null,null,null,null,null,null,null,null,null,null,null,null,null,null,null,null,null,null,null,null,null,null,null,null,null,null,null,null,null,null,null,null,null,null,null,null,null,null,null,null,null,null,null,null,null,null,null,null,null,null,null,null,null,null,null,null,null,null,null,null,null,null,null,null,null,null,null,null,null,null,null,null,null,null,null,null,null,null,null,null,null,null,null,null,null,null,null,null,null,null,null,null,null,null,null,null,null,null,null,null,null,null,null,null,null,null,null,null,null,null,null,null,null,null,null,null,null,null,null,null,null,null,null,null,null,null,null,null,null,null,null,null,null,null,null,null,null,null,null,null,null,null,null,null,null,null,null,null,null,null,null,null,null,null,null,null,null,null,null,null,null,null,null,null,null,null,null,null,null,null,null,null,null,null,null,null,null,null,null,null,null,null,null,null,null,null,null,null,null,null,null,null,null,null,null,null,null,null,null,null,null,null,null,null,null,null,null,null,null,null,null,null,null,null,null,null,null,null,null,null,null,null,null,null,null,null,null,null,null,null,null,null,null,null,null,null,null,null,null,null,null,null,null,null,null,null,null,null,null,null,null,null,null,null,null,null,null,null,null,null,null,null,null,null,null,null,null,null,null,null,null,null,null,null,null,null,null,null,null,null,null,null,null,null,null,null,null,null,null,null,null,null,null,null,null,null,null,null,null,null,null,null,null,null,null,null,null,null,null,null,null,null,null,null,null,null,null,null,null,null,null,null,null,null,null,null,null,null,null,null,null,null,null,null,null,null,null,null,null,null,null,null,null,null,null,null,null,null,null,null,null,null,null,null,null,null,null,null,null,null,null,null,null,null,null,null,null,null,null,null,null,null,null,null,null,null,null,null,null,null,null,null,null,null,null,null,null,null,null,null,null,null,null,null,null,null,null,null,null,null,null,null,null,null,null,null,null,null,null,null,null,null,null,null,null,null,null,null,null,null,null,null,null,null,null,null,null,null,null,null,null,null,null,null,null,null,null,null,null,null,null,null,null,null,null,null,null,null,null,null,null,null,null,null,null,null,null,null,null,null,null,null,null,null,null,null,null,null,null,null,null,null,null,null,null,null,null,null,null,null,null,null,null,null,null,null,null,null,null,null,null,null,null,null,null,null,null,null,null,null,null,null,null,null,null,null,null,null,null,null,null,null,null,null,null,null,null,null,null,null,null,null,null,null,null,null,null,null,null,null,null,null,null,null,null,null,null,null,null,null,null,null,null,null,null,null,null,null,null,null,null,null,null,null,null,null,null,null,null,null,null,null,null,null,null,null,null,null,null,null,null,null,null,null,null,null,null,null,null,null,null,null,null,null,null,null,null,null,null,null,null,null,null,null,null,null,null,null,null,null,null,null,null,null,null,null,null,null,null,null,null,null,null,null,null,null,null,null,null,null,null,null,null,null,null,null,null,null,null,null,null,null,null,null,null,null,null,null,null,null,null,null,null,null,null,null,null,null,null,null,null,null,null,null,null,null,null,null,null,null,null,null,null,null,null,null,null,null,null,null,null,null,null,null,null,null,null,null,null,null,null,null,null,null,null,null,null,null,null,null,null,null,null,null,null,null,null,null,null,null,null,null,null,null,null,null,null,null,null,null,null,null,null,null,null,null,null,null,null,null,null,null,null,null,null,null,null,null,null,null,null,null,null,null,null,null,null,null,null,null,null,null,null,null,null,null,null,null,null,null,null,null,null,null,null,null,null,null,null,null,null,null,null,null,null,null,null,null,null,null,null,null,null,null,null,null,null,null,null,null,null,null,null,null,null,null,null,null,null,null,null,null,null,null,null,null,null,null,null,null,null,null,null,null,null,null,null,null,null,null,null,null,null,null,null,null,null,null,null,null,null,null,null,null,null,null,null,null,null,null,null,null,null,null,null,null,null,null,null,null,null,null,null,null,null,null,null,null,null,null,null,null,null,null,null,null,null,null,null,null,null,null,null,null,null,null,null,null,null,null,null,null,null,null,null,null,null,null,null,null,null,null,null,null,null,null,null,null,null,null,null,null,null,null,null,null,null,null,null,null,null,null,null,null,null,null,null,null,null,null,null,null,null,null,null,null,null,null,null,null,null,null,null,null,null,null,null,null,null,null,null,null,null,null,null,null,null,null,null,null,null,null,null,null,null,null,null,null,null,null,null,null,null,null,null,null,null,null,null,null,null,null,null,null,null,null,null,null,null,null,null,null,null,null,null,null,null,null,null,null,null,null,null,null,null,null,null,null,null,null,null,null,null,null,null,null,null,null,null,null,null,null,null,null,null,null,null,null,null,null,null,null,null,null,null,null,null,null,null,null,null,null,null,null,null,null,null,null,null,null,null,null,null,null,null,null,null,null,null,null,null,null,null,null,null,null,null,null,null,null,null,null,null,null,null,null,null,null,null,null,null,null,null,null,null,null,null,null,null,null,null,null,null,null,null,null,null,null,null,null,null,null,null,null,null,null,null,null,null,null,null,null,null,null,null,null,null,null,null,null,null,null,null,null,null,null,null,null,null,null,null,null,null,null,null,null,null,null,null,null,null,null,null,null,null,null,null,null,null,null,null,null,null,null,null,null,null,null,null,null,null,null,null,null,null,null,null,null,null,null,null,null,null,null,null,null,null,null,null,null,null,null,null,null,null,null,null,null,null,null,null,null,null,null,null,null,null,null,null,null,null,null,null,null,null,null,null,null,null,null,null,null,null,null,null,null,null,null,null,null,null,null,null,null,null,null,null,null,null,null,null,null,null,null,null,null,null,null,null,null,null,null,null,null,null,null,null,null,null,null,null,null,null,null,null,null,null,null,null,null,null,null,null,null,null,null,null,null,null,null,null,null,null,null,null,null,null,null,null,null,null,null,null,null,null,null,null,null,null,null,null,null,null,null,null,null,null,null,null,null,null,null,null,null,null,null,null,null,null,null,null,null,null,null,null,null,null,null,null,null,null,null,null,null,null,null,null,null,null,null,null,null,null,null,null,null,null,null,null,null,null,null,null,null,null,null,null,null,null,null,null,null,null,null,null,null,null,null,null,null,null,null,null,null,null,null,null,null,null,null,null,null,null,null,null,null,null,null,null,null,null,null,null,null,null,null,null,null,null,null,null,null,null,null,null,null,null,null,null,null,null,null,null,null,null,null,null,null,null,null,null,null,null,null,null,null,null,null,null,null,null,null,null,null,null,null,null,null,null,null,null,null,null,null,null,null,null,null,null,null,null,null,null,null,null,null,null,null,null,null,null,null,null,null,null,null,null,null,null,null,null,null,null,null,null,null,null,null,null,null,null,null,null,null,null,null,null,null,null,null,null,null,null,null,null,null,null,null,null,null,null,null,null,null,null,null,null,null,null,null,null,null,null,null,null,null,null,null,null,null,null,null,null,null,null,null,null,null,null,null,null,null,null,null,null,null,null,null,null,null,null,null,null,null,null,null,null,null,null,null,null,null,null,null,null,null,null,null,null,null,null,null,null,null,null,null,null,null,null,null,null,null,null,null,null,null,null,null,null,null,null,null,null,null,null,null,null,null,null,null,null,null,null,null,null,null,null,null,null,null,null,null,null,null,null,null,null,null,null,null,null,null,null,null,null,null,null,null,null,null,null,null,null,null,null,null,null,null,null,null,null,null,null,null,null,null,null,null,null,null,null,null,null,null,null,null,null,null,null,null,null,null,null,null,null,null,null,null,null,null,null,null,null,null,null,null,null,null,null,null,null,null,null,null,null,null,null,null,null,null,null,null,null,null,null,null,null,null,null,null,null,null,null,null,null,null,null,null,null,null,null,null,null,null,null,null,null,null,null,null,null,null,null,null,null,null,null,null,null,null,null,null,null,null,null,null,null,null,null,null,null,null,null,null,null,null,null,null,null,null,null,null,null,null,null,null,null,null,null,null,null,null,null,null,null,null,null,null,null,null,null,null,null,null,null,null,null,null,null,null,null,null,null,null,null,null,null,null,null,null,null,null,null,null,null,null,null,null,null,null,null,null,null,null,null,null,null,null,null,null,null,null,null,null,null,null,null,null,null,null,null,null,null,null,null,null,null,null,null,null,null,null,null,null,null,null,null,null,null,null,null,null,null,null,null,null,null,null,null,null,null,null,null,null,null,null,null,null,null,null,null,null,null,null,null,null,null,null,null,null,null,null,null,null,null,null,null,null,null,null,null,null,null,null,null,null,null,null,null,null,null,null,null,null,null,null,null,null,null,null,null,null,null,null,null,null,null,null,null,null,null,null,null,null,null,null,null,null,null,null,null,null,null,null,null,null,null,null,null,null,null,null,null,null,null,null,null,null,null,null,null,null,null,null,null,null,null,null,null,null,null,null,null,null,null,null,null,null,null,null,null,null,null,null,null,null,null,null,null,null,null,null,null,null,null,null,null,null,null,null,null,null,null,null,null,null,null,null,null,null,null,null,null,null,null,null,null,null,null,null,null,null,null,null,null,null,null,null,null,null,null,null,null,null,null,null,null,null,null,null,null,null,null,null,null,null,null,null,null,null,null,null,null,null,null,null,null,null,null,null,null,null,null,null,null,null,null,null,null,null,null,null,null,null,null,null,null,null,null,null,null,null,null,null,null,null,null,null,null,null,null,null,null,null,null,null,null,null,null,null,null,null,null,null,null,null,null,null,null,null,null,null,null,null,null,null,null,null,null,null,null,null,null,null,null,null,null,null,null,null,null,null,null,null,null,null,null,null,null,null,null,null,null,null,null,null,null,null,null,null,null,null,null,null,null,null,null,null,null,null,null,null,null,null,null,null,null,null,null,null,null,null,null,null,null,null,null,null,null,null,null,null,null,null,null,null,null,null,null,null,null,null,null,null,null,null,null,null,null,null,null,null,null,null,null,null,null,null,null,null,null,null,null,null,null,null,null,null,null,null,null,null,null,null,null,null,null,null,null,null,null,null,null,null,null,null,null,null,null,null,null,null,null,null,null,null,null,null,null,null,null,null,null,null,null,null,null,null,null,null,null,null,null,null,null,null,null,null,null,null,null,null,null,null,null,null,null,null,null,null,null,null,null,null,null,null,null,null,null,null,null,null,null,null,null,null,null,null,null,null,null,null,null,null,null,null,null,null,null,null,null,null,null,null,null,null,null,null,null,null,null,null,null,null,null,null,null,null,null,null,null,null,null,null,null,null,null,null,null,null,null,null,null,null,null,null,null,null,null,null,null,null,null,null,null,null,null,null,null,null,null,null,null,null,null,null,null,null,null,null,null,null,null,null,null,null,null,null,null,null,null,null,null,null,null,null,null,null,null,null,null,null,null,null,null,null,null,null,null,null,null,null,null,null,null,null,null,null,null,null,null,null,null,null,null,null,null,null,null,null,null,null,null,null,null,null,null,null,null,null,null,null,null,null,null,null,null,null,null,null,null,null,null,null,null,null,null,null,null,null,null,null,null,null,null,null,null,null,null,null,null,null,null,null,null,null,null,null,null,null,null,null,null,null,null,null,null,null,null,null,null,null,null,null,null,null,null,null,null,null,null,null,null,null,null,null,null,null,null,null,null,null,null,null,null,null,null,null,null,null,null,null,null,null,null,null,null,null,null,null,null,null,null,null,null,null,null,null,null,null,null,null,null,null,null,null,null,null,null,null,null,null,null,null,null,null,null,null,null,null,null,null,null,null,null,null,null,null,null,null,null,null,null,null,null,null,null,null,null,null,null,null,null,null,null,null,null,null,null,null,null,null,null,null,null,null,null,null,null,null,null,null,null,null,null,null,null,null,null,null,null,null,null,null,null,null,null,null,null,null,null,null,null,null,null,null,null,null,null,null,null,null,null,null,null,null,null,null,null,null,null,null,null,null,null,null,null,null,null,null,null,null,null,null,null,null,null,null,null,null,null,null,null,null,null,null,null,null,null,null,null,null,null,null,null,null,null,null,null,null,null,null,null,null,null,null,null,null,null,null,null,null,null,null,null,null,null,null,null,null,null,null,null,null,null,null,null,null,null,null,null,null,null,null,null,null,null,null,null,null,null,null,null,null,null,null,null,null,null,null,null,null,null,null,null,null,null,null,null,null,null,null,null,null,null,null,null,null,null,null,null,null,null,null,null,null,null,null,null,null,null,null,null,null,null,null,null,null,null,null,null,null,null,null,null,null,null,null,null,null,null,null,null,null,null,null,null,null,null,null,null,null,null,null,null,null,null,null,null,null,null,null,null,null,null,null,null,null,null,null,null,null,null,null,null,null,null,null,null,null,null,null,null,null,null,null,null,null,null,null,null,null,null,null,null,null,null,null,null,null,null,null,null,null,null,null,null,null,null,null,null,null,null,null,null,null,null,null,null,null,null,null,null,null,null,null,null,null,null,null,null,null,null,null,null,null,null,null,null,null,null,null,null,null,null,null,null,null,null,null,null,null,null,null,null,null,null,null,null,null,null,null,null,null,null,null,null,null,null,null,null,null,null,null,null,null,null,null,null,null,null,null,null,null,null,null,null,null,null,null,null,null,null,null,null,null,null,null,null,null,null,null,null,null,null,null,null,null,null,null,null,null,null,null,null,null,null,null,null,null,null,null,null,null,null,null,null,null,null,null,null,null,null,null,null,null,null,null,null,null,null,null,null,null,null,null,null,null,null,null,null,null,null,null,null,null,null,null,null,null,null,null,null,null,null,null,null,null,null,null,null,null,null,null,null,null,null,null,null,null,null,null,null,null,null,null,null,null,null,null,null,null,null,null,null,null,null,null,null,null,null,null,null,null,null,null,null,null,null,null,null,null,null,null,null,null,null,null,null,null,null,null,null,null,null,null,null,null,null,null,null,null,null,null,null,null,null,null,null,null,null,null,null,null,null,null,null,null,null,null,null,null,null,null,null,null,null,null,null,null,null,null,null,null,null,null,null,null,null,null,null,null,null,null,null,null,null,null,null,null,null,null,null,null,null,null,null,null,null,null,null,null,null,null,null,null,null,null,null,null,null,null,null,null,null,null,null,null,null,null,null,null,null,null,null,null,null,null,null,null,null,null,null,null,null,null,null,null,null,null,null,null,null,null,null,null,null,null,null,null,null,null,null,null,null,null,null,null,null,null,null,null,null,null,null,null,null,null,null,null,null,null,null,null,null,null,null,null,null,null,null,null,null,null,null,null,null,null,null,null,null,null,null,null,null,null,null,null,null,null,null,null,null,null,null,null,null,null,null,null,null,null,null,null,null,null,null,null,null,null,null,null,null,null,null,null,null,null,null,null,null,null,null,null,null,null,null,null,null,null,null,null,null,null,null,null,null,null,null,null,null,null,null,null,null,null,null,null,null,null,null,null,null,null,null,null,null,null,null,null,null,null,null,null,null,null,null,null,null,null,null,null,null,null,null,null,null,null,null,null,null,null,null,null,null,null,null,null,null,null,null,null,null,null,null,null,null,null,null,null,null,null,null,null,null,null,null,null,null,null,null,null,null,null,null,null,null,null,null,null,null,null,null,null,null,null,null,null,null,null,null,null,null,null,null,null,null,null,null,null,null,null,null,null,null,null,null,null,null,null,null,null,null,null,null,null,null,null,null,null,null,null,null,null,null,null,null,null,null,null,null,null,null,null,null,null,null,null,null,null,null,null,null,null,null,null,null,null,null,null,null,null,null,null,null,null,null,null,null,null,null,null,null,null,null,null,null,null,null,null,null,null,null,null,null,null,null,null,null,null,null,null,null,null,null,null,null,null,null,null,null,null,null,null,null,null,null,null,null,null,null,null,null,null,null,null,null,null,null,null,null,null,null,null,null,null,null,null,null,null,null,null,null,null,null,null,null,null,null,null,null,null,null,null,null,null,null,null,null,null,null,null,null,null,null,null,null,null,null,null,null,null,null,null,null,null,null,null,null,null,null,null,null,null,null,null,null,null,null,null,null,null,null,null,null,null,null,null,null,null,null,null,null,null,null,null,null,null,null,null,null,null,null,null,null,null,null,null,null,null,null,null,null,null,null,null,null,null,null,null,null,null,null,null,null,null,null,null,null,null,null,null,null,null,null,null,null,null,null,null,null,null,null,null,null,null,null,null,null,null,null,null,null,null,null,null,null,null,null,null,null,null,null,null,null,null,null,null,null,null,null,null,null,null,null,null,null,null,null,null,null,null,null,null,null,null,null,null,null,null,null,null,null,null,null,null,null,null,null,null,null,null,null,null,null,null,null,null,null,null,null,null,null,null,null,null,null,null,null,null,null,null,null,null,null,null,null,null,null,null,null,null,null,null,null,null,null,null,null,null,null,null,null,null,null,null,null,null,null,null,null,null,null,null,null,null,null,null,null,null,null,null,null,null,null,null,null,null,null,null,null,null,null,null,null,null,null,null,null,null,null,null,null,null,null,null,null,null,null,null,null,null,null,null,null,null,null,null,null,null,null,null,null,null,null,null,null,null,null,null,null,null,null,null,null,null,null,null,null,null,null,null,null,null,null,null,null,null,null,null,null,null,null,null,null,null,null,null,null,null,null,null,null,null,null,null,null,null,null,null,null,null,null,null,null,null,null,null,null,null,null,null,null,null,null,null,null,null,null,null,null,null,null,null,null,null,null,null,null,null,null,null,null,null,null,null,null,null,null,null,null,null,null,null,null,null,null,null,null,null,null,null,null,null,null,null,null,null,null,null,null,null,null,null,null,null,null,null,null,null,null,null,null,null,null,null,null,null,null,null,null,null,null,null,null,null,null,null,null,null,null,null,null,null,null,null,null,null,null,null,null,null,null,null,null,null,null,null,null,null,null,null,null,null,null,null,null,null,null,null,null,null,null,null,null,null,null,null,null,null,null,null,null,null,null,null,null,null,null,null,null,null,null,null,null,null,null,null,null,null,null,null,null,null,null,null,null,null,null,null,null,null,null,null,null,null,null,null,null,null,null,null,null,null,null,null,null,null,null,null,null,null,null,null,null,null,null,null,null,null,null,null,null,null,null,null,null,null,null,null,null,null,null,null,null,null,null,null,null,null,null,null,null,null,null,null,null,null,null,null,null,null,null,null,null,null,null,null,null,null,null,null,null,null,null,null,null,null,null,null,null,null,null,null,null,null,null,null,null,null,null,null,null,null,null,null,null,null,null,null,null,null,null,null,null,null,null,null,null,null,null,null,null,null,null,null,null,null,null,null,null,null,null,null,null,null,null,null,null,null,null,null,null,null,null,null,null,null,null,null,null,null,null,null,null,null,null,null,null,null,null,null,null,null,null,null,null,null,null,null,null,null,null,null,null,null,null,null,null,null,null,null,null,null,null,null,null,null,null,null,null,null,null,null,null,null,null,null,null,null,null,null,null,null,null,null,null,null,null,null,null,null,null,null,null,null,null,null,null,null,null,null,null,null,null,null,null,null,null,null,null,null,null,null,null,null,null,null,null,null,null,null,null,null,null,null,null,null,null,null,null,null,null,null,null,null,null,null,null,null,null,null,null,null,null,null,null,null,null,null,null,null,null,null,null,null,null,null,null,null,null,null,null,null,null,null,null,null,null,null,null,null,null,null,null,null,null,null,null,null,null,null,null,null,null,null,null,null,null,null,null,null,null,null,null,null,null,null,null,null,null,null,null,null,null,null,null,null,null,null,null,null,null,null,null,null,null,null,null,null,null,null,null,null,null,null,null,null,null,null,null,null,null,null,null,null,null,null,null,null,null,null,null,null,null,null,null,null,null,null,null,null,null,null,null,null,null,null,null,null,null,null,null,null,null,null,null,null,null,null,null,null,null,null,null,null,null,null,null,null,null,null,null,null,null,null,null,null,null,null,null,null,null,null,null,null,null,null,null,null,null,null,null,null,null,null,null,null,null,null,null,null,null,null,null,null,null,null,null,null,null,null,null,null,null,null,null,null,null,null,null,null,null,null,null,null,null,null,null,null,null,null,null,null,null,null,null,null,null,null,null,null,null,null,null,null,null,null,null,null,null,null,null,null,null,null,null,null,null,null,null,null,null,null,null,null,null,null,null,null,null,null,null,null,null,null,null,null,null,null,null,null,null,null,null,null,null,null,null,null,null,null,null,null,null,null,null,null,null,null,null,null,null,null,null,null,null,null,null,null,null,null,null,null,null,null,null,null,null,null,null,null,null,null,null,null,null,null,null,null,null,null,null,null,null,null,null,null,null,null,null,null,null,null,null,null,null,null,null,null,null,null,null,null,null,null,null,null,null,null,null,null,null,null,null,null,null,null,null,null,null,null,null,null,null,null,null,null,null,null,null,null,null,null,null,null,null,null,null,null,null,null,null,null,null,null,null,null,null,null,null,null,null,null,null,null,null,null,null,null,null,null,null,null,null,null,null,null,null,null,null,null,null,null,null,null,null,null,null,null,null,null,null,null,null,null,null,null,null,null,null,null,null,null,null,null,null,null,null,null,null,null,null,null,null,null,null,null,null,null,null,null,null,null,null,null,null,null,null,null,null,null,null,null,null,null,null,null,null,null,null,null,null,null,null,null,null,null,null,null,null,null,null,null,null,null,null,null,null,null,null,null,null,null,null,null,null,null,null,null,null,null,null,null,null,null,null,null,null,null,null,null,null,null,null,null,null,null,null,null,null,null,null,null,null,null,null,null,null,null,null,null,null,null,null,null,null,null,null,null,null,null,null,null,null,null,null,null,null,null,null,null,null,null,null,null,null,null,null,null,null,null,null,null,null,null,null,null,null,null,null,null,null,null,null,null,null,null,null,null,null,null,null,null,null,null,null,null,null,null,null,null,null,null,null,null,null,null,null,null,null,null,null,null,null,null,null,null,null,null,null,null,null,null,null,null,null,null,null,null,null,null,null,null,null,null,null,null,null,null,null,null,null,null,null,null,null,null,null,null,null,null,null,null,null,null,null,null,null,null,null,null,null,null,null,null,null,null,null,null,null,null,null,null,null,null,null,null,null,null,null,null,null,null,null,null,null,null,null,null,null,null,null,null,null,null,null,null,null,null,null,null,null,null,null,null,null,null,null,null,null,null,null,null,null,null,null,null,null,null,null,null,null,null,null,null,null,null,null,null,null,null,null,null,null,null,null,null,null,null,null,null,null,null,null,null,null,null,null,null,null,null,null,null,null,null,null,null,null,null,null,null,null,null,null,null,null,null,null,null,null,null,null,null,null,null,null,null,null,null,null,null,null,null,null,null,null,null,null,null,null,null,null,null,null,null,null,null,null,null,null,null,null,null,null,null,null,null,null,null,null,null,null,null,null,null,null,null,null,null,null,null,null,null,null,null,null,null,null,null,null,null,null,null,null,null,null,null,null,null,null,null,null,null,null,null,null,null,null,null,null,null,null,null,null,null,null,null,null,null,null,null,null,null,null,null,null,null,null,null,null,null,null,null,null,null,null,null,null,null,null,null,null,null,null,null,null,null,null,null,null,null,null,null,null,null,null,null,null,null,null,null,null,null,null,null,null,null,null,null,null,null,null,null,null,null,null,null,null,null,null,null,null,null,null,null,null,null,null,null,null,null,null,null,null,null,null,null,null,null,null,null,null,null,null,null,null,null,null,null,null,null,null,null,null,null,null,null,null,null,null,null,null,null,null,null,null,null,null,null,null,null,null,null,null,null,null,null,null,null,null,null,null,null,null,null,null,null,null,null,null,null,null,null,null,null,null,null,null,null,null,null,null,null,null,null,null,null,null,null,null,null,null,null,null,null,null,null,null,null,null,null,null,null,null,null,null,null,null,null,null,null,null,null,null,null,null,null,null,null,null,null,null,null,null,null,null,null,null,null,null,null,null,null,null,null,null,null,null,null,null,null,null,null,null,null,null,null,null,null,null,null,null,null,null,null,null,null,null,null,null,null,null,null,null,null,null,null,null,null,null,null,null,null,null,null,null,null,null,null,null,null,null,null,null,null,null,null,null,null,null,null,null,null,null,null,null,null,null,null,null,null,null,null,null,null,null,null,null,null,null,null,null,null,null,null,null,null,null,null,null,null,null,null,null,null,null,null,null,null,null,null,null,null,null,null,null,null,null,null,null,null,null,null,null,null,null,null,null,null,null,null,null,null,null,null,null,null,null,null,null,null,null,null,null,null,null,null,null,null,null,null,null,null,null,null,null,null,null,null,null,null,null,null,null,null,null,null,null,null,null,null,null,null,null,null,null,null,null,null,null,null,null,null,null,null,null,null,null,null,null,null,null,null,null,null,null,null,null,null,null,null,null,null,null,null,null,null,null,null,null,null,null,null,null,null,null,null,null,null,null,null,null,null,null,null,null,null,null,null,null,null,null,null,null,null,null,null,null,null,null,null,null,null,null,null,null,"$C$6"]
[null,null,"البيانات الأساسية للطلبة للعام الدراسي",null,"2019-2018",{"$f":"MAX(A:A)","v":897}]
[]
["الرقم","رقم الجلوس ","الاسم رباعي","تاريخ الميلاد","عمر الطالب","الجنس","الجنسية","الصف","التخصص","الفصل","الصفة","عدد سنوات الرسوب","الفترة","ملاحظات","عمود1","عمود2","عمود3","عمود4","عمود5","عمود6","عمود7","عمود8","عمود9","عمود10","عمود11","عمود12","عمود13","عمود14","عمود15","عمود16","عمود17","عمود18","عمود19","عمود20","عمود21"]
[{"$f":"IF(C5=\"\",\"\",SUBTOTAL(3,C$5:C5))","v":1},null,"طالب رقم 1","2003-04-05",{"$f":"DATEDIF(D5,TODAY(),\"Y\")","v":15},"انثى","ليبية","الاول","عام","5/1","مستجد","","صباحية"]
[{"$f":"IF(C6=\"\",\"\",SUBTOTAL(3,C$5:C6))","v":2},null,"طالب رقم 2","2002-03-06",16,"انثى","ليبية","الثاني","علمي","3/2","مستجد","","صباحية"]
[{"$f":"IF(C7=\"\",\"\",SUBTOTAL(3,C$5:C7))","v":3},null,"طالب رقم 3","2003-11-04",15,"انثى","ليبية","الاول","عام","3/1","مستجد","","صباحية"]
[{"$f":"IF(C8=\"\",\"\",SUBTOTAL(3,C$5:C8))","v":4},null,"طالب رقم 4","2003-03-08",15,"انثى","ليبية","الثاني","علمي","4/2","مستجد",null,"صباحية"]
[{"$f":"IF(C9=\"\",\"\",SUBTOTAL(3,C$5:C9))","v":5},null,"طالب رقم 5","2003-09-19",15,"انثى","ليبية","الاول","عام","3/1","مستجد","","صباحية"]
[{"$f":"IF(C10=\"\",\"\",SUBTOTAL(3,C$5:C10))","v":6},null,"طالب رقم 6","2000-11-10",18,"ذكر","ليبية","الثالث","علمي","6/3","مستجد","","صباحية"]
[{"$f":"IF(C11=\"\",\"\",SUBTOTAL(3,C$5:C11))","v":7},null,"طالب رقم 7","2003-01-16",16,"ذكر","ليبية","الاول","عام","5/1","مستجد","","مسائية"]
[{"$f":"IF(C12=\"\",\"\",SUBTOTAL(3,C$5:C12))","v":8},null,"طالب رقم 8","2001-11-18",17,"ذكر","ليبية","الثالث","علمي","4/3","مستجد","","صباحية"]
[{"$f":"IF(C13=\"\",\"\",SUBTOTAL(3,C$5:C13))","v":9},null,"طالب رقم 9","2002-03-04",17,"ذكر","ليبية","الثاني","علمي","1/2","مستجد","","مسائية"]
[{"$f":"IF(C14=\"\",\"\",SUBTOTAL(3,C$5:C14))","v":10},null,"طالب رقم 10","2002-01-24",17,"ذكر","ليبية","الثاني","علمي","1/2","مستجد","","مسائية"]
[{"$f":"IF(C15=\"\",\"\",SUBTOTAL(3,C$5:C15))","v":11},null,"طالب رقم 11","2003-02-20",16,"انثى","ليبية","الاول","عام","4/1","مستجد",null,"صباحية"]
[{"$f":"IF(C16=\"\",\"\",SUBTOTAL(3,C$5:C16))","v":12},null,"طالب رقم 12","2001-03-04",18,"ذكر","ليبية","الثالث","علمي","5/3","مستجد","","صباحية"]
[{"$f":"IF(C17=\"\",\"\",SUBTOTAL(3,C$5:C17))","v":13},null,"طالب رقم 13","2001-09-02",17,"ذكر","ليبية","الثالث","علمي","6/3","مستجد","","صباحية"]
[{"$f":"IF(C18=\"\",\"\",SUBTOTAL(3,C$5:C18))","v":14},null,"طالب رقم 14","2003-05-28",15,"ذكر","ليبية","الاول","عام","4/1","مستجد","","مسائية"]
[{"$f":"IF(C19=\"\",\"\",SUBTOTAL(3,C$5:C19))","v":15},null,"طالب رقم 15","2003-11-08",15,"ذكر","ليبية","الاول","عام","2/1","مستجد","","مسائية"]
[{"$f":"IF(C20=\"\",\"\",SUBTOTAL(3,C$5:C20))","v":16},null,"طالب رقم 16","2003-04-23",15,"ذكر","ليبية","الاول","عام","5/1","مستجد","","مسائية"]
[{"$f":"IF(C21=\"\",\"\",SUBTOTAL(3,C$5:C21))","v":17},null,"طالب رقم 17","2001-10-24",17,"ذكر","ليبية","الثاني","علمي","3/2","معيد","مرة واحدة","مسائية"]
[{"$f":"IF(C22=\"\",\"\",SUBTOTAL(3,C$5:C22))","v":18},null,"طالب رقم 18","2003-05-11",15,"ذكر","ليبية","الاول","عام","6/1","مستجد",null,"مسائية"]
[{"$f":"IF(C23=\"\",\"\",SUBTOTAL(3,C$5:C23))","v":19},null,"طالب رقم 19","2002-07-14",16,"ذكر","لبنانية","الاول","عام","2/1","مستجد","","مسائية"]
[{"$f":"IF(C24=\"\",\"\",SUBTOTAL(3,C$5:C24))","v":20},null,"طالب رقم 20","2001-08-19",17,"ذكر","ليبية","الثالث","علمي","5/3","مستجد","","صباحية"]
[{"$f":"IF(C25=\"\",\"\",SUBTOTAL(3,C$5:C25))","v":21},null,"طالب رقم 21","2002-10-21",16,"ذكر","ليبية","الثاني","علمي","2/2","مستجد","","مسائية"]
[{"$f":"IF(C26=\"\",\"\",SUBTOTAL(3,C$5:C26))","v":22},null,"طالب رقم 22","2003-06-18",15,"ذكر","ليبية","الاول","عام","5/1","مستجد","","مسائية"]
[{"$f":"IF(C27=\"\",\"\",SUBTOTAL(3,C$5:C27))","v":23},null,"طالب رقم 23","2003-09-25",15,"ذكر","ليبية","الاول","عام","1/1","مستجد","","مسائية"]
[{"$f":"IF(C28=\"\",\"\",SUBTOTAL(3,C$5:C28))","v":24},null,"طالب رقم 24","2003-04-21",15,"ذكر","ليبية","الاول","عام","6/1","مستجد","","مسائية"]
[{"$f":"IF(C29=\"\",\"\",SUBTOTAL(3,C$5:C29))","v":25},null,"طالب رقم 25","2002-02-22",17,"ذكر","ليبية","الثاني","علمي","3/2","مستجد","","مسائية"]
[{"$f":"IF(C30=\"\",\"\",SUBTOTAL(3,C$5:C30))","v":26},null,"طالب رقم 26","2003-09-12",15,"ذكر","ليبية","الاول","عام","1/1","مستجد","","مسائية"]
[{"$f":"IF(C31=\"\",\"\",SUBTOTAL(3,C$5:C31))","v":27},null,"طالب رقم 27","2003-07-16",15,"ذكر","ليبية","الاول","عام","4/1","مستجد","","مسائية"]
[{"$f":"IF(C32=\"\",\"\",SUBTOTAL(3,C$5:C32))","v":28},null,"طالب رقم 28","2003-02-10",16,"ذكر","ليبية","الاول","عام","5/1","مستجد","","مسائية"]
[{"$f":"IF(C33=\"\",\"\",SUBTOTAL(3,C$5:C33))","v":29},null,"طالب رقم 29","2003-02-20",16,"ذكر","ليبية","الاول","عام","5/1","مستجد","","مسائية"]
[{"$f":"IF(C34=\"\",\"\",SUBTOTAL(3,C$5:C34))","v":30},null,"طالب رقم 30","2001-09-18",17,"ذكر","ليبية","الثالث","علمي","4/3","مستجد",null,"صباحية"]
[{"$f":"IF(C35=\"\",\"\",SUBTOTAL(3,C$5:C35))","v":31},null,"طالب رقم 31","2003-06-09",15,"ذكر","ليبية","الاول","عام","5/1","مستجد","","مسائية"]
[{"$f":"IF(C36=\"\",\"\",SUBTOTAL(3,C$5:C36))","v":32},null,"طالب رقم 32","2003-02-17",16,"ذكر","ليبية","الاول","عام","3/1","مستجد","","مسائية"]
[{"$f":"IF(C37=\"\",\"\",SUBTOTAL(3,C$5:C37))","v":33},null,"طالب رقم 33","2001-08-18",17,"ذكر","ليبية","الثاني","علمي","3/2","معيد","مرة واحدة","مسائية"]
[{"$f":"IF(C38=\"\",\"\",SUBTOTAL(3,C$5:C38))","v":34},null,"طالب رقم 34","2001-09-18",17,"ذكر","ليبية","الثالث","علمي","5/3","مستجد","","صباحية"]
[{"$f":"IF(C39=\"\",\"\",SUBTOTAL(3,C$5:C39))","v":35},null,"طالب رقم 35","2002-06-17",16,"ذكر","ليبية","الثاني","علمي","1/2","مستجد","","مسائية"]
[{"$f":"IF(C40=\"\",\"\",SUBTOTAL(3,C$5:C40))","v":36},null,"طالب رقم 36","2004-04-14",14,"ذكر","ليبية","الاول","عام","1/1","مستجد","","مسائية"]
[{"$f":"IF(C41=\"\",\"\",SUBTOTAL(3,C$5:C41))","v":37},null,"طالب رقم 37","2003-03-04",16,"ذكر","ليبية","الاول","عام","4/1","مستجد","","مسائية"]
[{"$f":"IF(C42=\"\",\"\",SUBTOTAL(3,C$5:C42))","v":38},null,"طالب رقم 38","2002-11-23",16,"انثى","ليبية","الثاني","علمي","2/2","مستجد","","صباحية"]
[{"$f":"IF(C43=\"\",\"\",SUBTOTAL(3,C$5:C43))","v":39},null,"طالب رقم 39","2003-05-21",15,"انثى","ليبية","الاول","عام","2/1","مستجد","","صباحية"]
[{"$f":"IF(C44=\"\",\"\",SUBTOTAL(3,C$5:C44))","v":40},null,"طالب رقم 40","2003-01-08",16,"انثى","ليبية","الاول","عام","6/1","مستجد","","صباحية"]
[{"$f":"IF(C45=\"\",\"\",SUBTOTAL(3,C$5:C45))","v":41},null,"طالب رقم 41","2000-07-15",18,"انثى","ليبية","الثاني","علمي","2/2","معيد","مرة واحدة","صباحية"]
[{"$f":"IF(C46=\"\",\"\",SUBTOTAL(3,C$5:C46))","v":42},null,"طالب رقم 42","2001-09-13",17,"انثى","ليبية","الثالث","ادبي","1/3","مستجد","","صباحية"]
[{"$f":"IF(C47=\"\",\"\",SUBTOTAL(3,C$5:C47))","v":43},null,"طالب رقم 43","2003-03-19",15,"انثى","ليبية","الاول","عام","4/1","مستجد","","صباحية"]
[{"$f":"IF(C48=\"\",\"\",SUBTOTAL(3,C$5:C48))","v":44},null,"طالب رقم 44","2002-02-26",17,"انثى","ليبية","الثاني","علمي","2/2","مستجد","","صباحية"]
[{"$f":"IF(C49=\"\",\"\",SUBTOTAL(3,C$5:C49))","v":45},null,"طالب رقم 45","2003-09-15",15,"انثى","ليبية","الاول","عام","6/1","مستجد","","صباحية"]
[{"$f":"IF(C50=\"\",\"\",SUBTOTAL(3,C$5:C50))","v":46},null,"طالب رقم 46","2003-01-23",16,"ذكر","ليبية","الثاني","علمي","1/2","مستجد","","مسائية"]
[{"$f":"IF(C51=\"\",\"\",SUBTOTAL(3,C$5:C51))","v":47},null,"طالب رقم 47","2003-06-06",15,"ذكر","ليبية","الاول","عام","2/1","مستجد","","مسائية"]
[{"$f":"IF(C52=\"\",\"\",SUBTOTAL(3,C$5:C52))","v":48},null,"طالب رقم 48","2003-05-05",15,"انثى","ليبية","الاول","عام","1/1","مستجد","","صباحية"]
[{"$f":"IF(C53=\"\",\"\",SUBTOTAL(3,C$5:C53))","v":49},null,"طالب رقم 49","2001-12-17",17,"انثى","ليبية","الثاني","علمي","2/2","مستجد","","صباحية"]
[{"$f":"IF(C54=\"\",\"\",SUBTOTAL(3,C$5:C54))","v":50},null,"طالب رقم 50","2002-04-13",16,"انثى","ليبية","الثاني","علمي","3/2","مستجد","","صباحية"]
[{"$f":"IF(C55=\"\",\"\",SUBTOTAL(3,C$5:C55))","v":51},null,"طالب رقم 51","2001-12-09",17,"انثى","ليبية","الثالث","علمي","2/3","مستجد","","صباحية"]
[{"$f":"IF(C56=\"\",\"\",SUBTOTAL(3,C$5:C56))","v":52},null,"طالب رقم 52","2003-06-16",15,"انثى","ليبية","الاول","عام","3/1","مستجد","","صباحية"]
[{"$f":"IF(C57=\"\",\"\",SUBTOTAL(3,C$5:C57))","v":53},null,"طالب رقم 53","2003-10-17",15,"انثى","ليبية","الاول","عام","5/1","مستجد","","صباحية"]
[{"$f":"IF(C58=\"\",\"\",SUBTOTAL(3,C$5:C58))","v":54},null,"طالب رقم 54","2001-12-05",17,"انثى","ليبية","الثالث","علمي","2/3","مستجد","","صباحية"]
[{"$f":"IF(C59=\"\",\"\",SUBTOTAL(3,C$5:C59))","v":55},null,"طالب رقم 55","2003-09-20",15,"انثى","ليبية","الاول","عام","6/1","مستجد","","صباحية"]
[{"$f":"IF(C60=\"\",\"\",SUBTOTAL(3,C$5:C60))","v":56},null,"طالب رقم 56","2003-08-15",15,"انثى","ليبية","الاول","عام","1/1","مستجد","","صباحية"]
[{"$f":"IF(C61=\"\",\"\",SUBTOTAL(3,C$5:C61))","v":57},null,"طالب رقم 57","2001-05-02",17,"انثى","ليبية","الثاني","علمي","1/2","معيد","مرة واحدة","صباحية"]
[{"$f":"IF(C62=\"\",\"\",SUBTOTAL(3,C$5:C62))","v":58},null,"طالب رقم 58","2001-10-05",17,"انثى","ليبية","الثالث","علمي","1/3","مستجد","","صباحية"]
[{"$f":"IF(C63=\"\",\"\",SUBTOTAL(3,C$5:C63))","v":59},null,"طالب رقم 59","2001-11-23",17,"انثى","ليبية","الثالث","علمي","3/3","مستجد","","صباحية"]
[{"$f":"IF(C64=\"\",\"\",SUBTOTAL(3,C$5:C64))","v":60},null,"طالب رقم 60","2001-07-06",17,"انثى","ليبية","الثالث","علمي","3/3","مستجد","","صباحية"]
[{"$f":"IF(C65=\"\",\"\",SUBTOTAL(3,C$5:C65))","v":61},null,"طالب رقم 61","2001-12-17",17,"انثى","ليبية","الثالث","علمي","3/3","مستجد","","صباحية"]
[{"$f":"IF(C66=\"\",\"\",SUBTOTAL(3,C$5:C66))","v":62},null,"طالب رقم 62","2002-07-03",16,"انثى","ليبية","الثاني","علمي","3/2","مستجد","","صباحية"]
[{"$f":"IF(C67=\"\",\"\",SUBTOTAL(3,C$5:C67))","v":63},null,"طالب رقم 63","2003-04-13",15,"انثى","ليبية","الاول","عام","5/1","مستجد","","صباحية"]
[{"$f":"IF(C68=\"\",\"\",SUBTOTAL(3,C$5:C68))","v":64},null,"طالب رقم 64","2002-12-02",16,"انثى","ليبية","الثاني","علمي","1/2","مستجد","","صباحية"]
[{"$f":"IF(C69=\"\",\"\",SUBTOTAL(3,C$5:C69))","v":65},null,"طالب رقم 65","2001-11-21",{"$f":"DATEDIF(D69,TODAY(),\"Y\")","v":17},"انثى","ليبية","الثاني","علمي","1/2","مستجد","","صباحية"]
[{"$f":"IF(C70=\"\",\"\",SUBTOTAL(3,C$5:C70))","v":66},null,"طالب رقم 66","2003-01-04",16,"انثى","ليبية","الاول","عام","1/1","مستجد","","صباحية"]
[{"$f":"IF(C71=\"\",\"\",SUBTOTAL(3,C$5:C71))","v":67},null,"طالب رقم 67","2001-11-02",17,"انثى","ليبية","الثالث","علمي","2/3","مستجد",null,"صباحية"]
[{"$f":"IF(C72=\"\",\"\",SUBTOTAL(3,C$5:C72))","v":68},null,"طالب رقم 68","2001-11-07",17,"انثى","ليبية","الثالث","علمي","3/3","مستجد","","صباحية"]
[{"$f":"IF(C73=\"\",\"\",SUBTOTAL(3,C$5:C73))","v":69},null,"طالب رقم 69","2002-02-04",17,"انثى","ليبية","الثاني","علمي","2/2","مستجد","","صباحية"]
[{"$f":"IF(C74=\"\",\"\",SUBTOTAL(3,C$5:C74))","v":70},null,"طالب رقم 70","2001-06-12",17,"انثى","ليبية","الثالث","علمي","1/3","مستجد","","صباحية"]
[{"$f":"IF(C75=\"\",\"\",SUBTOTAL(3,C$5:C75))","v":71},null,"طالب رقم 71","2003-06-28",15,"انثى","ليبية","الاول","عام","3/1","مستجد","","صباحية"]
[{"$f":"IF(C76=\"\",\"\",SUBTOTAL(3,C$5:C76))","v":72},null,"طالب رقم 72","2003-07-08",15,"انثى","ليبية","الاول","عام","4/1","مستجد","","صباحية"]
[{"$f":"IF(C77=\"\",\"\",SUBTOTAL(3,C$5:C77))","v":73},null,"طالب رقم 73","2003-01-09",16,"ذكر","ليبية","الاول","عام","4/1","مستجد","","مسائية"]
[{"$f":"IF(C78=\"\",\"\",SUBTOTAL(3,C$5:C78))","v":74},null,"طالب رقم 74","2004-01-21",15,"انثى","ليبية","الاول","عام","1/1","مستجد","","صباحية"]
[{"$f":"IF(C79=\"\",\"\",SUBTOTAL(3,C$5:C79))","v":75},null,"طالب رقم 75","2001-07-21",17,"انثى","ليبية","الثالث","ادبي","1/3","مستجد","","صباحية"]
[{"$f":"IF(C80=\"\",\"\",SUBTOTAL(3,C$5:C80))","v":76},null,"طالب رقم 76","2002-04-02",16,"انثى","ليبية","الثاني","علمي","2/2","مستجد","","صباحية"]
[{"$f":"IF(C81=\"\",\"\",SUBTOTAL(3,C$5:C81))","v":77},null,"طالب رقم 77","2003-07-13",15,"ذكر","ليبية","الاول","عام","4/1","مستجد","","مسائية"]
[{"$f":"IF(C82=\"\",\"\",SUBTOTAL(3,C$5:C82))","v":78},null,"طالب رقم 78","2003-10-08",15,"انثى","ليبية","الاول","عام","4/1","مستجد","","صباحية"]
[{"$f":"IF(C83=\"\",\"\",SUBTOTAL(3,C$5:C83))","v":79},null,"طالب رقم 79","2002-12-20",16,"ذكر","ليبية","الثاني","علمي","2/2","مستجد","","مسائية"]
[{"$f":"IF(C84=\"\",\"\",SUBTOTAL(3,C$5:C84))","v":80},null,"طالب رقم 80","2002-01-18",17,"انثى","ليبية","الثاني","علمي","4/2","مستجد","","صباحية"]
[{"$f":"IF(C85=\"\",\"\",SUBTOTAL(3,C$5:C85))","v":81},null,"طالب رقم 81","2002-11-15",16,"انثى","ليبية","الثاني","علمي","4/2","مستجد","","صباحية"]
[{"$f":"IF(C86=\"\",\"\",SUBTOTAL(3,C$5:C86))","v":82},null,"طالب رقم 82","2003-02-02",16,"انثى","ليبية","الاول","عام","4/1","مستجد","","صباحية"]
[{"$f":"IF(C87=\"\",\"\",SUBTOTAL(3,C$5:C87))","v":83},null,"طالب رقم 83","2003-02-06",16,"انثى","ليبية","الاول","عام","2/1","مستجد","","صباحية"]
[{"$f":"IF(C88=\"\",\"\",SUBTOTAL(3,C$5:C88))","v":84},null,"طالب رقم 84","2002-04-09",16,"انثى","ليبية","الثاني","علمي","2/2","مستجد","","صباحية"]
[{"$f":"IF(C89=\"\",\"\",SUBTOTAL(3,C$5:C89))","v":85},null,"طالب رقم 85","2003-08-11",15,"انثى","ليبية","الاول","عام","1/1","مستجد","","صباحية"]
[{"$f":"IF(C90=\"\",\"\",SUBTOTAL(3,C$5:C90))","v":86},null,"طالب رقم 86","2002-06-09",16,"انثى","ليبية","الثاني","علمي","4/2","مستجد","","صباحية"]
[{"$f":"IF(C91=\"\",\"\",SUBTOTAL(3,C$5:C91))","v":87},null,"طالب رقم 87","2003-01-03",16,"انثى","سورية","الاول","عام","3/1","مستجد","","صباحية"]
[{"$f":"IF(C92=\"\",\"\",SUBTOTAL(3,C$5:C92))","v":88},null,"طالب رقم 88","2003-11-04",15,"انثى","مصرية","الاول","عام","6/1","مستجد",null,"صباحية"]
[{"$f":"IF(C93=\"\",\"\",SUBTOTAL(3,C$5:C93))","v":89},null,"طالب رقم 89","2002-07-21",16,"انثى","ليبية","الثاني","علمي","1/2","مستجد","","صباحية"]
[{"$f":"IF(C94=\"\",\"\",SUBTOTAL(3,C$5:C94))","v":90},null,"طالب رقم 90","2002-06-20",16,"انثى","ليبية","الثاني","علمي","1/2","مستجد","","صباحية"]
[{"$f":"IF(C95=\"\",\"\",SUBTOTAL(3,C$5:C95))","v":91},null,"طالب رقم 91","2001-08-18",17,"انثى","ليبية","الثاني","علمي","3/2","مستجد","","صباحية"]
[{"$f":"IF(C96=\"\",\"\",SUBTOTAL(3,C$5:C96))","v":92},null,"طالب رقم 92","2003-07-02",15,"انثى","ليبية","الاول","عام","4/1","مستجد","","صباحية"]
[{"$f":"IF(C97=\"\",\"\",SUBTOTAL(3,C$5:C97))","v":93},null,"طالب رقم 93","2002-06-06",16,"انثى","ليبية","الثاني","علمي","4/2","مستجد","","صباحية"]
[{"$f":"IF(C98=\"\",\"\",SUBTOTAL(3,C$5:C98))","v":94},null,"طالب رقم 94","2001-08-01",17,"انثى","ليبية","الثالث","علمي","2/3","مستجد","","صباحية"]
[{"$f":"IF(C99=\"\",\"\",SUBTOTAL(3,C$5:C99))","v":95},null,"طالب رقم 95","2002-07-18",16,"انثى","ليبية","الثاني","علمي","4/2","مستجد","","صباحية"]
[{"$f":"IF(C100=\"\",\"\",SUBTOTAL(3,C$5:C100))","v":96},null,"طالب رقم 96","2001-08-27",17,"انثى","ليبية","الثالث","علمي","3/3","مستجد","","صباحية"]
[{"$f":"IF(C101=\"\",\"\",SUBTOTAL(3,C$5:C101))","v":97},null,"طالب رقم 97","2003-03-15",15,"انثى","ليبية","الاول","عام","5/1","مستجد","","صباحية"]
[{"$f":"IF(C102=\"\",\"\",SUBTOTAL(3,C$5:C102))","v":98},null,"طالب رقم 98","2001-09-16",17,"انثى","ليبية","الثالث","علمي","2/3","مستجد","","صباحية"]
[{"$f":"IF(C103=\"\",\"\",SUBTOTAL(3,C$5:C103))","v":99},null,"طالب رقم 99","2002-05-08",16,"ذكر","ليبية","الثالث","علمي","6/3","مستجد","","صباحية"]
[{"$f":"IF(C104=\"\",\"\",SUBTOTAL(3,C$5:C104))","v":100},null,"طالب رقم 100","2002-08-18",16,"ذكر","ليبية","الاول","عام","3/1","مستجد","","مسائية"]
[{"$f":"IF(C105=\"\",\"\",SUBTOTAL(3,C$5:C105))","v":101},null,"طالب رقم 101","2003-04-16",15,"ذكر","ليبية","الاول","عام","5/1","مستجد","","مسائية"]
[{"$f":"IF(C106=\"\",\"\",SUBTOTAL(3,C$5:C106))","v":102},null,"طالب رقم 102","2003-06-11",15,"ذكر","ليبية","الاول","عام","2/1","مستجد","","مسائية"]
[{"$f":"IF(C107=\"\",\"\",SUBTOTAL(3,C$5:C107))","v":103},null,"طالب رقم 103","2003-03-01",16,"ذكر","ليبية","الاول","عام","4/1","مستجد",null,"مسائية"]
[{"$f":"IF(C108=\"\",\"\",SUBTOTAL(3,C$5:C108))","v":104},null,"طالب رقم 104","2003-07-12",15,"ذكر","ليبية","الاول","عام","1/1","مستجد","","مسائية"]
[{"$f":"IF(C109=\"\",\"\",SUBTOTAL(3,C$5:C109))","v":105},null,"طالب رقم 105","2002-11-19",16,"انثى","ليبية","الثاني","علمي","1/2","مستجد","","صباحية"]
[{"$f":"IF(C110=\"\",\"\",SUBTOTAL(3,C$5:C110))","v":106},null,"طالب رقم 106","2002-09-09",16,"انثى","ليبية","الاول","عام","4/1","مستجد","","صباحية"]
[{"$f":"IF(C111=\"\",\"\",SUBTOTAL(3,C$5:C111))","v":107},null,"طالب رقم 107","2003-12-02",15,"انثى","ليبية","الاول","عام","1/1","مستجد","","صباحية"]
[{"$f":"IF(C112=\"\",\"\",SUBTOTAL(3,C$5:C112))","v":108},null,"طالب رقم 108","2002-01-02",17,"ذكر","ليبية","الاول","عام","1/1","مستجد","","مسائية"]
[{"$f":"IF(C113=\"\",\"\",SUBTOTAL(3,C$5:C113))","v":109},null,"طالب رقم 109","2001-09-21",17,"ذكر","ليبية","الثاني","علمي","2/2","مستجد","","مسائية"]
[{"$f":"IF(C114=\"\",\"\",SUBTOTAL(3,C$5:C114))","v":110},null,"طالب رقم 110","2003-08-27",15,"ذكر","ليبية","الاول","عام","2/1","مستجد","","مسائية"]
[{"$f":"IF(C115=\"\",\"\",SUBTOTAL(3,C$5:C115))","v":111},null,"طالب رقم 111","2003-09-27",15,"ذكر","ليبية","الاول","عام","3/1","مستجد","","مسائية"]
[{"$f":"IF(C116=\"\",\"\",SUBTOTAL(3,C$5:C116))","v":112},null,"طالب رقم 112","2003-09-15",15,"ذكر","ليبية","الاول","عام","5/1","مستجد","","مسائية"]
[{"$f":"IF(C117=\"\",\"\",SUBTOTAL(3,C$5:C117))","v":113},null,"طالب رقم 113","2003-02-18",16,"ذكر","ليبية","الاول","عام","5/1","مستجد","","مسائية"]
[{"$f":"IF(C118=\"\",\"\",SUBTOTAL(3,C$5:C118))","v":114},null,"طالب رقم 114","2001-08-12",17,"ذكر","ليبية","الثالث","علمي","6/3","مستجد","","صباحية"]
[{"$f":"IF(C119=\"\",\"\",SUBTOTAL(3,C$5:C119))","v":115},null,"طالب رقم 115","2002-04-29",16,"ذكر","ليبية","الثاني","علمي","3/2","مستجد","","مسائية"]
[{"$f":"IF(C120=\"\",\"\",SUBTOTAL(3,C$5:C120))","v":116},null,"طالب رقم 116","2003-10-05",15,"ذكر","ليبية","الاول","عام","1/1","مستجد","","مسائية"]
[{"$f":"IF(C121=\"\",\"\",SUBTOTAL(3,C$5:C121))","v":117},null,"طالب رقم 117","2002-01-16",17,"انثى","ليبية","الثاني","علمي","2/2","مستجد","","صباحية"]
[{"$f":"IF(C122=\"\",\"\",SUBTOTAL(3,C$5:C122))","v":118},null,"طالب رقم 118","2002-11-28",16,"ذكر","ليبية","الاول","عام","3/1","مستجد","","مسائية"]
[{"$f":"IF(C123=\"\",\"\",SUBTOTAL(3,C$5:C123))","v":119},null,"طالب رقم 119","2001-12-27",17,"انثى","ليبية","الثالث","ادبي","1/3","مستجد","","صباحية"]
[{"$f":"IF(C124=\"\",\"\",SUBTOTAL(3,C$5:C124))","v":120},null,"طالب رقم 120","2001-09-06",17,"انثى","ليبية","الاول","عام","5/1","مستجد","","صباحية"]
[{"$f":"IF(C125=\"\",\"\",SUBTOTAL(3,C$5:C125))","v":121},null,"طالب رقم 121","2001-03-15",17,"انثى","ليبية","الثالث","علمي","1/3","مستجد","","صباحية"]
[{"$f":"IF(C126=\"\",\"\",SUBTOTAL(3,C$5:C126))","v":122},null,"طالب رقم 122","2003-11-01",15,"انثى","ليبية","الاول","عام","5/1","مستجد","","صباحية"]
[{"$f":"IF(C127=\"\",\"\",SUBTOTAL(3,C$5:C127))","v":123},null,"طالب رقم 123","2003-01-25",16,"انثى","ليبية","الاول","عام","1/1","مستجد","","صباحية"]
[{"$f":"IF(C128=\"\",\"\",SUBTOTAL(3,C$5:C128))","v":124},null,"طالب رقم 124","2003-12-17",15,"ذكر","ليبية","الاول","عام","4/1","مستجد","","مسائية"]
[{"$f":"IF(C129=\"\",\"\",SUBTOTAL(3,C$5:C129))","v":125},null,"طالب رقم 125","2003-09-18",15,"ذكر","ليبية","الاول","عام","2/1","مستجد","","مسائية"]
[{"$f":"IF(C130=\"\",\"\",SUBTOTAL(3,C$5:C130))","v":126},null,"طالب رقم 126","2001-12-25",17,"انثى","ليبية","الثاني","ادبي","1/2","مستجد","","صباحية"]
[{"$f":"IF(C131=\"\",\"\",SUBTOTAL(3,C$5:C131))","v":127},null,"طالب رقم 127","2002-12-29",16,"انثى","ليبية","الثاني","علمي","3/2","مستجد","","صباحية"]
[{"$f":"IF(C132=\"\",\"\",SUBTOTAL(3,C$5:C132))","v":128},null,"طالب رقم 128","2002-10-12",16,"انثى","ليبية","الثاني","علمي","3/2","مستجد","","صباحية"]
[{"$f":"IF(C133=\"\",\"\",SUBTOTAL(3,C$5:C133))","v":129},null,"طالب رقم 129","2003-05-18",{"$f":"DATEDIF(D133,TODAY(),\"Y\")","v":15},"انثى","ليبية","الاول","عام","2/1","مستجد","","صباحية"]
[{"$f":"IF(C134=\"\",\"\",SUBTOTAL(3,C$5:C134))","v":130},null,"طالب رقم 130","2003-05-12",15,"انثى","ليبية","الاول","عام","4/1","مستجد","","صباحية"]
[{"$f":"IF(C135=\"\",\"\",SUBTOTAL(3,C$5:C135))","v":131},null,"طالب رقم 131","2003-04-29",15,"انثى","ليبية","الاول","عام","6/1","مستجد","","صباحية"]
[{"$f":"IF(C136=\"\",\"\",SUBTOTAL(3,C$5:C136))","v":132},null,"طالب رقم 132","2001-01-13",18,"انثى","ليبية","الثالث","علمي","2/3","مستجد","","صباحية"]
[{"$f":"IF(C137=\"\",\"\",SUBTOTAL(3,C$5:C137))","v":133},null,"طالب رقم 133","2003-09-24",15,"انثى","ليبية","الاول","عام","2/1","مستجد","","صباحية"]
[{"$f":"IF(C138=\"\",\"\",SUBTOTAL(3,C$5:C138))","v":134},null,"طالب رقم 134","2002-11-18",16,"انثى","ليبية","الثاني","علمي","4/2","مستجد","","صباحية"]
[{"$f":"IF(C139=\"\",\"\",SUBTOTAL(3,C$5:C139))","v":135},null,"طالب رقم 135","2002-08-20",16,"انثى","ليبية","الثاني","علمي","2/2","مستجد","","صباحية"]
[{"$f":"IF(C140=\"\",\"\",SUBTOTAL(3,C$5:C140))","v":136},null,"طالب رقم 136","2003-05-22",15,"انثى","ليبية","الاول","عام","1/1","مستجد","","صباحية"]
[{"$f":"IF(C141=\"\",\"\",SUBTOTAL(3,C$5:C141))","v":137},null,"طالب رقم 137","2002-11-05",16,"ذكر","سودانية","الثاني","علمي","2/2","مستجد","","مسائية"]
[{"$f":"IF(C142=\"\",\"\",SUBTOTAL(3,C$5:C142))","v":138},null,"طالب رقم 138","2003-08-18",15,"انثى","ليبية","الاول","عام","2/1","مستجد","","صباحية"]
[{"$f":"IF(C143=\"\",\"\",SUBTOTAL(3,C$5:C143))","v":139},null,"طالب رقم 139","2003-05-05",15,"انثى","ليبية","الاول","عام","2/1","مستجد","","صباحية"]
[{"$f":"IF(C144=\"\",\"\",SUBTOTAL(3,C$5:C144))","v":140},null,"طالب رقم 140","2005-01-02",14,"انثى","ليبية","الاول","عام","2/1","مستجد","","صباحية"]
[{"$f":"IF(C145=\"\",\"\",SUBTOTAL(3,C$5:C145))","v":141},null,"طالب رقم 141","2002-10-27",16,"ذكر","ليبية","الثاني","علمي","1/2","مستجد","","مسائية"]
[{"$f":"IF(C146=\"\",\"\",SUBTOTAL(3,C$5:C146))","v":142},null,"طالب رقم 142","2002-03-16",16,"ذكر","ليبية","الثالث","علمي","5/3","مستجد","","صباحية"]
[{"$f":"IF(C147=\"\",\"\",SUBTOTAL(3,C$5:C147))","v":143},null,"طالب رقم 143","2003-10-21",15,"ذكر","ليبية","الاول","عام","4/1","مستجد","","مسائية"]
[{"$f":"IF(C148=\"\",\"\",SUBTOTAL(3,C$5:C148))","v":144},null,"طالب رقم 144","2003-05-02",15,"ذكر","ليبية","الاول","عام","4/1","مستجد","","مسائية"]
[{"$f":"IF(C149=\"\",\"\",SUBTOTAL(3,C$5:C149))","v":145},null,"طالب رقم 145","2003-02-04",16,"ذكر","ليبية","الاول","عام","6/1","مستجد","","مسائية"]
[{"$f":"IF(C150=\"\",\"\",SUBTOTAL(3,C$5:C150))","v":146},null,"طالب رقم 146","2003-10-12",15,"ذكر","ليبية","الاول","عام","3/1","مستجد","","مسائية"]
[{"$f":"IF(C151=\"\",\"\",SUBTOTAL(3,C$5:C151))","v":147},null,"طالب رقم 147","2002-06-30",16,"ذكر","ليبية","الثاني","علمي","3/2","مستجد","","مسائية"]
[{"$f":"IF(C152=\"\",\"\",SUBTOTAL(3,C$5:C152))","v":148},null,"طالب رقم 148","2001-01-22",18,"انثى","ليبية","الثالث","علمي","2/3","مستجد","","صباحية"]
[{"$f":"IF(C153=\"\",\"\",SUBTOTAL(3,C$5:C153))","v":149},null,"طالب رقم 149","2004-01-12",15,"انثى","ليبية","الاول","عام","5/1","مستجد",null,"صباحية"]
[{"$f":"IF(C154=\"\",\"\",SUBTOTAL(3,C$5:C154))","v":150},null,"طالب رقم 150","2001-10-18",17,"ذكر","ليبية","الثالث","علمي","4/3","مستجد","","صباحية"]
[{"$f":"IF(C155=\"\",\"\",SUBTOTAL(3,C$5:C155))","v":151},null,"طالب رقم 151","2001-08-15",17,"ذكر","ليبية","الثالث","علمي","4/3","مستجد","","صباحية"]
[{"$f":"IF(C156=\"\",\"\",SUBTOTAL(3,C$5:C156))","v":152},null,"طالب رقم 152","2000-04-12",18,"انثى","ليبية","الثالث","علمي","1/3","مستجد","","صباحية"]
[{"$f":"IF(C157=\"\",\"\",SUBTOTAL(3,C$5:C157))","v":153},null,"طالب رقم 153","2002-11-01",16,"انثى","ليبية","الاول","عام","6/1","معيد","مرة واحدة","صباحية",""]
[{"$f":"IF(C158=\"\",\"\",SUBTOTAL(3,C$5:C158))","v":154},null,"طالب رقم 154","2001-11-15",17,"انثى","ليبية","الاول","عام","1/1","معيد","مرتان","صباحية"]
[{"$f":"IF(C159=\"\",\"\",SUBTOTAL(3,C$5:C159))","v":155},null,"طالب رقم 155","2002-12-18",16,"انثى","ليبية","الثاني","علمي","4/2","مستجد","","صباحية"]
[{"$f":"IF(C160=\"\",\"\",SUBTOTAL(3,C$5:C160))","v":156},null,"طالب رقم 156","2001-03-15",17,"انثى","ليبية","الثاني","ادبي","1/2","مستجد","","صباحية"]
[{"$f":"IF(C161=\"\",\"\",SUBTOTAL(3,C$5:C161))","v":157},null,"طالب رقم 157","2002-08-28",16,"انثى","ليبية","الثاني","علمي","2/2","مستجد",null,"صباحية"]
[{"$f":"IF(C162=\"\",\"\",SUBTOTAL(3,C$5:C162))","v":158},null,"طالب رقم 158","2001-12-27",17,"انثى","ليبية","الثالث","ادبي","1/3","مستجد","","صباحية"]
[{"$f":"IF(C163=\"\",\"\",SUBTOTAL(3,C$5:C163))","v":159},null,"طالب رقم 159","2003-10-03",15,"انثى","ليبية","الاول","عام","6/1","مستجد","","صباحية"]
[{"$f":"IF(C164=\"\",\"\",SUBTOTAL(3,C$5:C164))","v":160},null,"طالب رقم 160","2002-02-17",17,"انثى","ليبية","الثاني","علمي","4/2","مستجد","","صباحية"]
[{"$f":"IF(C165=\"\",\"\",SUBTOTAL(3,C$5:C165))","v":161},null,"طالب رقم 161","2003-02-11",16,"انثى","ليبية","الاول","عام","3/1","مستجد","","صباحية"]
[{"$f":"IF(C166=\"\",\"\",SUBTOTAL(3,C$5:C166))","v":162},null,"طالب رقم 162","2000-06-30",18,"انثى","ليبية","الثالث","ادبي","1/3","مستجد","","صباحية"]
[{"$f":"IF(C167=\"\",\"\",SUBTOTAL(3,C$5:C167))","v":163},null,"طالب رقم 163","2001-03-12",17,"انثى","ليبية","الثاني","ادبي","1/2","مستجد","","صباحية"]
[{"$f":"IF(C168=\"\",\"\",SUBTOTAL(3,C$5:C168))","v":164},null,"طالب رقم 164","2003-01-14",16,"انثى","مصرية","الاول","عام","6/1","مستجد","","صباحية"]
[{"$f":"IF(C169=\"\",\"\",SUBTOTAL(3,C$5:C169))","v":165},null,"طالب رقم 165","2003-08-29",15,"انثى","ليبية","الاول","عام","3/1","مستجد","","صباحية"]
[{"$f":"IF(C170=\"\",\"\",SUBTOTAL(3,C$5:C170))","v":166},null,"طالب رقم 166","2003-12-02",15,"انثى","ليبية","الاول","عام","4/1","مستجد","","صباحية"]
[{"$f":"IF(C171=\"\",\"\",SUBTOTAL(3,C$5:C171))","v":167},null,"طالب رقم 167","2003-12-25",15,"انثى","ليبية","الاول","عام","5/1","مستجد","","صباحية"]
[{"$f":"IF(C172=\"\",\"\",SUBTOTAL(3,C$5:C172))","v":168},null,"طالب رقم 168","2002-04-25",16,"انثى","ليبية","الثاني","علمي","1/2","مستجد","","صباحية"]
[{"$f":"IF(C173=\"\",\"\",SUBTOTAL(3,C$5:C173))","v":169},null,"طالب رقم 169","2003-06-01",15,"انثى","ليبية","الاول","عام","6/1","مستجد","","صباحية"]
[{"$f":"IF(C174=\"\",\"\",SUBTOTAL(3,C$5:C174))","v":170},null,"طالب رقم 170","2002-06-25",16,"انثى","ليبية","الثاني","ادبي","1/2","مستجد","","صباحية"]
[{"$f":"IF(C175=\"\",\"\",SUBTOTAL(3,C$5:C175))","v":171},null,"طالب رقم 171","2002-02-05",17,"انثى","ليبية","الثاني","ادبي","1/2","مستجد","","صباحية"]
[{"$f":"IF(C176=\"\",\"\",SUBTOTAL(3,C$5:C176))","v":172},null,"طالب رقم 172","2002-01-25",17,"انثى","ليبية","الثاني","علمي","2/2","مستجد","","صباحية"]
[{"$f":"IF(C177=\"\",\"\",SUBTOTAL(3,C$5:C177))","v":173},null,"طالب رقم 173","2001-12-28",17,"انثى","ليبية","الثالث","علمي","3/3","مستجد","","صباحية"]
[{"$f":"IF(C178=\"\",\"\",SUBTOTAL(3,C$5:C178))","v":174},null,"طالب رقم 174","2002-02-20",17,"انثى","ليبية","الثاني","علمي","3/2","مستجد","","صباحية"]
[{"$f":"IF(C179=\"\",\"\",SUBTOTAL(3,C$5:C179))","v":175},null,"طالب رقم 175","2001-08-20",17,"انثى","ليبية","الثالث","علمي","3/3","مستجد","","صباحية"]
[{"$f":"IF(C180=\"\",\"\",SUBTOTAL(3,C$5:C180))","v":176},null,"طالب رقم 176","2003-06-19",15,"انثى","ليبية","الاول","عام","1/1","مستجد","","صباحية"]
[{"$f":"IF(C181=\"\",\"\",SUBTOTAL(3,C$5:C181))","v":177},null,"طالب رقم 177","2003-07-12",15,"ذكر","ليبية","الاول","عام","1/1","مستجد","","مسائية"]
[{"$f":"IF(C182=\"\",\"\",SUBTOTAL(3,C$5:C182))","v":178},null,"طالب رقم 178","2002-02-16",17,"ذكر","ليبية","الثاني","علمي","2/2","مستجد","","مسائية"]
[{"$f":"IF(C183=\"\",\"\",SUBTOTAL(3,C$5:C183))","v":179},null,"طالب رقم 179","2003-09-07",15,"انثى","ليبية","الاول","عام","5/1","مستجد","","صباحية"]
[{"$f":"IF(C184=\"\",\"\",SUBTOTAL(3,C$5:C184))","v":180},null,"طالب رقم 180","2002-07-30",16,"ذكر","ليبية","الثاني","علمي","1/2","مستجد","","مسائية"]
[{"$f":"IF(C185=\"\",\"\",SUBTOTAL(3,C$5:C185))","v":181},null,"طالب رقم 181","2001-10-09",17,"ذكر","ليبية","الاول","عام","6/1","معيد","مرة واحدة","مسائية"]
[{"$f":"IF(C186=\"\",\"\",SUBTOTAL(3,C$5:C186))","v":182},null,"طالب رقم 182","2003-05-19",15,"ذكر","ليبية","الاول","عام","5/1","مستجد","","مسائية"]
[{"$f":"IF(C187=\"\",\"\",SUBTOTAL(3,C$5:C187))","v":183},null,"طالب رقم 183","2002-01-03",17,"ذكر","ليبية","الثاني","علمي","1/2","مستجد","","مسائية"]
[{"$f":"IF(C188=\"\",\"\",SUBTOTAL(3,C$5:C188))","v":184},null,"طالب رقم 184","2002-03-24",16,"ذكر","ليبية","الثاني","علمي","2/2","مستجد","","مسائية"]
[{"$f":"IF(C189=\"\",\"\",SUBTOTAL(3,C$5:C189))","v":185},null,"طالب رقم 185","2001-10-24",17,"ذكر","ليبية","الثالث","علمي","4/3","مستجد","","صباحية"]
[{"$f":"IF(C190=\"\",\"\",SUBTOTAL(3,C$5:C190))","v":186},null,"طالب رقم 186","2001-10-11",17,"ذكر","ليبية","الثالث","علمي","6/3","مستجد","","صباحية"]
[{"$f":"IF(C191=\"\",\"\",SUBTOTAL(3,C$5:C191))","v":187},null,"طالب رقم 187","2003-08-12",15,"ذكر","ليبية","الاول","عام","4/1","مستجد","","مسائية"]
[{"$f":"IF(C192=\"\",\"\",SUBTOTAL(3,C$5:C192))","v":188},null,"طالب رقم 188","2002-12-07",16,"ذكر","ليبية","الثاني","علمي","2/2","مستجد","","مسائية"]
[{"$f":"IF(C193=\"\",\"\",SUBTOTAL(3,C$5:C193))","v":189},null,"طالب رقم 189","2003-08-22",15,"ذكر","ليبية","الاول","عام","1/1","مستجد","","مسائية"]
[{"$f":"IF(C194=\"\",\"\",SUBTOTAL(3,C$5:C194))","v":190},null,"طالب رقم 190","2001-08-06",17,"ذكر","ليبية","الثالث","علمي","5/3","مستجد","","صباحية"]
[{"$f":"IF(C195=\"\",\"\",SUBTOTAL(3,C$5:C195))","v":191},null,"طالب رقم 191","2003-08-28",15,"انثى","ليبية","الاول","عام","6/1","مستجد","","صباحية"]
[{"$f":"IF(C196=\"\",\"\",SUBTOTAL(3,C$5:C196))","v":192},null,"طالب رقم 192","2001-02-01",18,"انثى","ليبية","الثالث","علمي","1/3","مستجد","","صباحية"]
[{"$f":"IF(C197=\"\",\"\",SUBTOTAL(3,C$5:C197))","v":193},null,"طالب رقم 193","2003-11-19",{"$f":"DATEDIF(D197,TODAY(),\"Y\")","v":15},"انثى","ليبية","الاول","عام","2/1","مستجد","","صباحية"]
[{"$f":"IF(C198=\"\",\"\",SUBTOTAL(3,C$5:C198))","v":194},null,"طالب رقم 194","2003-08-13",15,"انثى","ليبية","الاول","عام","4/1","مستجد","","صباحية"]
[{"$f":"IF(C199=\"\",\"\",SUBTOTAL(3,C$5:C199))","v":195},null,"طالب رقم 195","2003-02-28",16,"انثى","ليبية","الثاني","ادبي","1/2","مستجد","","صباحية"]
[{"$f":"IF(C200=\"\",\"\",SUBTOTAL(3,C$5:C200))","v":196},null,"طالب رقم 196","2003-06-23",15,"انثى","ليبية","الاول","عام","2/1","مستجد","","صباحية"]
[{"$f":"IF(C201=\"\",\"\",SUBTOTAL(3,C$5:C201))","v":197},null,"طالب رقم 197","2002-04-07",16,"انثى","ليبية","الثاني","علمي","3/2","مستجد","","صباحية"]
[{"$f":"IF(C202=\"\",\"\",SUBTOTAL(3,C$5:C202))","v":198},null,"طالب رقم 198","2003-12-12",15,"انثى","ليبية","الاول","عام","2/1","مستجد","","صباحية"]
[{"$f":"IF(C203=\"\",\"\",SUBTOTAL(3,C$5:C203))","v":199},null,"طالب رقم 199","2001-07-09",17,"ذكر","ليبية","الاول","عام","2/1","مستجد","","مسائية"]
[{"$f":"IF(C204=\"\",\"\",SUBTOTAL(3,C$5:C204))","v":200},null,"طالب رقم 200","2001-03-12",17,"انثى","عراقية","الثاني","ادبي","1/2","مستجد","","صباحية"]
[{"$f":"IF(C205=\"\",\"\",SUBTOTAL(3,C$5:C205))","v":201},null,"طالب رقم 201","2002-09-07",16,"انثى","ليبية","الاول","عام","3/1","مستجد","","صباحية"]
[{"$f":"IF(C206=\"\",\"\",SUBTOTAL(3,C$5:C206))","v":202},null,"طالب رقم 202","2003-10-19",15,"انثى","ليبية","الاول","عام","6/1","مستجد","","صباحية"]
[{"$f":"IF(C207=\"\",\"\",SUBTOTAL(3,C$5:C207))","v":203},null,"طالب رقم 203","2003-08-31",15,"ذكر","ليبية","الاول","عام","2/1","مستجد",null,"مسائية"]
[{"$f":"IF(C208=\"\",\"\",SUBTOTAL(3,C$5:C208))","v":204},null,"طالب رقم 204","2003-11-28",15,"ذكر","ليبية","الاول","عام","6/1","مستجد","","مسائية"]
[{"$f":"IF(C209=\"\",\"\",SUBTOTAL(3,C$5:C209))","v":205},null,"طالب رقم 205","2003-03-28",15,"انثى","ليبية","الاول","عام","2/1","مستجد","","صباحية"]
[{"$f":"IF(C210=\"\",\"\",SUBTOTAL(3,C$5:C210))","v":206},null,"طالب رقم 206","2001-02-28",18,"انثى","ليبية","الثالث","علمي","2/3","مستجد","","صباحية"]
[{"$f":"IF(C211=\"\",\"\",SUBTOTAL(3,C$5:C211))","v":207},null,"طالب رقم 207","2003-04-21",15,"انثى","ليبية","الاول","عام","6/1","مستجد","","صباحية"]
[{"$f":"IF(C212=\"\",\"\",SUBTOTAL(3,C$5:C212))","v":208},null,"طالب رقم 208","2002-10-29",16,"انثى","ليبية","الثاني","علمي","1/2","مستجد","","صباحية"]
[{"$f":"IF(C213=\"\",\"\",SUBTOTAL(3,C$5:C213))","v":209},null,"طالب رقم 209","2003-12-31",15,"انثى","ليبية","الاول","عام","5/1","مستجد","","صباحية"]
[{"$f":"IF(C214=\"\",\"\",SUBTOTAL(3,C$5:C214))","v":210},null,"طالب رقم 210","2001-09-14",17,"انثى","ليبية","الثالث","علمي","1/3","مستجد","","صباحية"]
[{"$f":"IF(C215=\"\",\"\",SUBTOTAL(3,C$5:C215))","v":211},null,"طالب رقم 211","2003-08-23",15,"انثى","ليبية","الاول","عام","4/1","مستجد","","صباحية"]
[{"$f":"IF(C216=\"\",\"\",SUBTOTAL(3,C$5:C216))","v":212},null,"طالب رقم 212","2000-03-21",18,"انثى","ليبية","الثالث","علمي","1/3","مستجد","","صباحية"]
[{"$f":"IF(C217=\"\",\"\",SUBTOTAL(3,C$5:C217))","v":213},null,"طالب رقم 213","2002-04-26",16,"انثى","ليبية","الثاني","علمي","3/2","مستجد","","صباحية"]
[{"$f":"IF(C218=\"\",\"\",SUBTOTAL(3,C$5:C218))","v":214},null,"طالب رقم 214","2002-04-30",16,"انثى","ليبية","الثاني","علمي","4/2","مستجد","","صباحية"]
[{"$f":"IF(C219=\"\",\"\",SUBTOTAL(3,C$5:C219))","v":215},null,"طالب رقم 215","2003-10-13",15,"انثى","ليبية","الاول","عام","3/1","مستجد","","صباحية"]
[{"$f":"IF(C220=\"\",\"\",SUBTOTAL(3,C$5:C220))","v":216},null,"طالب رقم 216","2001-03-14",17,"انثى","ليبية","الثالث","علمي","1/3","مستجد","","صباحية"]
[{"$f":"IF(C221=\"\",\"\",SUBTOTAL(3,C$5:C221))","v":217},null,"طالب رقم 217","2001-10-15",17,"ذكر","ليبية","الثالث","علمي","5/3","مستجد","","صباحية"]
[{"$f":"IF(C222=\"\",\"\",SUBTOTAL(3,C$5:C222))","v":218},null,"طالب رقم 218","2003-07-02",15,"انثى","ليبية","الاول","عام","3/1","مستجد","","صباحية"]
[{"$f":"IF(C223=\"\",\"\",SUBTOTAL(3,C$5:C223))","v":219},null,"طالب رقم 219","2003-04-01",15,"ذكر","ليبية","الاول","عام","4/1","مستجد","","مسائية"]
[{"$f":"IF(C224=\"\",\"\",SUBTOTAL(3,C$5:C224))","v":220},null,"طالب رقم 220","2002-11-05",16,"انثى","ليبية","الثاني","علمي","4/2","مستجد","","صباحية"]
[{"$f":"IF(C225=\"\",\"\",SUBTOTAL(3,C$5:C225))","v":221},null,"طالب رقم 221","2002-02-19",17,"انثى","ليبية","الاول","عام","2/1","معيد","مرة واحدة","صباحية"]
[{"$f":"IF(C226=\"\",\"\",SUBTOTAL(3,C$5:C226))","v":222},null,"طالب رقم 222","2002-04-27",16,"انثى","ليبية","الثاني","علمي","4/2","مستجد","","صباحية"]
[{"$f":"IF(C227=\"\",\"\",SUBTOTAL(3,C$5:C227))","v":223},null,"طالب رقم 223","2001-10-06",17,"ذكر","ليبية","الثالث","علمي","6/3","مستجد",null,"صباحية"]
[{"$f":"IF(C228=\"\",\"\",SUBTOTAL(3,C$5:C228))","v":224},null,"طالب رقم 224","1999-11-27",19,"ذكر","ليبية","الثالث","علمي","6/3","مستجد","","صباحية"]
[{"$f":"IF(C229=\"\",\"\",SUBTOTAL(3,C$5:C229))","v":225},null,"طالب رقم 225","2001-12-24",17,"انثى","ليبية","الثالث","علمي","1/3","مستجد","","صباحية"]
[{"$f":"IF(C230=\"\",\"\",SUBTOTAL(3,C$5:C230))","v":226},null,"طالب رقم 226","2002-03-15",16,"ذكر","ليبية","الثاني","علمي","2/2","مستجد","","مسائية"]
[{"$f":"IF(C231=\"\",\"\",SUBTOTAL(3,C$5:C231))","v":227},null,"طالب رقم 227","2002-02-10",17,"انثى","ليبية","الثاني","علمي","1/2","مستجد","","صباحية"]
[{"$f":"IF(C232=\"\",\"\",SUBTOTAL(3,C$5:C232))","v":228},null,"طالب رقم 228","2002-10-31",16,"انثى","ليبية","الثاني","ادبي","1/2","مستجد","","صباحية"]
[{"$f":"IF(C233=\"\",\"\",SUBTOTAL(3,C$5:C233))","v":229},null,"طالب رقم 229","2001-08-10",17,"انثى","ليبية","الثاني","ادبي","1/2","مستجد","","صباحية"]
[{"$f":"IF(C234=\"\",\"\",SUBTOTAL(3,C$5:C234))","v":230},null,"طالب رقم 230","2002-01-25",17,"انثى","ليبية","الثاني","علمي","2/2","مستجد","","صباحية"]
[{"$f":"IF(C235=\"\",\"\",SUBTOTAL(3,C$5:C235))","v":231},null,"طالب رقم 231","2002-04-10",16,"انثى","ليبية","الثاني","علمي","1/2","مستجد","","صباحية"]
[{"$f":"IF(C236=\"\",\"\",SUBTOTAL(3,C$5:C236))","v":232},null,"طالب رقم 232","2001-06-13",17,"انثى","ليبية","الثالث","علمي","2/3","مستجد","","صباحية"]
[{"$f":"IF(C237=\"\",\"\",SUBTOTAL(3,C$5:C237))","v":233},null,"طالب رقم 233","2001-11-23",17,"انثى","ليبية","الثالث","ادبي","1/3","مستجد","","صباحية"]
[{"$f":"IF(C238=\"\",\"\",SUBTOTAL(3,C$5:C238))","v":234},null,"طالب رقم 234","2002-08-03",16,"انثى","ليبية","الثاني","علمي","2/2","مستجد","","صباحية"]
[{"$f":"IF(C239=\"\",\"\",SUBTOTAL(3,C$5:C239))","v":235},null,"طالب رقم 235","2003-04-18",15,"انثى","ليبية","الاول","عام","6/1","مستجد","","صباحية"]
[{"$f":"IF(C240=\"\",\"\",SUBTOTAL(3,C$5:C240))","v":236},null,"طالب رقم 236","2002-12-10",16,"انثى","ليبية","الثاني","علمي","1/2","مستجد","","صباحية"]
[{"$f":"IF(C241=\"\",\"\",SUBTOTAL(3,C$5:C241))","v":237},null,"طالب رقم 237","2002-03-23",16,"انثى","ليبية","الثاني","علمي","2/2","مستجد","","صباحية"]
[{"$f":"IF(C242=\"\",\"\",SUBTOTAL(3,C$5:C242))","v":238},null,"طالب رقم 238","2000-12-16",18,"انثى","ليبية","الثاني","علمي","4/2","مستجد","","صباحية"]
[{"$f":"IF(C243=\"\",\"\",SUBTOTAL(3,C$5:C243))","v":239},null,"طالب رقم 239","2002-08-16",16,"انثى","ليبية","الثاني","علمي","4/2","مستجد","","صباحية"]
[{"$f":"IF(C244=\"\",\"\",SUBTOTAL(3,C$5:C244))","v":240},null,"طالب رقم 240","2002-07-08",16,"انثى","ليبية","الثاني","علمي","2/2","مستجد","","صباحية"]
[{"$f":"IF(C245=\"\",\"\",SUBTOTAL(3,C$5:C245))","v":241},null,"طالب رقم 241","2001-12-24",17,"انثى","ليبية","الثالث","علمي","2/3","مستجد","","صباحية"]
[{"$f":"IF(C246=\"\",\"\",SUBTOTAL(3,C$5:C246))","v":242},null,"طالب رقم 242","2002-02-01",17,"انثى","ليبية","الثالث","علمي","2/3","مستجد","","صباحية"]
[{"$f":"IF(C247=\"\",\"\",SUBTOTAL(3,C$5:C247))","v":243},null,"طالب رقم 243","2003-12-21",15,"انثى","ليبية","الاول","عام","3/1","مستجد","","صباحية"]
[{"$f":"IF(C248=\"\",\"\",SUBTOTAL(3,C$5:C248))","v":244},null,"طالب رقم 244","2001-12-30",17,"انثى","ليبية","الثالث","علمي","2/3","مستجد","","صباحية"]
[{"$f":"IF(C249=\"\",\"\",SUBTOTAL(3,C$5:C249))","v":245},null,"طالب رقم 245","2002-07-29",16,"انثى","ليبية","الثاني","علمي","3/2","مستجد","","صباحية"]
[{"$f":"IF(C250=\"\",\"\",SUBTOTAL(3,C$5:C250))","v":246},null,"طالب رقم 246","2003-02-16",16,"انثى","ليبية","الاول","عام","5/1","مستجد","","صباحية"]
[{"$f":"IF(C251=\"\",\"\",SUBTOTAL(3,C$5:C251))","v":247},null,"طالب رقم 247","2003-08-20",15,"انثى","ليبية","الاول","عام","1/1","مستجد","","صباحية"]
[{"$f":"IF(C252=\"\",\"\",SUBTOTAL(3,C$5:C252))","v":248},null,"طالب رقم 248","2003-04-21",15,"انثى","ليبية","الاول","عام","2/1","مستجد","","صباحية"]
[{"$f":"IF(C253=\"\",\"\",SUBTOTAL(3,C$5:C253))","v":249},null,"طالب رقم 249","2003-12-19",15,"انثى","ليبية","الاول","عام","1/1","مستجد","","صباحية"]
[{"$f":"IF(C254=\"\",\"\",SUBTOTAL(3,C$5:C254))","v":250},null,"طالب رقم 250","2003-08-14",15,"انثى","ليبية","الاول","عام","1/1","مستجد","","صباحية"]
[{"$f":"IF(C255=\"\",\"\",SUBTOTAL(3,C$5:C255))","v":251},null,"طالب رقم 251","2001-09-28",17,"انثى","ليبية","الثالث","علمي","1/3","مستجد","","صباحية"]
[{"$f":"IF(C256=\"\",\"\",SUBTOTAL(3,C$5:C256))","v":252},null,"طالب رقم 252","2001-08-24",17,"انثى","ليبية","الثالث","علمي","3/3","مستجد","","صباحية"]
[{"$f":"IF(C257=\"\",\"\",SUBTOTAL(3,C$5:C257))","v":253},null,"طالب رقم 253","2003-11-19",15,"انثى","ليبية","الاول","عام","4/1","مستجد","","صباحية"]
[{"$f":"IF(C258=\"\",\"\",SUBTOTAL(3,C$5:C258))","v":254},null,"طالب رقم 254","2003-01-06",16,"ذكر","ليبية","الاول","عام","1/1","مستجد","","مسائية"]
[{"$f":"IF(C259=\"\",\"\",SUBTOTAL(3,C$5:C259))","v":255},null,"طالب رقم 255","2004-01-27",15,"انثى","ليبية","الاول","عام","1/1","مستجد","","صباحية"]
[{"$f":"IF(C260=\"\",\"\",SUBTOTAL(3,C$5:C260))","v":256},null,"طالب رقم 256","2002-02-17",17,"انثى","ليبية","الثاني","علمي","4/2","مستجد","","صباحية"]
[{"$f":"IF(C261=\"\",\"\",SUBTOTAL(3,C$5:C261))","v":257},null,"طالب رقم 257","2003-08-19",{"$f":"DATEDIF(D261,TODAY(),\"Y\")","v":15},"انثى","ليبية","الاول","عام","2/1","مستجد","","صباحية"]
[{"$f":"IF(C262=\"\",\"\",SUBTOTAL(3,C$5:C262))","v":258},null,"طالب رقم 258","2003-01-09",16,"انثى","ليبية","الاول","عام","4/1","مستجد","","صباحية"]
[{"$f":"IF(C263=\"\",\"\",SUBTOTAL(3,C$5:C263))","v":259},null,"طالب رقم 259","2003-02-10",16,"ذكر","ليبية","الاول","عام","4/1","مستجد","","مسائية"]
[{"$f":"IF(C264=\"\",\"\",SUBTOTAL(3,C$5:C264))","v":260},null,"طالب رقم 260","2003-07-22",15,"ذكر","ليبية","الاول","عام","5/1","مستجد","","مسائية"]
[{"$f":"IF(C265=\"\",\"\",SUBTOTAL(3,C$5:C265))","v":261},null,"طالب رقم 261","2000-04-13",18,"ذكر","ليبية","الثالث","علمي","4/3","مستجد","","صباحية"]
[{"$f":"IF(C266=\"\",\"\",SUBTOTAL(3,C$5:C266))","v":262},null,"طالب رقم 262","2003-06-29",15,"انثى","ليبية","الاول","عام","3/1","مستجد","","صباحية"]
[{"$f":"IF(C267=\"\",\"\",SUBTOTAL(3,C$5:C267))","v":263},null,"طالب رقم 263","2002-10-14",16,"انثى","ليبية","الثاني","علمي","2/2","مستجد","","صباحية"]
[{"$f":"IF(C268=\"\",\"\",SUBTOTAL(3,C$5:C268))","v":264},null,"طالب رقم 264","2001-12-24",17,"انثى","ليبية","الثالث","علمي","3/3","مستجد","","صباحية"]
[{"$f":"IF(C269=\"\",\"\",SUBTOTAL(3,C$5:C269))","v":265},null,"طالب رقم 265","2000-02-21",19,"انثى","ليبية","الثالث","ادبي","1/3","مستجد","","صباحية"]
[{"$f":"IF(C270=\"\",\"\",SUBTOTAL(3,C$5:C270))","v":266},null,"طالب رقم 266","2003-04-09",15,"انثى","ليبية","الاول","عام","4/1","مستجد","","صباحية"]
[{"$f":"IF(C271=\"\",\"\",SUBTOTAL(3,C$5:C271))","v":267},null,"طالب رقم 267","2003-02-03",16,"انثى","ليبية","الاول","عام","2/1","مستجد","","صباحية"]
[{"$f":"IF(C272=\"\",\"\",SUBTOTAL(3,C$5:C272))","v":268},null,"طالب رقم 268","2003-09-09",15,"انثى","ليبية","الاول","عام","1/1","مستجد",null,"صباحية"]
[{"$f":"IF(C273=\"\",\"\",SUBTOTAL(3,C$5:C273))","v":269},null,"طالب رقم 269","2001-11-28",17,"انثى","ليبية","الثالث","علمي","3/3","مستجد","","صباحية"]
[{"$f":"IF(C274=\"\",\"\",SUBTOTAL(3,C$5:C274))","v":270},null,"طالب رقم 270","2003-01-25",16,"انثى","ليبية","الاول","عام","6/1","مستجد","","صباحية"]
[{"$f":"IF(C275=\"\",\"\",SUBTOTAL(3,C$5:C275))","v":271},null,"طالب رقم 271","2003-03-10",15,"انثى","ليبية","الاول","عام","5/1","مستجد","","صباحية"]
[{"$f":"IF(C276=\"\",\"\",SUBTOTAL(3,C$5:C276))","v":272},null,"طالب رقم 272","2002-01-01",17,"ذكر","ليبية","الثاني","علمي","3/2","مستجد","","مسائية"]
[{"$f":"IF(C277=\"\",\"\",SUBTOTAL(3,C$5:C277))","v":273},null,"طالب رقم 273","2003-01-30",16,"ذكر","ليبية","الاول","عام","6/1","مستجد","","مسائية"]
[{"$f":"IF(C278=\"\",\"\",SUBTOTAL(3,C$5:C278))","v":274},null,"طالب رقم 274","2003-01-01",16,"ذكر","ليبية","الاول","عام","5/1","مستجد","","مسائية"]
[{"$f":"IF(C279=\"\",\"\",SUBTOTAL(3,C$5:C279))","v":275},null,"طالب رقم 275","2001-09-18",17,"انثى","ليبية","الثالث","علمي","1/3","مستجد","","صباحية"]
[{"$f":"IF(C280=\"\",\"\",SUBTOTAL(3,C$5:C280))","v":276},null,"طالب رقم 276","2003-10-26",15,"انثى","ليبية","الاول","عام","6/1","مستجد","","صباحية"]
[{"$f":"IF(C281=\"\",\"\",SUBTOTAL(3,C$5:C281))","v":277},null,"طالب رقم 277","2004-02-26",15,"انثى","ليبية","الاول","عام","5/1","مستجد","","صباحية"]
[{"$f":"IF(C282=\"\",\"\",SUBTOTAL(3,C$5:C282))","v":278},null,"طالب رقم 278","2002-09-01",16,"انثى","ليبية","الثاني","علمي","3/2","مستجد","","صباحية"]
[{"$f":"IF(C283=\"\",\"\",SUBTOTAL(3,C$5:C283))","v":279},null,"طالب رقم 279","2003-12-20",15,"انثى","ليبية","الاول","عام","2/1","مستجد","","صباحية"]
[{"$f":"IF(C284=\"\",\"\",SUBTOTAL(3,C$5:C284))","v":280},null,"طالب رقم 280","2001-05-12",17,"انثى","ليبية","الثاني","علمي","1/2","مستجد",null,"صباحية"]
[{"$f":"IF(C285=\"\",\"\",SUBTOTAL(3,C$5:C285))","v":281},null,"طالب رقم 281","2001-08-30",17,"انثى","ليبية","الثاني","ادبي","1/2","مستجد","","صباحية"]
[{"$f":"IF(C286=\"\",\"\",SUBTOTAL(3,C$5:C286))","v":282},null,"طالب رقم 282","2001-09-08",17,"ذكر","ليبية","الثالث","علمي","5/3","مستجد","","صباحية"]
[{"$f":"IF(C287=\"\",\"\",SUBTOTAL(3,C$5:C287))","v":283},null,"طالب رقم 283","2001-09-01",17,"انثى","ليبية","الثالث","ادبي","1/3","مستجد","","صباحية"]
[{"$f":"IF(C288=\"\",\"\",SUBTOTAL(3,C$5:C288))","v":284},null,"طالب رقم 284","2003-06-07",15,"انثى","ليبية","الاول","عام","1/1","مستجد","","صباحية"]
[{"$f":"IF(C289=\"\",\"\",SUBTOTAL(3,C$5:C289))","v":285},null,"طالب رقم 285","2002-07-10",16,"انثى","ليبية","الاول","عام","4/1","مستجد","","صباحية"]
[{"$f":"IF(C290=\"\",\"\",SUBTOTAL(3,C$5:C290))","v":286},null,"طالب رقم 286","2002-09-25",16,"انثى","ليبية","الثاني","علمي","3/2","مستجد","","صباحية"]
[{"$f":"IF(C291=\"\",\"\",SUBTOTAL(3,C$5:C291))","v":287},null,"طالب رقم 287","2003-04-09",15,"انثى","ليبية","الاول","عام","1/1","مستجد","","صباحية"]
[{"$f":"IF(C292=\"\",\"\",SUBTOTAL(3,C$5:C292))","v":288},null,"طالب رقم 288","2001-10-05",17,"انثى","ليبية","الثالث","علمي","3/3","مستجد","","صباحية"]
[{"$f":"IF(C293=\"\",\"\",SUBTOTAL(3,C$5:C293))","v":289},null,"طالب رقم 289","2003-07-23",15,"انثى","ليبية","الاول","عام","1/1","مستجد","","صباحية"]
[{"$f":"IF(C294=\"\",\"\",SUBTOTAL(3,C$5:C294))","v":290},null,"طالب رقم 290","2003-10-03",15,"انثى","ليبية","الاول","عام","1/1","مستجد","","صباحية"]
[{"$f":"IF(C295=\"\",\"\",SUBTOTAL(3,C$5:C295))","v":291},null,"طالب رقم 291","2003-10-04",15,"انثى","ليبية","الاول","عام","1/1","مستجد","","صباحية"]
[{"$f":"IF(C296=\"\",\"\",SUBTOTAL(3,C$5:C296))","v":292},null,"طالب رقم 292","2003-09-07",15,"انثى","ليبية","الاول","عام","5/1","مستجد","","صباحية"]
[{"$f":"IF(C297=\"\",\"\",SUBTOTAL(3,C$5:C297))","v":293},null,"طالب رقم 293","2003-05-05",15,"انثى","ليبية","الاول","عام","2/1","مستجد","","صباحية"]
[{"$f":"IF(C298=\"\",\"\",SUBTOTAL(3,C$5:C298))","v":294},null,"طالب رقم 294","2003-04-08",15,"انثى","ليبية","الاول","عام","5/1","مستجد","","صباحية"]
[{"$f":"IF(C299=\"\",\"\",SUBTOTAL(3,C$5:C299))","v":295},null,"طالب رقم 295","2000-09-15",18,"انثى","ليبية","الثالث","علمي","3/3","مستجد","","صباحية"]
[{"$f":"IF(C300=\"\",\"\",SUBTOTAL(3,C$5:C300))","v":296},null,"طالب رقم 296","2001/12/12",17,"انثى","ليبية","الثالث","علمي","2/3","مستجد","","صباحية"]
[{"$f":"IF(C301=\"\",\"\",SUBTOTAL(3,C$5:C301))","v":297},null,"طالب رقم 297","2002-06-26",16,"انثى","ليبية","الثاني","علمي","1/2","مستجد","","صباحية"]
[{"$f":"IF(C302=\"\",\"\",SUBTOTAL(3,C$5:C302))","v":298},null,"طالب رقم 298","2003-09-05",15,"انثى","ليبية","الاول","عام","2/1","مستجد",null,"صباحية"]
[{"$f":"IF(C303=\"\",\"\",SUBTOTAL(3,C$5:C303))","v":299},null,"طالب رقم 299","2002-06-19",16,"انثى","ليبية","الثاني","علمي","3/2","مستجد","","صباحية"]
[{"$f":"IF(C304=\"\",\"\",SUBTOTAL(3,C$5:C304))","v":300},null,"طالب رقم 300","2003-07-01",15,"انثى","ليبية","الاول","عام","4/1","مستجد",null,"صباحية"]
[{"$f":"IF(C305=\"\",\"\",SUBTOTAL(3,C$5:C305))","v":301},null,"طالب رقم 301","2001-09-09",17,"انثى","ليبية","الثالث","علمي","3/3","مستجد","","صباحية"]
[{"$f":"IF(C306=\"\",\"\",SUBTOTAL(3,C$5:C306))","v":302},null,"طالب رقم 302","2001-09-14",17,"انثى","ليبية","الثالث","علمي","3/3","مستجد","","صباحية"]
[{"$f":"IF(C307=\"\",\"\",SUBTOTAL(3,C$5:C307))","v":303},null,"طالب رقم 303","2001-07-21",17,"انثى","ليبية","الثالث","علمي","1/3","مستجد","","صباحية"]
[{"$f":"IF(C308=\"\",\"\",SUBTOTAL(3,C$5:C308))","v":304},null,"طالب رقم 304","2003-07-10",15,"انثى","ليبية","الاول","عام","4/1","مستجد","","صباحية"]
[{"$f":"IF(C309=\"\",\"\",SUBTOTAL(3,C$5:C309))","v":305},null,"طالب رقم 305","2001-09-29",17,"انثى","ليبية","الثالث","علمي","3/3","مستجد","","صباحية"]
[{"$f":"IF(C310=\"\",\"\",SUBTOTAL(3,C$5:C310))","v":306},null,"طالب رقم 306","2003-04-02",15,"انثى","ليبية","الاول","عام","6/1","مستجد","","صباحية"]
[{"$f":"IF(C311=\"\",\"\",SUBTOTAL(3,C$5:C311))","v":307},null,"طالب رقم 307","2001-05-27",17,"انثى","ليبية","الثالث","علمي","2/3","مستجد","","صباحية"]
[{"$f":"IF(C312=\"\",\"\",SUBTOTAL(3,C$5:C312))","v":308},null,"طالب رقم 308","2003-07-08",15,"ذكر","ليبية","الاول","عام","3/1","مستجد",null,"مسائية"]
[{"$f":"IF(C313=\"\",\"\",SUBTOTAL(3,C$5:C313))","v":309},null,"طالب رقم 309","2003-01-20",16,"ذكر","ليبية","الاول","عام","3/1","مستجد","","مسائية"]
[{"$f":"IF(C314=\"\",\"\",SUBTOTAL(3,C$5:C314))","v":310},null,"طالب رقم 310","2001-12-15",17,"انثى","ليبية","الثالث","علمي","1/3","مستجد","","صباحية"]
[{"$f":"IF(C315=\"\",\"\",SUBTOTAL(3,C$5:C315))","v":311},null,"طالب رقم 311","2002-11-25",16,"انثى","فلسطينية","الثاني","علمي","2/2","مستجد","","صباحية"]
[{"$f":"IF(C316=\"\",\"\",SUBTOTAL(3,C$5:C316))","v":312},null,"طالب رقم 312","2000-08-21",18,"انثى","ليبية","الثالث","ادبي","1/3","مستجد","","صباحية"]
[{"$f":"IF(C317=\"\",\"\",SUBTOTAL(3,C$5:C317))","v":313},null,"طالب رقم 313","2004-03-01",15,"انثى","ليبية","الاول","عام","1/1","مستجد","","صباحية"]
[{"$f":"IF(C318=\"\",\"\",SUBTOTAL(3,C$5:C318))","v":314},null,"طالب رقم 314","2002-12-17",16,"انثى","ليبية","الثاني","علمي","4/2","مستجد","","صباحية"]
[{"$f":"IF(C319=\"\",\"\",SUBTOTAL(3,C$5:C319))","v":315},null,"طالب رقم 315","2002-10-01",16,"انثى","ليبية","الثاني","علمي","4/2","مستجد","","صباحية"]
[{"$f":"IF(C320=\"\",\"\",SUBTOTAL(3,C$5:C320))","v":316},null,"طالب رقم 316","2002-09-03",16,"انثى","ليبية","الثاني","علمي","4/2","مستجد","","صباحية"]
[{"$f":"IF(C321=\"\",\"\",SUBTOTAL(3,C$5:C321))","v":317},null,"طالب رقم 317","2002-09-02",16,"انثى","ليبية","الاول","عام","3/1","معيد","مرة واحدة","صباحية"]
[{"$f":"IF(C322=\"\",\"\",SUBTOTAL(3,C$5:C322))","v":318},null,"طالب رقم 318","2001-09-14",17,"انثى","ليبية","الثالث","علمي","1/3","مستجد","","صباحية"]
[{"$f":"IF(C323=\"\",\"\",SUBTOTAL(3,C$5:C323))","v":319},null,"طالب رقم 319","2003-09-23",15,"انثى","ليبية","الاول","عام","4/1","مستجد","","صباحية"]
[{"$f":"IF(C324=\"\",\"\",SUBTOTAL(3,C$5:C324))","v":320},null,"طالب رقم 320","2001-06-20",17,"انثى","ليبية","الثالث","علمي","1/3","مستجد","","صباحية"]
[{"$f":"IF(C325=\"\",\"\",SUBTOTAL(3,C$5:C325))","v":321},null,"طالب رقم 321","2003-11-03",{"$f":"DATEDIF(D325,TODAY(),\"Y\")","v":15},"انثى","ليبية","الاول","عام","3/1","مستجد","","صباحية"]
[{"$f":"IF(C326=\"\",\"\",SUBTOTAL(3,C$5:C326))","v":322},null,"طالب رقم 322","2003-03-07",15,"انثى","ليبية","الاول","عام","6/1","مستجد","","صباحية"]
[{"$f":"IF(C327=\"\",\"\",SUBTOTAL(3,C$5:C327))","v":323},null,"طالب رقم 323","2002-12-24",16,"انثى","ليبية","الاول","عام","2/1","مستجد","","صباحية"]
[{"$f":"IF(C328=\"\",\"\",SUBTOTAL(3,C$5:C328))","v":324},null,"طالب رقم 324","2001-04-19",17,"انثى","ليبية","الثالث","علمي","2/3","مستجد","","صباحية"]
[{"$f":"IF(C329=\"\",\"\",SUBTOTAL(3,C$5:C329))","v":325},null,"طالب رقم 325","2003-08-24",15,"ذكر","ليبية","الاول","عام","2/1","مستجد","","مسائية"]
[{"$f":"IF(C330=\"\",\"\",SUBTOTAL(3,C$5:C330))","v":326},null,"طالب رقم 326","2003-09-11",15,"ذكر","ليبية","الاول","عام","3/1","مستجد","","مسائية"]
[{"$f":"IF(C331=\"\",\"\",SUBTOTAL(3,C$5:C331))","v":327},null,"طالب رقم 327","2002-02-04",17,"انثى","ليبية","الثاني","ادبي","1/2","مستجد","","صباحية"]
[{"$f":"IF(C332=\"\",\"\",SUBTOTAL(3,C$5:C332))","v":328},null,"طالب رقم 328","2003-11-10",15,"انثى","ليبية","الاول","عام","2/1","مستجد","","صباحية"]
[{"$f":"IF(C333=\"\",\"\",SUBTOTAL(3,C$5:C333))","v":329},null,"طالب رقم 329","2003-11-25",15,"انثى","ليبية","الاول","عام","6/1","مستجد","","صباحية"]
[{"$f":"IF(C334=\"\",\"\",SUBTOTAL(3,C$5:C334))","v":330},null,"طالب رقم 330","2001/10/16",17,"انثى","ليبية","الثالث","علمي","2/3","مستجد","","صباحية"]
[{"$f":"IF(C335=\"\",\"\",SUBTOTAL(3,C$5:C335))","v":331},null,"طالب رقم 331","2003-12-17",15,"انثى","ليبية","الاول","عام","3/1","مستجد",null,"صباحية"]
[{"$f":"IF(C336=\"\",\"\",SUBTOTAL(3,C$5:C336))","v":332},null,"طالب رقم 332","2001-01-31",18,"انثى","ليبية","الثالث","علمي","2/3","مستجد","","صباحية"]
[{"$f":"IF(C337=\"\",\"\",SUBTOTAL(3,C$5:C337))","v":333},null,"طالب رقم 333","2003-06-10",15,"انثى","ليبية","الاول","عام","1/1","مستجد","","صباحية"]
[{"$f":"IF(C338=\"\",\"\",SUBTOTAL(3,C$5:C338))","v":334},null,"طالب رقم 334","2003-12-15",15,"انثى","ليبية","الاول","عام","4/1","مستجد","","صباحية"]
[{"$f":"IF(C339=\"\",\"\",SUBTOTAL(3,C$5:C339))","v":335},null,"طالب رقم 335","2003-02-27",16,"انثى","ليبية","الاول","عام","6/1","مستجد","","صباحية"]
[{"$f":"IF(C340=\"\",\"\",SUBTOTAL(3,C$5:C340))","v":336},null,"طالب رقم 336","2003-09-18",15,"انثى","ليبية","الاول","عام","6/1","مستجد","","صباحية"]
[{"$f":"IF(C341=\"\",\"\",SUBTOTAL(3,C$5:C341))","v":337},null,"طالب رقم 337","2001-09-01",17,"انثى","ليبية","الثالث","علمي","1/3","مستجد","","صباحية"]
[{"$f":"IF(C342=\"\",\"\",SUBTOTAL(3,C$5:C342))","v":338},null,"طالب رقم 338","2001-12-03",17,"انثى","ليبية","الثالث","علمي","3/3","مستجد","","صباحية"]
[{"$f":"IF(C343=\"\",\"\",SUBTOTAL(3,C$5:C343))","v":339},null,"طالب رقم 339","2002-01-22",17,"انثى","ليبية","الثاني","ادبي","1/2","مستجد","","صباحية"]
[{"$f":"IF(C344=\"\",\"\",SUBTOTAL(3,C$5:C344))","v":340},null,"طالب رقم 340","2003-03-30",15,"انثى","ليبية","الاول","عام","3/1","مستجد","","صباحية"]
[{"$f":"IF(C345=\"\",\"\",SUBTOTAL(3,C$5:C345))","v":341},null,"طالب رقم 341","2002-10-14",16,"انثى","ليبية","الثاني","علمي","1/2","مستجد","","صباحية"]
[{"$f":"IF(C346=\"\",\"\",SUBTOTAL(3,C$5:C346))","v":342},null,"طالب رقم 342","2003-05-26",15,"انثى","ليبية","الاول","عام","1/1","مستجد","","صباحية"]
[{"$f":"IF(C347=\"\",\"\",SUBTOTAL(3,C$5:C347))","v":343},null,"طالب رقم 343","2002-12-08",16,"ذكر","ليبية","الثاني","علمي","3/2","مستجد","","مسائية"]
[{"$f":"IF(C348=\"\",\"\",SUBTOTAL(3,C$5:C348))","v":344},null,"طالب رقم 344","2002-02-14",17,"ذكر","ليبية","الثاني","علمي","1/2","مستجد","","مسائية"]
[{"$f":"IF(C349=\"\",\"\",SUBTOTAL(3,C$5:C349))","v":345},null,"طالب رقم 345","2000-11-10",18,"ذكر","ليبية","الثالث","علمي","4/3","معيد","مرة واحدة","صباحية"]
[{"$f":"IF(C350=\"\",\"\",SUBTOTAL(3,C$5:C350))","v":346},null,"طالب رقم 346","2000-01-12",19,"انثى","ليبية","الثالث","ادبي","1/3","مستجد","","صباحية"]
[{"$f":"IF(C351=\"\",\"\",SUBTOTAL(3,C$5:C351))","v":347},null,"طالب رقم 347","2003-07-27",15,"انثى","ليبية","الاول","عام","3/1","مستجد","","صباحية"]
[{"$f":"IF(C352=\"\",\"\",SUBTOTAL(3,C$5:C352))","v":348},null,"طالب رقم 348","2001-08-03",17,"انثى","ليبية","الثاني","ادبي","1/2","مستجد","","صباحية"]
[{"$f":"IF(C353=\"\",\"\",SUBTOTAL(3,C$5:C353))","v":349},null,"طالب رقم 349","2001-10-04",17,"انثى","ليبية","الثالث","علمي","1/3","مستجد","","صباحية"]
[{"$f":"IF(C354=\"\",\"\",SUBTOTAL(3,C$5:C354))","v":350},null,"طالب رقم 350","2001-10-15",17,"انثى","ليبية","الثالث","علمي","3/3","مستجد","","صباحية"]
[{"$f":"IF(C355=\"\",\"\",SUBTOTAL(3,C$5:C355))","v":351},null,"طالب رقم 351","2002-07-05",16,"انثى","ليبية","الثاني","ادبي","1/2","مستجد","","صباحية"]
[{"$f":"IF(C356=\"\",\"\",SUBTOTAL(3,C$5:C356))","v":352},null,"طالب رقم 352","2001-11-24",17,"انثى","ليبية","الثالث","علمي","3/3","مستجد",null,"صباحية"]
[{"$f":"IF(C357=\"\",\"\",SUBTOTAL(3,C$5:C357))","v":353},null,"طالب رقم 353","2002-07-28",16,"انثى","ليبية","الثاني","ادبي","1/2","مستجد","","صباحية"]
[{"$f":"IF(C358=\"\",\"\",SUBTOTAL(3,C$5:C358))","v":354},null,"طالب رقم 354","2002-06-15",16,"انثى","ليبية","الثاني","علمي","2/2","مستجد","","صباحية"]
[{"$f":"IF(C359=\"\",\"\",SUBTOTAL(3,C$5:C359))","v":355},null,"طالب رقم 355","2003-08-03",15,"انثى","ليبية","الاول","عام","5/1","مستجد","","صباحية"]
[{"$f":"IF(C360=\"\",\"\",SUBTOTAL(3,C$5:C360))","v":356},null,"طالب رقم 356","2003-07-11",15,"انثى","ليبية","الاول","عام","4/1","مستجد","","صباحية"]
[{"$f":"IF(C361=\"\",\"\",SUBTOTAL(3,C$5:C361))","v":357},null,"طالب رقم 357","2001-09-02",17,"انثى","ليبية","الثالث","علمي","2/3","مستجد","","صباحية"]
[{"$f":"IF(C362=\"\",\"\",SUBTOTAL(3,C$5:C362))","v":358},null,"طالب رقم 358","2003-06-02",15,"ذكر","ليبية","الاول","عام","5/1","مستجد","","مسائية"]
[{"$f":"IF(C363=\"\",\"\",SUBTOTAL(3,C$5:C363))","v":359},null,"طالب رقم 359","2001-08-24",17,"ذكر","ليبية","الثالث","علمي","5/3","مستجد","","صباحية"]
[{"$f":"IF(C364=\"\",\"\",SUBTOTAL(3,C$5:C364))","v":360},null,"طالب رقم 360","2003-11-26",15,"ذكر","ليبية","الاول","عام","1/1","مستجد","","مسائية"]
[{"$f":"IF(C365=\"\",\"\",SUBTOTAL(3,C$5:C365))","v":361},null,"طالب رقم 361","2003-12-05",15,"ذكر","ليبية","الاول","عام","5/1","مستجد","","مسائية"]
[{"$f":"IF(C366=\"\",\"\",SUBTOTAL(3,C$5:C366))","v":362},null,"طالب رقم 362","2001-12-28",17,"ذكر","ليبية","الثالث","علمي","4/3","مستجد","","صباحية"]
[{"$f":"IF(C367=\"\",\"\",SUBTOTAL(3,C$5:C367))","v":363},null,"طالب رقم 363","2003-11-20",15,"انثى","ليبية","الاول","عام","5/1","مستجد","","صباحية"]
[{"$f":"IF(C368=\"\",\"\",SUBTOTAL(3,C$5:C368))","v":364},null,"طالب رقم 364","2003-03-22",15,"انثى","ليبية","الاول","عام","3/1","مستجد","","صباحية"]
[{"$f":"IF(C369=\"\",\"\",SUBTOTAL(3,C$5:C369))","v":365},null,"طالب رقم 365","2003-11-01",15,"انثى","ليبية","الاول","عام","2/1","مستجد","","صباحية"]
[{"$f":"IF(C370=\"\",\"\",SUBTOTAL(3,C$5:C370))","v":366},null,"طالب رقم 366","2002-07-15",16,"ذكر","ليبية","الثاني","علمي","2/2","مستجد","","مسائية"]
[{"$f":"IF(C371=\"\",\"\",SUBTOTAL(3,C$5:C371))","v":367},null,"طالب رقم 367","2001-08-15",17,"انثى","جزائرية","الثالث","علمي","3/3","مستجد","","صباحية"]
[{"$f":"IF(C372=\"\",\"\",SUBTOTAL(3,C$5:C372))","v":368},null,"طالب رقم 368","2002-08-04",16,"ذكر","ليبية","الاول","عام","6/1","معيد","مرة واحدة","مسائية"]
[{"$f":"IF(C373=\"\",\"\",SUBTOTAL(3,C$5:C373))","v":369},null,"طالب رقم 369","2003-08-31",15,"ذكر","ليبية","الاول","عام","3/1","مستجد","","مسائية"]
[{"$f":"IF(C374=\"\",\"\",SUBTOTAL(3,C$5:C374))","v":370},null,"طالب رقم 370","2001-07-22",17,"ذكر","ليبية","الثالث","علمي","6/3","مستجد","","صباحية"]
[{"$f":"IF(C375=\"\",\"\",SUBTOTAL(3,C$5:C375))","v":371},null,"طالب رقم 371","2003-08-10",15,"انثى","ليبية","الاول","عام","2/1","مستجد","","صباحية"]
[{"$f":"IF(C376=\"\",\"\",SUBTOTAL(3,C$5:C376))","v":372},null,"طالب رقم 372","2003-03-27",15,"انثى","ليبية","الاول","عام","5/1","مستجد","","صباحية"]
[{"$f":"IF(C377=\"\",\"\",SUBTOTAL(3,C$5:C377))","v":373},null,"طالب رقم 373","2002-05-30",16,"انثى","ليبية","الاول","عام","4/1","مستجد","","صباحية"]
[{"$f":"IF(C378=\"\",\"\",SUBTOTAL(3,C$5:C378))","v":374},null,"طالب رقم 374","2002-09-13",16,"انثى","ليبية","الثاني","علمي","3/2","مستجد","","صباحية"]
[{"$f":"IF(C379=\"\",\"\",SUBTOTAL(3,C$5:C379))","v":375},null,"طالب رقم 375","2002-03-13",16,"انثى","ليبية","الثاني","علمي","3/2","مستجد","","صباحية"]
[{"$f":"IF(C380=\"\",\"\",SUBTOTAL(3,C$5:C380))","v":376},null,"طالب رقم 376","2003-11-08",15,"انثى","ليبية","الاول","عام","3/1","مستجد","","صباحية"]
[{"$f":"IF(C381=\"\",\"\",SUBTOTAL(3,C$5:C381))","v":377},null,"طالب رقم 377","2002-09-01",16,"ذكر","ليبية","الثاني","علمي","2/2","مستجد","","مسائية"]
[{"$f":"IF(C382=\"\",\"\",SUBTOTAL(3,C$5:C382))","v":378},null,"طالب رقم 378","2002-01-17",17,"انثى","ليبية","الثاني","علمي","2/2","مستجد","","صباحية"]
[{"$f":"IF(C383=\"\",\"\",SUBTOTAL(3,C$5:C383))","v":379},null,"طالب رقم 379","2001-08-16",17,"انثى","ليبية","الثالث","علمي","2/3","مستجد","","صباحية"]
[{"$f":"IF(C384=\"\",\"\",SUBTOTAL(3,C$5:C384))","v":380},null,"طالب رقم 380","2002-11-01",16,"انثى","ليبية","الاول","عام","3/1","معيد","مرة واحدة","صباحية"]
[{"$f":"IF(C385=\"\",\"\",SUBTOTAL(3,C$5:C385))","v":381},null,"طالب رقم 381","2003-01-04",16,"انثى","ليبية","الاول","عام","2/1","مستجد","","صباحية"]
[{"$f":"IF(C386=\"\",\"\",SUBTOTAL(3,C$5:C386))","v":382},null,"طالب رقم 382","2003-09-05",15,"انثى","ليبية","الاول","عام","4/1","مستجد",null,"صباحية"]
[{"$f":"IF(C387=\"\",\"\",SUBTOTAL(3,C$5:C387))","v":383},null,"طالب رقم 383","2003-10-28",15,"انثى","ليبية","الاول","عام","3/1","مستجد","","صباحية"]
[{"$f":"IF(C388=\"\",\"\",SUBTOTAL(3,C$5:C388))","v":384},null,"طالب رقم 384","2001-09-25",17,"ذكر","ليبية","الثالث","علمي","6/3","مستجد","","صباحية"]
[{"$f":"IF(C389=\"\",\"\",SUBTOTAL(3,C$5:C389))","v":385},null,"طالب رقم 385","2002-06-27",{"$f":"DATEDIF(D389,TODAY(),\"Y\")","v":16},"ذكر","ليبية","الثاني","علمي","2/2","مستجد","","مسائية"]
[{"$f":"IF(C390=\"\",\"\",SUBTOTAL(3,C$5:C390))","v":386},null,"طالب رقم 386","2001-08-13",17,"ذكر","ليبية","الثالث","علمي","5/3","مستجد","","صباحية"]
[{"$f":"IF(C391=\"\",\"\",SUBTOTAL(3,C$5:C391))","v":387},null,"طالب رقم 387","2002-08-10",16,"انثى","ليبية","الثاني","علمي","3/2","مستجد","","صباحية"]
[{"$f":"IF(C392=\"\",\"\",SUBTOTAL(3,C$5:C392))","v":388},null,"طالب رقم 388","2002-11-16",16,"انثى","فلسطينية","الثاني","علمي","3/2","مستجد","","صباحية"]
[{"$f":"IF(C393=\"\",\"\",SUBTOTAL(3,C$5:C393))","v":389},null,"طالب رقم 389","2001-05-02",17,"انثى","ليبية","الثالث","علمي","3/3","مستجد","","صباحية"]
[{"$f":"IF(C394=\"\",\"\",SUBTOTAL(3,C$5:C394))","v":390},null,"طالب رقم 390","2001-09-16",17,"انثى","ليبية","الثالث","علمي","2/3","مستجد","","صباحية"]
[{"$f":"IF(C395=\"\",\"\",SUBTOTAL(3,C$5:C395))","v":391},null,"طالب رقم 391","2002-03-03",17,"انثى","ليبية","الثاني","علمي","2/2","مستجد","","صباحية"]
[{"$f":"IF(C396=\"\",\"\",SUBTOTAL(3,C$5:C396))","v":392},null,"طالب رقم 392","2003-12-14",15,"انثى","ليبية","الاول","عام","3/1","مستجد","","صباحية"]
[{"$f":"IF(C397=\"\",\"\",SUBTOTAL(3,C$5:C397))","v":393},null,"طالب رقم 393","2002-05-15",16,"انثى","ليبية","الاول","عام","3/1","معيد","مرة واحدة","صباحية"]
[{"$f":"IF(C398=\"\",\"\",SUBTOTAL(3,C$5:C398))","v":394},null,"طالب رقم 394","2001-12-24",17,"ذكر","ليبية","الثالث","علمي","6/3","مستجد","","صباحية"]
[{"$f":"IF(C399=\"\",\"\",SUBTOTAL(3,C$5:C399))","v":395},null,"طالب رقم 395","2001-06-09",17,"ذكر","ليبية","الثالث","علمي","4/3","مستجد","","صباحية"]
[{"$f":"IF(C400=\"\",\"\",SUBTOTAL(3,C$5:C400))","v":396},null,"طالب رقم 396","2001-08-09",17,"انثى","سورية","الثاني","علمي","3/2","مستجد","","صباحية"]
[{"$f":"IF(C401=\"\",\"\",SUBTOTAL(3,C$5:C401))","v":397},null,"طالب رقم 397","2001-08-23",17,"انثى","ليبية","الثالث","علمي","2/3","مستجد","","صباحية"]
[{"$f":"IF(C402=\"\",\"\",SUBTOTAL(3,C$5:C402))","v":398},null,"طالب رقم 398","2003-01-03",16,"انثى","ليبية","الاول","عام","1/1","مستجد","","صباحية"]
[{"$f":"IF(C403=\"\",\"\",SUBTOTAL(3,C$5:C403))","v":399},null,"طالب رقم 399","2003-09-03",15,"انثى","ليبية","الاول","عام","2/1","مستجد","","صباحية"]
[{"$f":"IF(C404=\"\",\"\",SUBTOTAL(3,C$5:C404))","v":400},null,"طالب رقم 400","2003-12-25",15,"انثى","ليبية","الاول","عام","1/1","مستجد","","صباحية"]
[{"$f":"IF(C405=\"\",\"\",SUBTOTAL(3,C$5:C405))","v":401},null,"طالب رقم 401","2003-07-26",15,"ذكر","ليبية","الاول","عام","1/1","مستجد","","مسائية"]
[{"$f":"IF(C406=\"\",\"\",SUBTOTAL(3,C$5:C406))","v":402},null,"طالب رقم 402","2002-09-28",16,"انثى","ليبية","الاول","عام","6/1","مستجد","","صباحية"]
[{"$f":"IF(C407=\"\",\"\",SUBTOTAL(3,C$5:C407))","v":403},null,"طالب رقم 403","2003-06-04",15,"انثى","ليبية","الاول","عام","6/1","مستجد","","صباحية"]
[{"$f":"IF(C408=\"\",\"\",SUBTOTAL(3,C$5:C408))","v":404},null,"طالب رقم 404","2002-06-20",16,"انثى","ليبية","الثاني","علمي","4/2","مستجد","","صباحية"]
[{"$f":"IF(C409=\"\",\"\",SUBTOTAL(3,C$5:C409))","v":405},null,"طالب رقم 405","2003-10-13",15,"انثى","ليبية","الاول","عام","4/1","مستجد","","صباحية"]
[{"$f":"IF(C410=\"\",\"\",SUBTOTAL(3,C$5:C410))","v":406},null,"طالب رقم 406","2002-08-30",16,"انثى","ليبية","الثاني","علمي","1/2","مستجد","","صباحية"]
[{"$f":"IF(C411=\"\",\"\",SUBTOTAL(3,C$5:C411))","v":407},null,"طالب رقم 407","2002-12-06",16,"انثى","ليبية","الثاني","علمي","4/2","مستجد","","صباحية"]
[{"$f":"IF(C412=\"\",\"\",SUBTOTAL(3,C$5:C412))","v":408},null,"طالب رقم 408","2003-09-17",15,"انثى","ليبية","الاول","عام","3/1","مستجد","","صباحية"]
[{"$f":"IF(C413=\"\",\"\",SUBTOTAL(3,C$5:C413))","v":409},null,"طالب رقم 409","2003-09-01",15,"انثى","ليبية","الاول","عام","5/1","مستجد","","صباحية"]
[{"$f":"IF(C414=\"\",\"\",SUBTOTAL(3,C$5:C414))","v":410},null,"طالب رقم 410","2002-10-23",16,"انثى","ليبية","الثاني","ادبي","1/2","مستجد","","صباحية"]
[{"$f":"IF(C415=\"\",\"\",SUBTOTAL(3,C$5:C415))","v":411},null,"طالب رقم 411","2003-07-12",15,"انثى","ليبية","الاول","عام","1/1","مستجد","","صباحية"]
[{"$f":"IF(C416=\"\",\"\",SUBTOTAL(3,C$5:C416))","v":412},null,"طالب رقم 412","2002-07-12",16,"انثى","ليبية","الثاني","ادبي","1/2","مستجد","","صباحية"]
[{"$f":"IF(C417=\"\",\"\",SUBTOTAL(3,C$5:C417))","v":413},null,"طالب رقم 413","2002-05-17",16,"انثى","ليبية","الثاني","ادبي","1/2","مستجد","","صباحية"]
[{"$f":"IF(C418=\"\",\"\",SUBTOTAL(3,C$5:C418))","v":414},null,"طالب رقم 414","2003-06-09",15,"انثى","ليبية","الاول","عام","2/1","مستجد","","صباحية"]
[{"$f":"IF(C419=\"\",\"\",SUBTOTAL(3,C$5:C419))","v":415},null,"طالب رقم 415","2003-04-27",15,"انثى","ليبية","الاول","عام","1/1","مستجد",null,"صباحية"]
[{"$f":"IF(C420=\"\",\"\",SUBTOTAL(3,C$5:C420))","v":416},null,"طالب رقم 416","2003-05-12",15,"انثى","ليبية","الاول","عام","6/1","مستجد","","صباحية"]
[{"$f":"IF(C421=\"\",\"\",SUBTOTAL(3,C$5:C421))","v":417},null,"طالب رقم 417","2003-07-05",15,"انثى","ليبية","الاول","عام","5/1","مستجد",null,"صباحية"]
[{"$f":"IF(C422=\"\",\"\",SUBTOTAL(3,C$5:C422))","v":418},null,"طالب رقم 418","2002-11-09",16,"انثى","ليبية","الاول","عام","2/1","معيد","مرة واحدة","صباحية"]
[{"$f":"IF(C423=\"\",\"\",SUBTOTAL(3,C$5:C423))","v":419},null,"طالب رقم 419","2002-01-18",17,"انثى","ليبية","الثاني","علمي","3/2","مستجد","","صباحية"]
[{"$f":"IF(C424=\"\",\"\",SUBTOTAL(3,C$5:C424))","v":420},null,"طالب رقم 420","2003-10-09",15,"انثى","فلسطينية","الاول","عام","5/1","مستجد",null,"صباحية"]
[{"$f":"IF(C425=\"\",\"\",SUBTOTAL(3,C$5:C425))","v":421},null,"طالب رقم 421","2003-07-14",15,"انثى","ليبية","الاول","عام","1/1","مستجد","","صباحية"]
[{"$f":"IF(C426=\"\",\"\",SUBTOTAL(3,C$5:C426))","v":422},null,"طالب رقم 422","2003-11-17",15,"انثى","ليبية","الاول","عام","4/1","مستجد","","صباحية"]
[{"$f":"IF(C427=\"\",\"\",SUBTOTAL(3,C$5:C427))","v":423},null,"طالب رقم 423","2001-08-03",17,"انثى","ليبية","الثاني","علمي","1/2","مستجد","","صباحية"]
[{"$f":"IF(C428=\"\",\"\",SUBTOTAL(3,C$5:C428))","v":424},null,"طالب رقم 424","2002-05-25",16,"انثى","ليبية","الثاني","ادبي","1/2","مستجد","","صباحية"]
[{"$f":"IF(C429=\"\",\"\",SUBTOTAL(3,C$5:C429))","v":425},null,"طالب رقم 425","2002-01-13",17,"انثى","ليبية","الثاني","ادبي","1/2","مستجد","","صباحية"]
[{"$f":"IF(C430=\"\",\"\",SUBTOTAL(3,C$5:C430))","v":426},null,"طالب رقم 426","2003-09-11",15,"انثى","ليبية","الاول","عام","1/1","مستجد","","صباحية"]
[{"$f":"IF(C431=\"\",\"\",SUBTOTAL(3,C$5:C431))","v":427},null,"طالب رقم 427","2001-05-13",17,"ذكر","ليبية","الثالث","علمي","5/3","مستجد","","صباحية"]
[{"$f":"IF(C432=\"\",\"\",SUBTOTAL(3,C$5:C432))","v":428},null,"طالب رقم 428","2002-05-04",16,"انثى","ليبية","الثاني","علمي","1/2","مستجد","","صباحية"]
[{"$f":"IF(C433=\"\",\"\",SUBTOTAL(3,C$5:C433))","v":429},null,"طالب رقم 429","2001-03-04",18,"ذكر","ليبية","الثاني","علمي","3/2","معيد","مرة واحدة","مسائية"]
[{"$f":"IF(C434=\"\",\"\",SUBTOTAL(3,C$5:C434))","v":430},null,"طالب رقم 430","2002-01-06",17,"ذكر","ليبية","الثاني","علمي","3/2","مستجد","","مسائية"]
[{"$f":"IF(C435=\"\",\"\",SUBTOTAL(3,C$5:C435))","v":431},null,"طالب رقم 431","2002-06-11",16,"ذكر","ليبية","الثاني","علمي","2/2","مستجد","","مسائية"]
[{"$f":"IF(C436=\"\",\"\",SUBTOTAL(3,C$5:C436))","v":432},null,"طالب رقم 432","2003-06-01",15,"ذكر","ليبية","الاول","عام","3/1","مستجد","","مسائية"]
[{"$f":"IF(C437=\"\",\"\",SUBTOTAL(3,C$5:C437))","v":433},null,"طالب رقم 433","2001-10-12",17,"ذكر","ليبية","الثالث","علمي","6/3","مستجد","","صباحية"]
[{"$f":"IF(C438=\"\",\"\",SUBTOTAL(3,C$5:C438))","v":434},null,"طالب رقم 434","2003-08-25",15,"انثى","ليبية","الاول","عام","6/1","مستجد","","صباحية"]
[{"$f":"IF(C439=\"\",\"\",SUBTOTAL(3,C$5:C439))","v":435},null,"طالب رقم 435","2003-08-30",15,"انثى","ليبية","الاول","عام","3/1","مستجد","","صباحية"]
[{"$f":"IF(C440=\"\",\"\",SUBTOTAL(3,C$5:C440))","v":436},null,"طالب رقم 436","2003-08-03",15,"انثى","ليبية","الاول","عام","3/1","مستجد","","صباحية"]
[{"$f":"IF(C441=\"\",\"\",SUBTOTAL(3,C$5:C441))","v":437},null,"طالب رقم 437","2002-12-02",16,"انثى","ليبية","الثاني","علمي","2/2","مستجد","","صباحية"]
[{"$f":"IF(C442=\"\",\"\",SUBTOTAL(3,C$5:C442))","v":438},null,"طالب رقم 438","2001-11-18",17,"انثى","ليبية","الثالث","علمي","1/3","مستجد","","صباحية"]
[{"$f":"IF(C443=\"\",\"\",SUBTOTAL(3,C$5:C443))","v":439},null,"طالب رقم 439","2002-01-30",17,"انثى","ليبية","الثاني","ادبي","1/2","مستجد","","صباحية"]
[{"$f":"IF(C444=\"\",\"\",SUBTOTAL(3,C$5:C444))","v":440},null,"طالب رقم 440","2003-01-16",16,"انثى","ليبية","الاول","عام","2/1","مستجد","","صباحية"]
[{"$f":"IF(C445=\"\",\"\",SUBTOTAL(3,C$5:C445))","v":441},null,"طالب رقم 441","2001-12-08",17,"انثى","ليبية","الثالث","علمي","3/3","مستجد","","صباحية"]
[{"$f":"IF(C446=\"\",\"\",SUBTOTAL(3,C$5:C446))","v":442},null,"طالب رقم 442","2001-07-29",17,"انثى","ليبية","الثالث","علمي","1/3","مستجد","","صباحية"]
[{"$f":"IF(C447=\"\",\"\",SUBTOTAL(3,C$5:C447))","v":443},null,"طالب رقم 443","2003-06-11",15,"انثى","ليبية","الاول","عام","2/1","مستجد","","صباحية"]
[{"$f":"IF(C448=\"\",\"\",SUBTOTAL(3,C$5:C448))","v":444},null,"طالب رقم 444","2003-02-11",16,"انثى","ليبية","الاول","عام","1/1","مستجد","","صباحية"]
[{"$f":"IF(C449=\"\",\"\",SUBTOTAL(3,C$5:C449))","v":445},null,"طالب رقم 445","2003-08-13",15,"انثى","ليبية","الاول","عام","2/1","مستجد","","صباحية"]
[{"$f":"IF(C450=\"\",\"\",SUBTOTAL(3,C$5:C450))","v":446},null,"طالب رقم 446","2003-05-27",15,"ذكر","ليبية","الاول","عام","1/1","مستجد","","مسائية"]
[{"$f":"IF(C451=\"\",\"\",SUBTOTAL(3,C$5:C451))","v":447},null,"طالب رقم 447","2002-09-07",16,"ذكر","ليبية","الثاني","علمي","1/2","مستجد","","مسائية"]
[{"$f":"IF(C452=\"\",\"\",SUBTOTAL(3,C$5:C452))","v":448},null,"طالب رقم 448","2002-10-02",16,"ذكر","ليبية","الثاني","علمي","1/2","مستجد","","مسائية"]
[{"$f":"IF(C453=\"\",\"\",SUBTOTAL(3,C$5:C453))","v":449},null,"طالب رقم 449","2001-07-13",{"$f":"DATEDIF(D453,TODAY(),\"Y\")","v":17},"ذكر","ليبية","الاول","عام","5/1","معيد","مرة واحدة","مسائية"]
[{"$f":"IF(C454=\"\",\"\",SUBTOTAL(3,C$5:C454))","v":450},null,"طالب رقم 450","2003-04-21",15,"ذكر","ليبية","الاول","عام","5/1","مستجد","","مسائية"]
[{"$f":"IF(C455=\"\",\"\",SUBTOTAL(3,C$5:C455))","v":451},null,"طالب رقم 451","2001-04-12",17,"ذكر","ليبية","الثالث","علمي","4/3","مستجد","","صباحية"]
[{"$f":"IF(C456=\"\",\"\",SUBTOTAL(3,C$5:C456))","v":452},null,"طالب رقم 452","2003-11-09",15,"ذكر","ليبية","الاول","عام","3/1","مستجد","","مسائية"]
[{"$f":"IF(C457=\"\",\"\",SUBTOTAL(3,C$5:C457))","v":453},null,"طالب رقم 453","2003-02-22",16,"ذكر","ليبية","الاول","عام","6/1","مستجد","","مسائية"]
[{"$f":"IF(C458=\"\",\"\",SUBTOTAL(3,C$5:C458))","v":454},null,"طالب رقم 454","2003-12-22",15,"ذكر","ليبية","الاول","عام","3/1","مستجد","","مسائية"]
[{"$f":"IF(C459=\"\",\"\",SUBTOTAL(3,C$5:C459))","v":455},null,"طالب رقم 455","2002-03-16",16,"ذكر","ليبية","الاول","عام","4/1","معيد","مرة واحدة","مسائية"]
[{"$f":"IF(C460=\"\",\"\",SUBTOTAL(3,C$5:C460))","v":456},null,"طالب رقم 456","2002-07-22",16,"ذكر","ليبية","الثاني","علمي","3/2","مستجد","","مسائية"]
[{"$f":"IF(C461=\"\",\"\",SUBTOTAL(3,C$5:C461))","v":457},null,"طالب رقم 457","2003-11-16",15,"ذكر","ليبية","الاول","عام","6/1","مستجد","","مسائية"]
[{"$f":"IF(C462=\"\",\"\",SUBTOTAL(3,C$5:C462))","v":458},null,"طالب رقم 458","2003-05-06",15,"ذكر","ليبية","الاول","عام","6/1","مستجد","","مسائية"]
[{"$f":"IF(C463=\"\",\"\",SUBTOTAL(3,C$5:C463))","v":459},null,"طالب رقم 459","2003-12-22",15,"ذكر","ليبية","الاول","عام","5/1","مستجد","","مسائية"]
[{"$f":"IF(C464=\"\",\"\",SUBTOTAL(3,C$5:C464))","v":460},null,"طالب رقم 460","2003-11-28",15,"ذكر","ليبية","الاول","عام","4/1","مستجد","","مسائية"]
[{"$f":"IF(C465=\"\",\"\",SUBTOTAL(3,C$5:C465))","v":461},null,"طالب رقم 461","2002-09-28",16,"ذكر","ليبية","الثاني","علمي","1/2","مستجد","","مسائية"]
[{"$f":"IF(C466=\"\",\"\",SUBTOTAL(3,C$5:C466))","v":462},null,"طالب رقم 462","2000-06-22",18,"ذكر","ليبية","الثاني","علمي","3/2","معيد","مرة واحدة","مسائية"]
[{"$f":"IF(C467=\"\",\"\",SUBTOTAL(3,C$5:C467))","v":463},null,"طالب رقم 463","2003-02-02",16,"ذكر","ليبية","الاول","عام","3/1","مستجد","","مسائية"]
[{"$f":"IF(C468=\"\",\"\",SUBTOTAL(3,C$5:C468))","v":464},null,"طالب رقم 464","2003-09-18",15,"ذكر","ليبية","الاول","عام","1/1","مستجد","","مسائية"]
[{"$f":"IF(C469=\"\",\"\",SUBTOTAL(3,C$5:C469))","v":465},null,"طالب رقم 465","2002-07-04",16,"ذكر","ليبية","الثاني","علمي","3/2","مستجد","","مسائية"]
[{"$f":"IF(C470=\"\",\"\",SUBTOTAL(3,C$5:C470))","v":466},null,"طالب رقم 466","2003-11-09",15,"ذكر","ليبية","الاول","عام","1/1","مستجد","","مسائية"]
[{"$f":"IF(C471=\"\",\"\",SUBTOTAL(3,C$5:C471))","v":467},null,"طالب رقم 467","2002-11-30",16,"ذكر","ليبية","الثاني","علمي","1/2","مستجد","","مسائية"]
[{"$f":"IF(C472=\"\",\"\",SUBTOTAL(3,C$5:C472))","v":468},null,"طالب رقم 468","2001-08-05",17,"ذكر","ليبية","الثالث","علمي","5/3","مستجد","","صباحية"]
[{"$f":"IF(C473=\"\",\"\",SUBTOTAL(3,C$5:C473))","v":469},null,"طالب رقم 469","2003-07-28",15,"ذكر","ليبية","الاول","عام","5/1","مستجد","","مسائية"]
[{"$f":"IF(C474=\"\",\"\",SUBTOTAL(3,C$5:C474))","v":470},null,"طالب رقم 470","2002-12-25",16,"ذكر","ليبية","الثاني","علمي","2/2","مستجد","","مسائية"]
[{"$f":"IF(C475=\"\",\"\",SUBTOTAL(3,C$5:C475))","v":471},null,"طالب رقم 471","2003-02-21",16,"ذكر","ليبية","الاول","عام","3/1","مستجد","","مسائية"]
[{"$f":"IF(C476=\"\",\"\",SUBTOTAL(3,C$5:C476))","v":472},null,"طالب رقم 472","2003-12-20",15,"ذكر","ليبية","الاول","عام","5/1","مستجد",null,"مسائية"]
[{"$f":"IF(C477=\"\",\"\",SUBTOTAL(3,C$5:C477))","v":473},null,"طالب رقم 473","2003-03-09",15,"ذكر","ليبية","الاول","عام","2/1","مستجد","","مسائية"]
[{"$f":"IF(C478=\"\",\"\",SUBTOTAL(3,C$5:C478))","v":474},null,"طالب رقم 474","2001-04-24",17,"ذكر","ليبية","الثالث","علمي","5/3","مستجد","","صباحية"]
[{"$f":"IF(C479=\"\",\"\",SUBTOTAL(3,C$5:C479))","v":475},null,"طالب رقم 475","2003-01-19",16,"ذكر","ليبية","الاول","عام","6/1","مستجد","","مسائية"]
[{"$f":"IF(C480=\"\",\"\",SUBTOTAL(3,C$5:C480))","v":476},null,"طالب رقم 476","2003-03-26",15,"ذكر","ليبية","الاول","عام","3/1","مستجد","","مسائية"]
[{"$f":"IF(C481=\"\",\"\",SUBTOTAL(3,C$5:C481))","v":477},null,"طالب رقم 477","2003-05-28",15,"ذكر","ليبية","الاول","عام","1/1","مستجد","","مسائية"]
[{"$f":"IF(C482=\"\",\"\",SUBTOTAL(3,C$5:C482))","v":478},null,"طالب رقم 478","2003-03-22",15,"ذكر","ليبية","الاول","عام","1/1","مستجد","","مسائية"]
[{"$f":"IF(C483=\"\",\"\",SUBTOTAL(3,C$5:C483))","v":479},null,"طالب رقم 479","2003-02-01",16,"ذكر","ليبية","الاول","عام","3/1","مستجد","","مسائية"]
[{"$f":"IF(C484=\"\",\"\",SUBTOTAL(3,C$5:C484))","v":480},null,"طالب رقم 480","2003-03-16",15,"ذكر","ليبية","الاول","عام","1/1","مستجد","","مسائية"]
[{"$f":"IF(C485=\"\",\"\",SUBTOTAL(3,C$5:C485))","v":481},null,"طالب رقم 481","2003-04-07",15,"ذكر","ليبية","الاول","عام","2/1","مستجد","","مسائية"]
[{"$f":"IF(C486=\"\",\"\",SUBTOTAL(3,C$5:C486))","v":482},null,"طالب رقم 482","2003-11-29",15,"ذكر","ليبية","الاول","عام","4/1","مستجد","","مسائية"]
[{"$f":"IF(C487=\"\",\"\",SUBTOTAL(3,C$5:C487))","v":483},null,"طالب رقم 483","2003-02-05",16,"ذكر","ليبية","الاول","عام","1/1","مستجد","","مسائية"]
[{"$f":"IF(C488=\"\",\"\",SUBTOTAL(3,C$5:C488))","v":484},null,"طالب رقم 484","2001-07-26",17,"ذكر","ليبية","الثالث","علمي","5/3","مستجد","","صباحية"]
[{"$f":"IF(C489=\"\",\"\",SUBTOTAL(3,C$5:C489))","v":485},null,"طالب رقم 485","2002-10-12",16,"ذكر","ليبية","الثاني","علمي","3/2","مستجد","","مسائية"]
[{"$f":"IF(C490=\"\",\"\",SUBTOTAL(3,C$5:C490))","v":486},null,"طالب رقم 486","2003-10-22",15,"ذكر","ليبية","الاول","عام","4/1","مستجد","","مسائية"]
[{"$f":"IF(C491=\"\",\"\",SUBTOTAL(3,C$5:C491))","v":487},null,"طالب رقم 487","2003-08-18",15,"ذكر","ليبية","الاول","عام","1/1","مستجد","","مسائية"]
[{"$f":"IF(C492=\"\",\"\",SUBTOTAL(3,C$5:C492))","v":488},null,"طالب رقم 488","2003-07-16",15,"ذكر","ليبية","الاول","عام","3/1","مستجد","","مسائية"]
[{"$f":"IF(C493=\"\",\"\",SUBTOTAL(3,C$5:C493))","v":489},null,"طالب رقم 489","2003-01-10",16,"ذكر","ليبية","الاول","عام","3/1","مستجد","","مسائية"]
[{"$f":"IF(C494=\"\",\"\",SUBTOTAL(3,C$5:C494))","v":490},null,"طالب رقم 490","2002-12-28",16,"ذكر","ليبية","الثاني","علمي","1/2","مستجد","","مسائية"]
[{"$f":"IF(C495=\"\",\"\",SUBTOTAL(3,C$5:C495))","v":491},null,"طالب رقم 491","2002-12-03",16,"ذكر","ليبية","الثاني","علمي","1/2","مستجد","","مسائية"]
[{"$f":"IF(C496=\"\",\"\",SUBTOTAL(3,C$5:C496))","v":492},null,"طالب رقم 492","2003-03-16",15,"ذكر","ليبية","الاول","عام","4/1","مستجد","","مسائية"]
[{"$f":"IF(C497=\"\",\"\",SUBTOTAL(3,C$5:C497))","v":493},null,"طالب رقم 493","2003-06-30",15,"ذكر","ليبية","الاول","عام","2/1","مستجد","","مسائية"]
[{"$f":"IF(C498=\"\",\"\",SUBTOTAL(3,C$5:C498))","v":494},null,"طالب رقم 494","2002-04-23",16,"ذكر","ليبية","الاول","عام","4/1","معيد","مرة واحدة","مسائية"]
[{"$f":"IF(C499=\"\",\"\",SUBTOTAL(3,C$5:C499))","v":495},null,"طالب رقم 495","2003-03-26",15,"ذكر","ليبية","الاول","عام","5/1","مستجد","","مسائية"]
[{"$f":"IF(C500=\"\",\"\",SUBTOTAL(3,C$5:C500))","v":496},null,"طالب رقم 496","2003-11-19",15,"ذكر","ليبية","الاول","عام","1/1","مستجد","","مسائية"]
[{"$f":"IF(C501=\"\",\"\",SUBTOTAL(3,C$5:C501))","v":497},null,"طالب رقم 497","2003-03-11",15,"ذكر","ليبية","الاول","عام","3/1","مستجد","","مسائية"]
[{"$f":"IF(C502=\"\",\"\",SUBTOTAL(3,C$5:C502))","v":498},null,"طالب رقم 498","2001-08-26",17,"ذكر","ليبية","الثالث","علمي","4/3","مستجد","","صباحية"]
[{"$f":"IF(C503=\"\",\"\",SUBTOTAL(3,C$5:C503))","v":499},null,"طالب رقم 499","2002-10-21",16,"ذكر","ليبية","الثاني","علمي","1/2","مستجد","","مسائية"]
[{"$f":"IF(C504=\"\",\"\",SUBTOTAL(3,C$5:C504))","v":500},null,"طالب رقم 500","2003-07-24",15,"ذكر","ليبية","الاول","عام","3/1","مستجد","","مسائية"]
[{"$f":"IF(C505=\"\",\"\",SUBTOTAL(3,C$5:C505))","v":501},null,"طالب رقم 501","2002-09-27",16,"ذكر","ليبية","الاول","عام","5/1","مستجد","","مسائية"]
[{"$f":"IF(C506=\"\",\"\",SUBTOTAL(3,C$5:C506))","v":502},null,"طالب رقم 502","2003-12-27",15,"ذكر","ليبية","الاول","عام","2/1","مستجد","","مسائية"]
[{"$f":"IF(C507=\"\",\"\",SUBTOTAL(3,C$5:C507))","v":503},null,"طالب رقم 503","2003-09-29",15,"ذكر","ليبية","الاول","عام","6/1","مستجد","","مسائية"]
[{"$f":"IF(C508=\"\",\"\",SUBTOTAL(3,C$5:C508))","v":504},null,"طالب رقم 504","2001-08-14",17,"ذكر","ليبية","الثالث","علمي","6/3","مستجد","","صباحية"]
[{"$f":"IF(C509=\"\",\"\",SUBTOTAL(3,C$5:C509))","v":505},null,"طالب رقم 505","2002-09-12",16,"ذكر","ليبية","الثاني","علمي","3/2","مستجد","","مسائية"]
[{"$f":"IF(C510=\"\",\"\",SUBTOTAL(3,C$5:C510))","v":506},null,"طالب رقم 506","2002-03-26",16,"ذكر","ليبية","الثاني","علمي","3/2","مستجد","","مسائية"]
[{"$f":"IF(C511=\"\",\"\",SUBTOTAL(3,C$5:C511))","v":507},null,"طالب رقم 507","2003-03-16",15,"ذكر","ليبية","الاول","عام","2/1","مستجد","","مسائية"]
[{"$f":"IF(C512=\"\",\"\",SUBTOTAL(3,C$5:C512))","v":508},null,"طالب رقم 508","2001-05-17",17,"ذكر","ليبية","الثالث","علمي","4/3","معيد","مرة واحدة","صباحية"]
[{"$f":"IF(C513=\"\",\"\",SUBTOTAL(3,C$5:C513))","v":509},null,"طالب رقم 509","2003-10-17",15,"ذكر","ليبية","الاول","عام","4/1","مستجد","","مسائية"]
[{"$f":"IF(C514=\"\",\"\",SUBTOTAL(3,C$5:C514))","v":510},null,"طالب رقم 510","2003-09-07",15,"ذكر","ليبية","الاول","عام","5/1","مستجد","","مسائية"]
[{"$f":"IF(C515=\"\",\"\",SUBTOTAL(3,C$5:C515))","v":511},null,"طالب رقم 511","2001-04-11",17,"ذكر","ليبية","الثالث","علمي","5/3","مستجد","","صباحية"]
[{"$f":"IF(C516=\"\",\"\",SUBTOTAL(3,C$5:C516))","v":512},null,"طالب رقم 512","2003-06-13",15,"ذكر","ليبية","الاول","عام","1/1","مستجد","","مسائية"]
[{"$f":"IF(C517=\"\",\"\",SUBTOTAL(3,C$5:C517))","v":513},null,"طالب رقم 513","2003-12-06",{"$f":"DATEDIF(D517,TODAY(),\"Y\")","v":15},"ذكر","ليبية","الاول","عام","6/1","مستجد","","مسائية"]
[{"$f":"IF(C518=\"\",\"\",SUBTOTAL(3,C$5:C518))","v":514},null,"طالب رقم 514","2001-04-01",17,"ذكر","سورية","الثالث","علمي","6/3","مستجد","","صباحية"]
[{"$f":"IF(C519=\"\",\"\",SUBTOTAL(3,C$5:C519))","v":515},null,"طالب رقم 515","2001-11-28",17,"انثى","ليبية","الثالث","علمي","2/3","مستجد","","صباحية"]
[{"$f":"IF(C520=\"\",\"\",SUBTOTAL(3,C$5:C520))","v":516},null,"طالب رقم 516","2001-01-31",18,"ذكر","ليبية","الثالث","علمي","6/3","مستجد","","صباحية"]
[{"$f":"IF(C521=\"\",\"\",SUBTOTAL(3,C$5:C521))","v":517},null,"طالب رقم 517","2001-10-19",17,"ذكر","ليبية","الثالث","علمي","4/3","مستجد","","صباحية"]
[{"$f":"IF(C522=\"\",\"\",SUBTOTAL(3,C$5:C522))","v":518},null,"طالب رقم 518","2003-09-21",15,"ذكر","ليبية","الاول","عام","3/1","مستجد","","مسائية"]
[{"$f":"IF(C523=\"\",\"\",SUBTOTAL(3,C$5:C523))","v":519},null,"طالب رقم 519","2002-08-18",16,"ذكر","ليبية","الثاني","علمي","1/2","مستجد","","مسائية"]
[{"$f":"IF(C524=\"\",\"\",SUBTOTAL(3,C$5:C524))","v":520},null,"طالب رقم 520","2003-11-30",15,"انثى","ليبية","الاول","عام","2/1","مستجد","","صباحية"]
[{"$f":"IF(C525=\"\",\"\",SUBTOTAL(3,C$5:C525))","v":521},null,"طالب رقم 521","2002-07-23",16,"انثى","ليبية","الثاني","علمي","2/2","مستجد","","صباحية"]
[{"$f":"IF(C526=\"\",\"\",SUBTOTAL(3,C$5:C526))","v":522},null,"طالب رقم 522","2001-12-03",17,"انثى","جزائرية","الثالث","علمي","1/3","مستجد","","صباحية"]
[{"$f":"IF(C527=\"\",\"\",SUBTOTAL(3,C$5:C527))","v":523},null,"طالب رقم 523","2002-04-28",16,"ذكر","ليبية","الاول","عام","6/1","معيد","مرة واحدة","مسائية"]
[{"$f":"IF(C528=\"\",\"\",SUBTOTAL(3,C$5:C528))","v":524},null,"طالب رقم 524","2002-07-26",16,"ذكر","ليبية","الثاني","علمي","2/2","مستجد","","مسائية"]
[{"$f":"IF(C529=\"\",\"\",SUBTOTAL(3,C$5:C529))","v":525},null,"طالب رقم 525","2002-04-09",16,"ذكر","ليبية","الثاني","علمي","3/2","مستجد","","مسائية"]
[{"$f":"IF(C530=\"\",\"\",SUBTOTAL(3,C$5:C530))","v":526},null,"طالب رقم 526","2003-11-14",15,"ذكر","ليبية","الاول","عام","6/1","مستجد","","مسائية"]
[{"$f":"IF(C531=\"\",\"\",SUBTOTAL(3,C$5:C531))","v":527},null,"طالب رقم 527","2002-10-29",16,"ذكر","ليبية","الثاني","علمي","2/2","مستجد","","مسائية"]
[{"$f":"IF(C532=\"\",\"\",SUBTOTAL(3,C$5:C532))","v":528},null,"طالب رقم 528","2001-09-15",17,"ذكر","ليبية","الثاني","علمي","3/2","معيد","مرة واحدة","مسائية"]
[{"$f":"IF(C533=\"\",\"\",SUBTOTAL(3,C$5:C533))","v":529},null,"طالب رقم 529","2001-04-27",17,"ذكر","ليبية","الثالث","علمي","5/3","مستجد","","صباحية"]
[{"$f":"IF(C534=\"\",\"\",SUBTOTAL(3,C$5:C534))","v":530},null,"طالب رقم 530","2002-02-16",17,"ذكر","ليبية","الاول","عام","5/1","معيد","مرة واحدة","مسائية"]
[{"$f":"IF(C535=\"\",\"\",SUBTOTAL(3,C$5:C535))","v":531},null,"طالب رقم 531","2003-08-27",15,"ذكر","ليبية","الاول","عام","1/1","مستجد","","مسائية"]
[{"$f":"IF(C536=\"\",\"\",SUBTOTAL(3,C$5:C536))","v":532},null,"طالب رقم 532","2002-09-08",16,"ذكر","ليبية","الثاني","علمي","1/2","مستجد","","مسائية"]
[{"$f":"IF(C537=\"\",\"\",SUBTOTAL(3,C$5:C537))","v":533},null,"طالب رقم 533","2002-07-13",16,"ذكر","ليبية","الثاني","علمي","1/2","مستجد","","مسائية"]
[{"$f":"IF(C538=\"\",\"\",SUBTOTAL(3,C$5:C538))","v":534},null,"طالب رقم 534","2003-01-01",16,"ذكر","ليبية","الاول","عام","3/1","مستجد","","مسائية"]
[{"$f":"IF(C539=\"\",\"\",SUBTOTAL(3,C$5:C539))","v":535},null,"طالب رقم 535","2003-07-05",15,"ذكر","ليبية","الاول","عام","3/1","مستجد","","مسائية"]
[{"$f":"IF(C540=\"\",\"\",SUBTOTAL(3,C$5:C540))","v":536},null,"طالب رقم 536","2001-06-20",17,"ذكر","ليبية","الثالث","علمي","5/3","مستجد","","صباحية"]
[{"$f":"IF(C541=\"\",\"\",SUBTOTAL(3,C$5:C541))","v":537},null,"طالب رقم 537","2003-10-20",15,"ذكر","ليبية","الاول","عام","4/1","مستجد","","مسائية"]
[{"$f":"IF(C542=\"\",\"\",SUBTOTAL(3,C$5:C542))","v":538},null,"طالب رقم 538","2004-01-04",15,"ذكر","ليبية","الاول","عام","4/1","مستجد","","مسائية"]
[{"$f":"IF(C543=\"\",\"\",SUBTOTAL(3,C$5:C543))","v":539},null,"طالب رقم 539","2000-08-20",18,"ذكر","سورية","الثالث","علمي","4/3","مستجد","","صباحية"]
[{"$f":"IF(C544=\"\",\"\",SUBTOTAL(3,C$5:C544))","v":540},null,"طالب رقم 540","2002-06-18",16,"ذكر","ليبية","الاول","عام","4/1","مستجد",null,"مسائية"]
[{"$f":"IF(C545=\"\",\"\",SUBTOTAL(3,C$5:C545))","v":541},null,"طالب رقم 541","2001-02-24",18,"ذكر","ليبية","الثالث","علمي","6/3","مستجد",null,"صباحية"]
[{"$f":"IF(C546=\"\",\"\",SUBTOTAL(3,C$5:C546))","v":542},null,"طالب رقم 542","2003-01-01",16,"ذكر","ليبية","الاول","عام","4/1","مستجد","","مسائية"]
[{"$f":"IF(C547=\"\",\"\",SUBTOTAL(3,C$5:C547))","v":543},null,"طالب رقم 543","2002-03-17",16,"ذكر","ليبية","الثاني","علمي","1/2","مستجد","","مسائية"]
[{"$f":"IF(C548=\"\",\"\",SUBTOTAL(3,C$5:C548))","v":544},null,"طالب رقم 544","2002-05-31",16,"ذكر","ليبية","الثاني","علمي","1/2","مستجد","","مسائية"]
[{"$f":"IF(C549=\"\",\"\",SUBTOTAL(3,C$5:C549))","v":545},null,"طالب رقم 545","2003-05-05",15,"انثى","ليبية","الاول","عام","5/1","مستجد","","صباحية"]
[{"$f":"IF(C550=\"\",\"\",SUBTOTAL(3,C$5:C550))","v":546},null,"طالب رقم 546","2003-08-10",15,"انثى","ليبية","الاول","عام","5/1","مستجد","","صباحية"]
[{"$f":"IF(C551=\"\",\"\",SUBTOTAL(3,C$5:C551))","v":547},null,"طالب رقم 547","2002-11-21",16,"انثى","ليبية","الثاني","علمي","2/2","مستجد","","صباحية"]
[{"$f":"IF(C552=\"\",\"\",SUBTOTAL(3,C$5:C552))","v":548},null,"طالب رقم 548","2003-07-02",15,"انثى","ليبية","الاول","عام","6/1","مستجد","","صباحية"]
[{"$f":"IF(C553=\"\",\"\",SUBTOTAL(3,C$5:C553))","v":549},null,"طالب رقم 549","2003-01-03",16,"انثى","ليبية","الاول","عام","6/1","مستجد","","صباحية"]
[{"$f":"IF(C554=\"\",\"\",SUBTOTAL(3,C$5:C554))","v":550},null,"طالب رقم 550","2003-09-19",15,"انثى","ليبية","الاول","عام","2/1","مستجد","","صباحية"]
[{"$f":"IF(C555=\"\",\"\",SUBTOTAL(3,C$5:C555))","v":551},null,"طالب رقم 551","2002-08-27",16,"انثى","ليبية","الثاني","علمي","3/2","مستجد","","صباحية"]
[{"$f":"IF(C556=\"\",\"\",SUBTOTAL(3,C$5:C556))","v":552},null,"طالب رقم 552","2003-10-01",15,"انثى","ليبية","الاول","عام","2/1","مستجد","","صباحية"]
[{"$f":"IF(C557=\"\",\"\",SUBTOTAL(3,C$5:C557))","v":553},null,"طالب رقم 553","2003-02-02",16,"انثى","ليبية","الاول","عام","4/1","مستجد","","صباحية"]
[{"$f":"IF(C558=\"\",\"\",SUBTOTAL(3,C$5:C558))","v":554},null,"طالب رقم 554","2003-03-01",16,"انثى","ليبية","الاول","عام","2/1","مستجد","","صباحية"]
[{"$f":"IF(C559=\"\",\"\",SUBTOTAL(3,C$5:C559))","v":555},null,"طالب رقم 555","2001-10-12",17,"ذكر","ليبية","الثالث","علمي","6/3","مستجد","","صباحية"]
[{"$f":"IF(C560=\"\",\"\",SUBTOTAL(3,C$5:C560))","v":556},null,"طالب رقم 556","2003-12-05",15,"ذكر","ليبية","الاول","عام","4/1","مستجد","","مسائية"]
[{"$f":"IF(C561=\"\",\"\",SUBTOTAL(3,C$5:C561))","v":557},null,"طالب رقم 557","2001-01-23",18,"انثى","ليبية","الثالث","علمي","2/3","مستجد","","صباحية"]
[{"$f":"IF(C562=\"\",\"\",SUBTOTAL(3,C$5:C562))","v":558},null,"طالب رقم 558","2003-07-21",15,"انثى","ليبية","الاول","عام","5/1","مستجد","","صباحية"]
[{"$f":"IF(C563=\"\",\"\",SUBTOTAL(3,C$5:C563))","v":559},null,"طالب رقم 559","2002-10-18",16,"انثى","ليبية","الاول","عام","1/1","مستجد","","صباحية"]
[{"$f":"IF(C564=\"\",\"\",SUBTOTAL(3,C$5:C564))","v":560},null,"طالب رقم 560","2002-07-28",16,"انثى","ليبية","الثاني","علمي","3/2","مستجد","","صباحية"]
[{"$f":"IF(C565=\"\",\"\",SUBTOTAL(3,C$5:C565))","v":561},null,"طالب رقم 561","2002-06-30",16,"انثى","ليبية","الثاني","علمي","1/2","مستجد","","صباحية"]
[{"$f":"IF(C566=\"\",\"\",SUBTOTAL(3,C$5:C566))","v":562},null,"طالب رقم 562","2002-10-30",16,"انثى","ليبية","الثاني","علمي","4/2","مستجد","","صباحية"]
[{"$f":"IF(C567=\"\",\"\",SUBTOTAL(3,C$5:C567))","v":563},null,"طالب رقم 563","2000-06-09",18,"انثى","ليبية","الثالث","علمي","3/3","مستجد","","صباحية"]
[{"$f":"IF(C568=\"\",\"\",SUBTOTAL(3,C$5:C568))","v":564},null,"طالب رقم 564","2003-08-03",15,"انثى","ليبية","الاول","عام","6/1","مستجد","","صباحية"]
[{"$f":"IF(C569=\"\",\"\",SUBTOTAL(3,C$5:C569))","v":565},null,"طالب رقم 565","2003-08-27",15,"انثى","ليبية","الاول","عام","6/1","مستجد","","صباحية"]
[{"$f":"IF(C570=\"\",\"\",SUBTOTAL(3,C$5:C570))","v":566},null,"طالب رقم 566","2001-11-26",17,"انثى","ليبية","الثالث","ادبي","1/3","مستجد","","صباحية"]
[{"$f":"IF(C571=\"\",\"\",SUBTOTAL(3,C$5:C571))","v":567},null,"طالب رقم 567","2003-09-17",15,"انثى","ليبية","الاول","عام","6/1","مستجد","","صباحية"]
[{"$f":"IF(C572=\"\",\"\",SUBTOTAL(3,C$5:C572))","v":568},null,"طالب رقم 568","2002-08-13",16,"انثى","ليبية","الثاني","ادبي","1/2","مستجد","","صباحية"]
[{"$f":"IF(C573=\"\",\"\",SUBTOTAL(3,C$5:C573))","v":569},null,"طالب رقم 569","2003-05-28",15,"انثى","ليبية","الاول","عام","3/1","مستجد","","صباحية"]
[{"$f":"IF(C574=\"\",\"\",SUBTOTAL(3,C$5:C574))","v":570},null,"طالب رقم 570","2003-01-22",16,"انثى","ليبية","الاول","عام","1/1","مستجد","","صباحية"]
[{"$f":"IF(C575=\"\",\"\",SUBTOTAL(3,C$5:C575))","v":571},null,"طالب رقم 571","2003-08-15",15,"انثى","ليبية","الاول","عام","3/1","مستجد","","صباحية"]
[{"$f":"IF(C576=\"\",\"\",SUBTOTAL(3,C$5:C576))","v":572},null,"طالب رقم 572","2003-11-22",15,"انثى","ليبية","الاول","عام","6/1","مستجد","","صباحية"]
[{"$f":"IF(C577=\"\",\"\",SUBTOTAL(3,C$5:C577))","v":573},null,"طالب رقم 573","2002-11-18",16,"انثى","ليبية","الثاني","ادبي","1/2","مستجد","","صباحية"]
[{"$f":"IF(C578=\"\",\"\",SUBTOTAL(3,C$5:C578))","v":574},null,"طالب رقم 574","2003-04-20",15,"انثى","ليبية","الاول","عام","3/1","مستجد","","صباحية"]
[{"$f":"IF(C579=\"\",\"\",SUBTOTAL(3,C$5:C579))","v":575},null,"طالب رقم 575","2002-10-02",16,"انثى","ليبية","الثاني","ادبي","1/2","مستجد","","صباحية"]
[{"$f":"IF(C580=\"\",\"\",SUBTOTAL(3,C$5:C580))","v":576},null,"طالب رقم 576","2003-03-12",15,"ذكر","ليبية","الاول","عام","2/1","مستجد","","مسائية"]
[{"$f":"IF(C581=\"\",\"\",SUBTOTAL(3,C$5:C581))","v":577},null,"طالب رقم 577","2003-01-20",{"$f":"DATEDIF(D581,TODAY(),\"Y\")","v":16},"ذكر","ليبية","الاول","عام","2/1","مستجد","","مسائية"]
[{"$f":"IF(C582=\"\",\"\",SUBTOTAL(3,C$5:C582))","v":578},null,"طالب رقم 578","2004-04-09",14,"انثى","ليبية","الاول","عام","6/1","مستجد","","صباحية"]
[{"$f":"IF(C583=\"\",\"\",SUBTOTAL(3,C$5:C583))","v":579},null,"طالب رقم 579","2002-11-18",16,"انثى","ليبية","الثاني","علمي","1/2","مستجد","","صباحية"]
[{"$f":"IF(C584=\"\",\"\",SUBTOTAL(3,C$5:C584))","v":580},null,"طالب رقم 580","2003-09-03",15,"انثى","ليبية","الاول","عام","2/1","مستجد","","صباحية"]
[{"$f":"IF(C585=\"\",\"\",SUBTOTAL(3,C$5:C585))","v":581},null,"طالب رقم 581","2002-04-06",16,"انثى","ليبية","الثاني","علمي","4/2","مستجد","","صباحية"]
[{"$f":"IF(C586=\"\",\"\",SUBTOTAL(3,C$5:C586))","v":582},null,"طالب رقم 582","2001-08-09",17,"انثى","ليبية","الثالث","علمي","2/3","مستجد","","صباحية"]
[{"$f":"IF(C587=\"\",\"\",SUBTOTAL(3,C$5:C587))","v":583},null,"طالب رقم 583","2002-04-14",16,"انثى","ليبية","الاول","عام","2/1","مستجد","","صباحية"]
[{"$f":"IF(C588=\"\",\"\",SUBTOTAL(3,C$5:C588))","v":584},null,"طالب رقم 584","2002-09-26",16,"ذكر","ليبية","الثاني","علمي","2/2","مستجد","","مسائية"]
[{"$f":"IF(C589=\"\",\"\",SUBTOTAL(3,C$5:C589))","v":585},null,"طالب رقم 585","2003-09-09",15,"ذكر","مصرية","الاول","عام","5/1","مستجد","","مسائية"]
[{"$f":"IF(C590=\"\",\"\",SUBTOTAL(3,C$5:C590))","v":586},null,"طالب رقم 586","2003-07-18",15,"انثى","ليبية","الاول","عام","5/1","مستجد","","صباحية"]
[{"$f":"IF(C591=\"\",\"\",SUBTOTAL(3,C$5:C591))","v":587},null,"طالب رقم 587","2002-01-13",17,"انثى","مغربية","الثاني","علمي","3/2","مستجد","","صباحية"]
[{"$f":"IF(C592=\"\",\"\",SUBTOTAL(3,C$5:C592))","v":588},null,"طالب رقم 588","2001-12-03",17,"انثى","ليبية","الثالث","علمي","3/3","مستجد","","صباحية"]
[{"$f":"IF(C593=\"\",\"\",SUBTOTAL(3,C$5:C593))","v":589},null,"طالب رقم 589","2003-12-29",15,"انثى","ليبية","الاول","عام","6/1","مستجد","","صباحية"]
[{"$f":"IF(C594=\"\",\"\",SUBTOTAL(3,C$5:C594))","v":590},null,"طالب رقم 590","2003-08-04",15,"انثى","ليبية","الاول","عام","6/1","مستجد","","صباحية"]
[{"$f":"IF(C595=\"\",\"\",SUBTOTAL(3,C$5:C595))","v":591},null,"طالب رقم 591","2001-04-14",17,"انثى","ليبية","الثالث","علمي","2/3","مستجد","","صباحية"]
[{"$f":"IF(C596=\"\",\"\",SUBTOTAL(3,C$5:C596))","v":592},null,"طالب رقم 592","2002-05-02",16,"انثى","ليبية","الثاني","علمي","3/2","مستجد","","صباحية"]
[{"$f":"IF(C597=\"\",\"\",SUBTOTAL(3,C$5:C597))","v":593},null,"طالب رقم 593","2003-10-06",15,"ذكر","ليبية","الاول","عام","6/1","مستجد","","مسائية"]
[{"$f":"IF(C598=\"\",\"\",SUBTOTAL(3,C$5:C598))","v":594},null,"طالب رقم 594","2001-11-11",17,"انثى","ليبية","الثالث","علمي","1/3","مستجد","","صباحية"]
[{"$f":"IF(C599=\"\",\"\",SUBTOTAL(3,C$5:C599))","v":595},null,"طالب رقم 595","2003-10-19",15,"انثى","ليبية","الاول","عام","4/1","مستجد","","صباحية"]
[{"$f":"IF(C600=\"\",\"\",SUBTOTAL(3,C$5:C600))","v":596},null,"طالب رقم 596","2001-05-09",17,"انثى","ليبية","الثالث","علمي","1/3","مستجد","","صباحية"]
[{"$f":"IF(C601=\"\",\"\",SUBTOTAL(3,C$5:C601))","v":597},null,"طالب رقم 597","2001-04-21",17,"انثى","ليبية","الثالث","علمي","3/3","مستجد","","صباحية"]
[{"$f":"IF(C602=\"\",\"\",SUBTOTAL(3,C$5:C602))","v":598},null,"طالب رقم 598","2003-07-20",15,"ذكر","ليبية","الاول","عام","6/1","مستجد",null,"مسائية"]
[{"$f":"IF(C603=\"\",\"\",SUBTOTAL(3,C$5:C603))","v":599},null,"طالب رقم 599","2004-05-10",14,"ذكر","ليبية","الاول","عام","4/1","مستجد","","مسائية"]
[{"$f":"IF(C604=\"\",\"\",SUBTOTAL(3,C$5:C604))","v":600},null,"طالب رقم 600","2003-01-08",16,"انثى","سورية","الاول","عام","1/1","مستجد","","صباحية"]
[{"$f":"IF(C605=\"\",\"\",SUBTOTAL(3,C$5:C605))","v":601},null,"طالب رقم 601","2003-05-02",15,"انثى","ليبية","الاول","عام","3/1","مستجد","","صباحية"]
[{"$f":"IF(C606=\"\",\"\",SUBTOTAL(3,C$5:C606))","v":602},null,"طالب رقم 602","2002-10-16",16,"انثى","ليبية","الثاني","علمي","4/2","مستجد","","صباحية"]
[{"$f":"IF(C607=\"\",\"\",SUBTOTAL(3,C$5:C607))","v":603},null,"طالب رقم 603","2003-04-21",15,"انثى","ليبية","الاول","عام","5/1","مستجد","","صباحية"]
[{"$f":"IF(C608=\"\",\"\",SUBTOTAL(3,C$5:C608))","v":604},null,"طالب رقم 604","2001-07-15",17,"انثى","ليبية","الثالث","ادبي","1/3","مستجد","","صباحية"]
[{"$f":"IF(C609=\"\",\"\",SUBTOTAL(3,C$5:C609))","v":605},null,"طالب رقم 605","2000-10-22",18,"ذكر","ليبية","الثالث","علمي","4/3","مستجد","","صباحية"]
[{"$f":"IF(C610=\"\",\"\",SUBTOTAL(3,C$5:C610))","v":606},null,"طالب رقم 606","2002-05-30",16,"ذكر","ليبية","الثاني","علمي","3/2","مستجد","","مسائية"]
[{"$f":"IF(C611=\"\",\"\",SUBTOTAL(3,C$5:C611))","v":607},null,"طالب رقم 607","2003-12-10",15,"ذكر","ليبية","الاول","عام","3/1","مستجد","","مسائية"]
[{"$f":"IF(C612=\"\",\"\",SUBTOTAL(3,C$5:C612))","v":608},null,"طالب رقم 608","2002-01-16",17,"ذكر","ليبية","الثاني","علمي","3/2","مستجد","","مسائية"]
[{"$f":"IF(C613=\"\",\"\",SUBTOTAL(3,C$5:C613))","v":609},null,"طالب رقم 609","2003-09-09",15,"ذكر","ليبية","الاول","عام","3/1","مستجد","","مسائية"]
[{"$f":"IF(C614=\"\",\"\",SUBTOTAL(3,C$5:C614))","v":610},null,"طالب رقم 610","2001-05-27",17,"ذكر","ليبية","الثالث","علمي","5/3","مستجد","","صباحية"]
[{"$f":"IF(C615=\"\",\"\",SUBTOTAL(3,C$5:C615))","v":611},null,"طالب رقم 611","2002-09-15",16,"ذكر","ليبية","الثاني","علمي","3/2","مستجد","","مسائية"]
[{"$f":"IF(C616=\"\",\"\",SUBTOTAL(3,C$5:C616))","v":612},null,"طالب رقم 612","2002-03-05",16,"ذكر","ليبية","الاول","عام","1/1","مستجد",null,"مسائية"]
[{"$f":"IF(C617=\"\",\"\",SUBTOTAL(3,C$5:C617))","v":613},null,"طالب رقم 613","2002-05-09",16,"ذكر","ليبية","الثاني","علمي","1/2","مستجد","","مسائية"]
[{"$f":"IF(C618=\"\",\"\",SUBTOTAL(3,C$5:C618))","v":614},null,"طالب رقم 614","2002-06-19",16,"ذكر","ليبية","الثاني","علمي","2/2","مستجد","","مسائية"]
[{"$f":"IF(C619=\"\",\"\",SUBTOTAL(3,C$5:C619))","v":615},null,"طالب رقم 615","2003-06-03",15,"ذكر","ليبية","الاول","عام","3/1","مستجد","","مسائية"]
[{"$f":"IF(C620=\"\",\"\",SUBTOTAL(3,C$5:C620))","v":616},null,"طالب رقم 616","2001-11-23",17,"ذكر","ليبية","الثالث","علمي","6/3","مستجد","","صباحية"]
[{"$f":"IF(C621=\"\",\"\",SUBTOTAL(3,C$5:C621))","v":617},null,"طالب رقم 617","2001-05-02",17,"ذكر","ليبية","الثالث","علمي","4/3","مستجد","","صباحية"]
[{"$f":"IF(C622=\"\",\"\",SUBTOTAL(3,C$5:C622))","v":618},null,"طالب رقم 618","2003-12-09",15,"ذكر","ليبية","الاول","عام","3/1","مستجد","","مسائية"]
[{"$f":"IF(C623=\"\",\"\",SUBTOTAL(3,C$5:C623))","v":619},null,"طالب رقم 619","2003-07-31",15,"ذكر","ليبية","الاول","عام","5/1","مستجد","","مسائية"]
[{"$f":"IF(C624=\"\",\"\",SUBTOTAL(3,C$5:C624))","v":620},null,"طالب رقم 620","2001-04-16",17,"ذكر","ليبية","الثالث","علمي","4/3","مستجد","","صباحية"]
[{"$f":"IF(C625=\"\",\"\",SUBTOTAL(3,C$5:C625))","v":621},null,"طالب رقم 621","2003-06-23",15,"ذكر","ليبية","الاول","عام","5/1","مستجد","","مسائية"]
[{"$f":"IF(C626=\"\",\"\",SUBTOTAL(3,C$5:C626))","v":622},null,"طالب رقم 622","2003-03-03",16,"ذكر","ليبية","الاول","عام","4/1","مستجد","","مسائية"]
[{"$f":"IF(C627=\"\",\"\",SUBTOTAL(3,C$5:C627))","v":623},null,"طالب رقم 623","2003-01-01",16,"ذكر","ليبية","الثاني","علمي","2/2","مستجد","","مسائية"]
[{"$f":"IF(C628=\"\",\"\",SUBTOTAL(3,C$5:C628))","v":624},null,"طالب رقم 624","2001-04-03",17,"ذكر","ليبية","الثالث","علمي","6/3","مستجد","","صباحية"]
[{"$f":"IF(C629=\"\",\"\",SUBTOTAL(3,C$5:C629))","v":625},null,"طالب رقم 625","2000-10-08",18,"ذكر","ليبية","الثالث","علمي","6/3","مستجد",null,"صباحية"]
[{"$f":"IF(C630=\"\",\"\",SUBTOTAL(3,C$5:C630))","v":626},null,"طالب رقم 626","2003-12-03",15,"ذكر","ليبية","الاول","عام","2/1","مستجد","","مسائية"]
[{"$f":"IF(C631=\"\",\"\",SUBTOTAL(3,C$5:C631))","v":627},null,"طالب رقم 627","2003-03-08",15,"ذكر","ليبية","الاول","عام","4/1","مستجد","","مسائية"]
[{"$f":"IF(C632=\"\",\"\",SUBTOTAL(3,C$5:C632))","v":628},null,"طالب رقم 628","2004-03-16",14,"ذكر","ليبية","الاول","عام","5/1","مستجد","","مسائية"]
[{"$f":"IF(C633=\"\",\"\",SUBTOTAL(3,C$5:C633))","v":629},null,"طالب رقم 629","2002-03-01",17,"ذكر","فلسطينية","الثالث","علمي","6/3","مستجد","","صباحية"]
[{"$f":"IF(C634=\"\",\"\",SUBTOTAL(3,C$5:C634))","v":630},null,"طالب رقم 630","2002-12-16",16,"ذكر","ليبية","الاول","عام","2/1","معيد",null,"مسائية"]
[{"$f":"IF(C635=\"\",\"\",SUBTOTAL(3,C$5:C635))","v":631},null,"طالب رقم 631","2003-11-19",15,"ذكر","ليبية","الاول","عام","5/1","مستجد","","مسائية"]
[{"$f":"IF(C636=\"\",\"\",SUBTOTAL(3,C$5:C636))","v":632},null,"طالب رقم 632","2002-01-25",17,"ذكر","ليبية","الثالث","علمي","6/3","مستجد","","صباحية"]
[{"$f":"IF(C637=\"\",\"\",SUBTOTAL(3,C$5:C637))","v":633},null,"طالب رقم 633","2001-07-25",17,"ذكر","ليبية","الثالث","علمي","6/3","مستجد","","صباحية"]
[{"$f":"IF(C638=\"\",\"\",SUBTOTAL(3,C$5:C638))","v":634},null,"طالب رقم 634","2001-08-25",17,"ذكر","ليبية","الثاني","علمي","1/2","معيد","مرة واحدة","مسائية"]
[{"$f":"IF(C639=\"\",\"\",SUBTOTAL(3,C$5:C639))","v":635},null,"طالب رقم 635","2003-04-09",15,"ذكر","ليبية","الاول","عام","1/1","مستجد",null,"مسائية"]
[{"$f":"IF(C640=\"\",\"\",SUBTOTAL(3,C$5:C640))","v":636},null,"طالب رقم 636","2003-04-27",15,"ذكر","ليبية","الاول","عام","4/1","مستجد","","مسائية"]
[{"$f":"IF(C641=\"\",\"\",SUBTOTAL(3,C$5:C641))","v":637},null,"طالب رقم 637","2003-09-25",15,"ذكر","ليبية","الاول","عام","6/1","مستجد","","مسائية"]
[{"$f":"IF(C642=\"\",\"\",SUBTOTAL(3,C$5:C642))","v":638},null,"طالب رقم 638","2002-10-03",16,"ذكر","ليبية","الاول","عام","1/1","مستجد","","مسائية"]
[{"$f":"IF(C643=\"\",\"\",SUBTOTAL(3,C$5:C643))","v":639},null,"طالب رقم 639","2003-05-12",15,"ذكر","ليبية","الاول","عام","1/1","مستجد","","مسائية"]
[{"$f":"IF(C644=\"\",\"\",SUBTOTAL(3,C$5:C644))","v":640},null,"طالب رقم 640","2003-12-28",15,"ذكر","ليبية","الاول","عام","6/1","مستجد","","مسائية"]
[{"$f":"IF(C645=\"\",\"\",SUBTOTAL(3,C$5:C645))","v":641},null,"طالب رقم 641","2002-12-30",{"$f":"DATEDIF(D645,TODAY(),\"Y\")","v":16},"ذكر","ليبية","الاول","عام","6/1","معيد","مرة واحدة","مسائية"]
[{"$f":"IF(C646=\"\",\"\",SUBTOTAL(3,C$5:C646))","v":642},null,"طالب رقم 642","2003-02-11",16,"ذكر","ليبية","الاول","عام","5/1","مستجد","","مسائية"]
[{"$f":"IF(C647=\"\",\"\",SUBTOTAL(3,C$5:C647))","v":643},null,"طالب رقم 643","2002-12-16",16,"ذكر","ليبية","الثاني","علمي","3/2","مستجد","","مسائية"]
[{"$f":"IF(C648=\"\",\"\",SUBTOTAL(3,C$5:C648))","v":644},null,"طالب رقم 644","2003-02-10",16,"ذكر","ليبية","الاول","عام","6/1","مستجد","","مسائية"]
[{"$f":"IF(C649=\"\",\"\",SUBTOTAL(3,C$5:C649))","v":645},null,"طالب رقم 645","2002-08-18",16,"ذكر","ليبية","الثاني","علمي","2/2","مستجد","","مسائية"]
[{"$f":"IF(C650=\"\",\"\",SUBTOTAL(3,C$5:C650))","v":646},null,"طالب رقم 646","2003-06-08",15,"ذكر","ليبية","الاول","عام","4/1","مستجد","","مسائية"]
[{"$f":"IF(C651=\"\",\"\",SUBTOTAL(3,C$5:C651))","v":647},null,"طالب رقم 647","2001-06-10",17,"ذكر","ليبية","الثالث","علمي","5/3","مستجد","","صباحية"]
[{"$f":"IF(C652=\"\",\"\",SUBTOTAL(3,C$5:C652))","v":648},null,"طالب رقم 648","2001-03-29",17,"ذكر","ليبية","الثاني","علمي","2/2","معيد","مرة واحدة","مسائية"]
[{"$f":"IF(C653=\"\",\"\",SUBTOTAL(3,C$5:C653))","v":649},null,"طالب رقم 649","2000-12-06",18,"ذكر","ليبية","الثالث","علمي","4/3","مستجد","","صباحية"]
[{"$f":"IF(C654=\"\",\"\",SUBTOTAL(3,C$5:C654))","v":650},null,"طالب رقم 650","2002-08-04",16,"ذكر","ليبية","الاول","عام","4/1","معيد","مرة واحدة","مسائية"]
[{"$f":"IF(C655=\"\",\"\",SUBTOTAL(3,C$5:C655))","v":651},null,"طالب رقم 651","2002-03-18",16,"ذكر","ليبية","الثاني","علمي","1/2","مستجد","","مسائية"]
[{"$f":"IF(C656=\"\",\"\",SUBTOTAL(3,C$5:C656))","v":652},null,"طالب رقم 652","2001-12-05",17,"ذكر","ليبية","الثالث","علمي","5/3","مستجد","","صباحية"]
[{"$f":"IF(C657=\"\",\"\",SUBTOTAL(3,C$5:C657))","v":653},null,"طالب رقم 653","2001-06-04",17,"ذكر","ليبية","الثاني","علمي","3/2","معيد","مرة واحدة","مسائية"]
[{"$f":"IF(C658=\"\",\"\",SUBTOTAL(3,C$5:C658))","v":654},null,"طالب رقم 654","2003-09-22",15,"ذكر","ليبية","الاول","عام","2/1","مستجد","","مسائية"]
[{"$f":"IF(C659=\"\",\"\",SUBTOTAL(3,C$5:C659))","v":655},null,"طالب رقم 655","2003-07-03",15,"ذكر","ليبية","الاول","عام","5/1","مستجد","","مسائية"]
[{"$f":"IF(C660=\"\",\"\",SUBTOTAL(3,C$5:C660))","v":656},null,"طالب رقم 656","2001-08-12",17,"ذكر","ليبية","الثاني","علمي","2/2","مستجد","","مسائية"]
[{"$f":"IF(C661=\"\",\"\",SUBTOTAL(3,C$5:C661))","v":657},null,"طالب رقم 657","2003-01-22",16,"ذكر","ليبية","الاول","عام","5/1","مستجد","","مسائية"]
[{"$f":"IF(C662=\"\",\"\",SUBTOTAL(3,C$5:C662))","v":658},null,"طالب رقم 658","2003-03-12",15,"ذكر","ليبية","الاول","عام","1/1","مستجد","","مسائية"]
[{"$f":"IF(C663=\"\",\"\",SUBTOTAL(3,C$5:C663))","v":659},null,"طالب رقم 659","2003-03-09",15,"ذكر","ليبية","الاول","عام","1/1","مستجد","","مسائية"]
[{"$f":"IF(C664=\"\",\"\",SUBTOTAL(3,C$5:C664))","v":660},null,"طالب رقم 660","2002-01-23",17,"ذكر","ليبية","الاول","عام","5/1","معيد","مرة واحدة","مسائية"]
[{"$f":"IF(C665=\"\",\"\",SUBTOTAL(3,C$5:C665))","v":661},null,"طالب رقم 661","2001-06-19",17,"ذكر","ليبية","الثاني","علمي","2/2","مستجد","","مسائية"]
[{"$f":"IF(C666=\"\",\"\",SUBTOTAL(3,C$5:C666))","v":662},null,"طالب رقم 662","2001-04-09",17,"ذكر","ليبية","الثالث","علمي","6/3","مستجد","","صباحية"]
[{"$f":"IF(C667=\"\",\"\",SUBTOTAL(3,C$5:C667))","v":663},null,"طالب رقم 663","2003-02-17",16,"ذكر","ليبية","الاول","عام","2/1","مستجد","","مسائية"]
[{"$f":"IF(C668=\"\",\"\",SUBTOTAL(3,C$5:C668))","v":664},null,"طالب رقم 664","2003-12-08",15,"ذكر","ليبية","الاول","عام","4/1","مستجد","","مسائية"]
[{"$f":"IF(C669=\"\",\"\",SUBTOTAL(3,C$5:C669))","v":665},null,"طالب رقم 665","2002-07-21",16,"ذكر","ليبية","الثاني","علمي","2/2","مستجد","","مسائية"]
[{"$f":"IF(C670=\"\",\"\",SUBTOTAL(3,C$5:C670))","v":666},null,"طالب رقم 666","2003-01-09",16,"ذكر","ليبية","الثاني","علمي","2/2","مستجد","","مسائية"]
[{"$f":"IF(C671=\"\",\"\",SUBTOTAL(3,C$5:C671))","v":667},null,"طالب رقم 667","2003-09-05",15,"ذكر","ليبية","الاول","عام","3/1","مستجد","","مسائية"]
[{"$f":"IF(C672=\"\",\"\",SUBTOTAL(3,C$5:C672))","v":668},null,"طالب رقم 668","2003-02-16",16,"ذكر","ليبية","الاول","عام","2/1","مستجد","","مسائية"]
[{"$f":"IF(C673=\"\",\"\",SUBTOTAL(3,C$5:C673))","v":669},null,"طالب رقم 669","2002-10-09",16,"ذكر","ليبية","الثاني","علمي","1/2","مستجد","","مسائية"]
[{"$f":"IF(C674=\"\",\"\",SUBTOTAL(3,C$5:C674))","v":670},null,"طالب رقم 670","2003-06-17",15,"ذكر","ليبية","الاول","عام","4/1","مستجد","","مسائية"]
[{"$f":"IF(C675=\"\",\"\",SUBTOTAL(3,C$5:C675))","v":671},null,"طالب رقم 671","2001-09-13",17,"ذكر","ليبية","الثالث","علمي","5/3","مستجد","","صباحية"]
[{"$f":"IF(C676=\"\",\"\",SUBTOTAL(3,C$5:C676))","v":672},null,"طالب رقم 672","2002-09-08",16,"ذكر","ليبية","الثاني","علمي","3/2","مستجد","","مسائية"]
[{"$f":"IF(C677=\"\",\"\",SUBTOTAL(3,C$5:C677))","v":673},null,"طالب رقم 673","2001-05-05",17,"ذكر","ليبية","الثالث","علمي","6/3","مستجد","","صباحية"]
[{"$f":"IF(C678=\"\",\"\",SUBTOTAL(3,C$5:C678))","v":674},null,"طالب رقم 674","2001-12-21",17,"ذكر","سورية","الثالث","علمي","4/3","مستجد","","صباحية"]
[{"$f":"IF(C679=\"\",\"\",SUBTOTAL(3,C$5:C679))","v":675},null,"طالب رقم 675","2002-04-23",16,"ذكر","ليبية","الثاني","علمي","1/2","مستجد","","مسائية"]
[{"$f":"IF(C680=\"\",\"\",SUBTOTAL(3,C$5:C680))","v":676},null,"طالب رقم 676","2003-01-06",16,"ذكر","ليبية","الثاني","علمي","3/2","مستجد","","مسائية"]
[{"$f":"IF(C681=\"\",\"\",SUBTOTAL(3,C$5:C681))","v":677},null,"طالب رقم 677","2001-06-03",17,"ذكر","ليبية","الثالث","علمي","5/3","مستجد","","صباحية"]
[{"$f":"IF(C682=\"\",\"\",SUBTOTAL(3,C$5:C682))","v":678},null,"طالب رقم 678","2003-04-03",15,"ذكر","ليبية","الاول","عام","2/1","مستجد","","مسائية"]
[{"$f":"IF(C683=\"\",\"\",SUBTOTAL(3,C$5:C683))","v":679},null,"طالب رقم 679","2003-03-13",15,"ذكر","ليبية","الثاني","علمي","1/2","مستجد",null,"مسائية"]
[{"$f":"IF(C684=\"\",\"\",SUBTOTAL(3,C$5:C684))","v":680},null,"طالب رقم 680","2002-03-31",16,"ذكر","ليبية","الثاني","علمي","2/2","مستجد","","مسائية"]
[{"$f":"IF(C685=\"\",\"\",SUBTOTAL(3,C$5:C685))","v":681},null,"طالب رقم 681","2001-08-31",17,"ذكر","ليبية","الثالث","علمي","6/3","مستجد","","صباحية"]
[{"$f":"IF(C686=\"\",\"\",SUBTOTAL(3,C$5:C686))","v":682},null,"طالب رقم 682","2003-07-09",15,"ذكر","فلسطينية","الاول","عام","2/1","مستجد","","مسائية"]
[{"$f":"IF(C687=\"\",\"\",SUBTOTAL(3,C$5:C687))","v":683},null,"طالب رقم 683","2002-06-17",16,"ذكر","ليبية","الثاني","علمي","1/2","مستجد","","مسائية"]
[{"$f":"IF(C688=\"\",\"\",SUBTOTAL(3,C$5:C688))","v":684},null,"طالب رقم 684","2003-01-12",16,"ذكر","ليبية","الاول","عام","2/1","مستجد","","مسائية"]
[{"$f":"IF(C689=\"\",\"\",SUBTOTAL(3,C$5:C689))","v":685},null,"طالب رقم 685","2001-12-22",17,"ذكر","ليبية","الثالث","علمي","5/3","مستجد","","صباحية"]
[{"$f":"IF(C690=\"\",\"\",SUBTOTAL(3,C$5:C690))","v":686},null,"طالب رقم 686","2003-08-17",15,"ذكر","ليبية","الاول","عام","5/1","مستجد","","مسائية"]
[{"$f":"IF(C691=\"\",\"\",SUBTOTAL(3,C$5:C691))","v":687},null,"طالب رقم 687","1999-09-26",19,"ذكر","جزائرية","الثالث","علمي","5/3","مستجد","","صباحية"]
[{"$f":"IF(C692=\"\",\"\",SUBTOTAL(3,C$5:C692))","v":688},null,"طالب رقم 688","2003-06-11",15,"ذكر","ليبية","الاول","عام","5/1","مستجد","","مسائية"]
[{"$f":"IF(C693=\"\",\"\",SUBTOTAL(3,C$5:C693))","v":689},null,"طالب رقم 689","2003-06-17",15,"ذكر","ليبية","الاول","عام","1/1","مستجد","","مسائية"]
[{"$f":"IF(C694=\"\",\"\",SUBTOTAL(3,C$5:C694))","v":690},null,"طالب رقم 690","2003-05-01",15,"ذكر","ليبية","الاول","عام","1/1","مستجد","","مسائية"]
[{"$f":"IF(C695=\"\",\"\",SUBTOTAL(3,C$5:C695))","v":691},null,"طالب رقم 691","2003-03-25",15,"ذكر","ليبية","الاول","عام","6/1","مستجد","","مسائية"]
[{"$f":"IF(C696=\"\",\"\",SUBTOTAL(3,C$5:C696))","v":692},null,"طالب رقم 692","2003-05-03",15,"ذكر","ليبية","الاول","عام","1/1","مستجد",null,"مسائية"]
[{"$f":"IF(C697=\"\",\"\",SUBTOTAL(3,C$5:C697))","v":693},null,"طالب رقم 693","2001-02-10",18,"ذكر","ليبية","الثالث","علمي","5/3","مستجد",null,"صباحية"]
[{"$f":"IF(C698=\"\",\"\",SUBTOTAL(3,C$5:C698))","v":694},null,"طالب رقم 694","2003-09-30",15,"ذكر","ليبية","الاول","عام","2/1","مستجد","","مسائية"]
[{"$f":"IF(C699=\"\",\"\",SUBTOTAL(3,C$5:C699))","v":695},null,"طالب رقم 695","2001-09-18",17,"ذكر","ليبية","الثاني","علمي","2/2","معيد","مرة واحدة","مسائية"]
[{"$f":"IF(C700=\"\",\"\",SUBTOTAL(3,C$5:C700))","v":696},null,"طالب رقم 696","2002-12-22",16,"ذكر","ليبية","الثاني","علمي","2/2","مستجد","","مسائية"]
[{"$f":"IF(C701=\"\",\"\",SUBTOTAL(3,C$5:C701))","v":697},null,"طالب رقم 697","2003-09-03",15,"ذكر","ليبية","الاول","عام","4/1","مستجد","","مسائية"]
[{"$f":"IF(C702=\"\",\"\",SUBTOTAL(3,C$5:C702))","v":698},null,"طالب رقم 698","2002-01-28",17,"ذكر","ليبية","الثاني","علمي","1/2","مستجد","","مسائية"]
[{"$f":"IF(C703=\"\",\"\",SUBTOTAL(3,C$5:C703))","v":699},null,"طالب رقم 699","2003-10-11",15,"انثى","ليبية","الاول","عام","4/1","مستجد","","صباحية"]
[{"$f":"IF(C704=\"\",\"\",SUBTOTAL(3,C$5:C704))","v":700},null,"طالب رقم 700","2003-02-05",16,"انثى","ليبية","الاول","عام","3/1","مستجد","","صباحية"]
[{"$f":"IF(C705=\"\",\"\",SUBTOTAL(3,C$5:C705))","v":701},null,"طالب رقم 701","2002-04-23",16,"انثى","ليبية","الاول","عام","5/1","معيد","مرة واحدة","صباحية"]
[{"$f":"IF(C706=\"\",\"\",SUBTOTAL(3,C$5:C706))","v":702},null,"طالب رقم 702","2003-11-21",15,"انثى","ليبية","الاول","عام","4/1","مستجد","","صباحية"]
[{"$f":"IF(C707=\"\",\"\",SUBTOTAL(3,C$5:C707))","v":703},null,"طالب رقم 703","2002-08-06",16,"انثى","ليبية","الثاني","علمي","3/2","مستجد","","صباحية"]
[{"$f":"IF(C708=\"\",\"\",SUBTOTAL(3,C$5:C708))","v":704},null,"طالب رقم 704","2002-02-02",17,"انثى","ليبية","الثاني","علمي","1/2","مستجد","","صباحية"]
[{"$f":"IF(C709=\"\",\"\",SUBTOTAL(3,C$5:C709))","v":705},null,"طالب رقم 705","2003-04-25",{"$f":"DATEDIF(D709,TODAY(),\"Y\")","v":15},"انثى","ليبية","الاول","عام","4/1","مستجد","","صباحية"]
[{"$f":"IF(C710=\"\",\"\",SUBTOTAL(3,C$5:C710))","v":706},null,"طالب رقم 706","2003-11-07",15,"انثى","ليبية","الاول","عام","2/1","مستجد","","صباحية"]
[{"$f":"IF(C711=\"\",\"\",SUBTOTAL(3,C$5:C711))","v":707},null,"طالب رقم 707","2002-12-21",16,"ذكر","ليبية","الثاني","علمي","2/2","مستجد","","مسائية"]
[{"$f":"IF(C712=\"\",\"\",SUBTOTAL(3,C$5:C712))","v":708},null,"طالب رقم 708","2003-09-03",15,"انثى","ليبية","الاول","عام","6/1","مستجد","","صباحية"]
[{"$f":"IF(C713=\"\",\"\",SUBTOTAL(3,C$5:C713))","v":709},null,"طالب رقم 709","2001-10-05",17,"انثى","ليبية","الاول","عام","4/1","مستجد","","صباحية"]
[{"$f":"IF(C714=\"\",\"\",SUBTOTAL(3,C$5:C714))","v":710},null,"طالب رقم 710","2001-03-30",17,"انثى","ليبية","الثالث","علمي","1/3","مستجد","","صباحية"]
[{"$f":"IF(C715=\"\",\"\",SUBTOTAL(3,C$5:C715))","v":711},null,"طالب رقم 711","2002-04-27",16,"انثى","ليبية","الثاني","علمي","2/2","مستجد","","صباحية"]
[{"$f":"IF(C716=\"\",\"\",SUBTOTAL(3,C$5:C716))","v":712},null,"طالب رقم 712","2002-01-13",17,"انثى","ليبية","الثاني","ادبي","1/2","مستجد","","صباحية"]
[{"$f":"IF(C717=\"\",\"\",SUBTOTAL(3,C$5:C717))","v":713},null,"طالب رقم 713","2003-09-30",15,"انثى","ليبية","الاول","عام","2/1","مستجد","","صباحية"]
[{"$f":"IF(C718=\"\",\"\",SUBTOTAL(3,C$5:C718))","v":714},null,"طالب رقم 714","2003-04-03",15,"انثى","ليبية","الاول","عام","6/1","مستجد","","صباحية"]
[{"$f":"IF(C719=\"\",\"\",SUBTOTAL(3,C$5:C719))","v":715},null,"طالب رقم 715","2002-04-24",16,"انثى","ليبية","الثاني","علمي","4/2","مستجد","","صباحية"]
[{"$f":"IF(C720=\"\",\"\",SUBTOTAL(3,C$5:C720))","v":716},null,"طالب رقم 716","2002-07-04",16,"انثى","ليبية","الثاني","ادبي","1/2","مستجد","","صباحية"]
[{"$f":"IF(C721=\"\",\"\",SUBTOTAL(3,C$5:C721))","v":717},null,"طالب رقم 717","2003-09-25",15,"انثى","ليبية","الاول","عام","4/1","مستجد","","صباحية"]
[{"$f":"IF(C722=\"\",\"\",SUBTOTAL(3,C$5:C722))","v":718},null,"طالب رقم 718","2003-07-28",15,"انثى","ليبية","الاول","عام","6/1","مستجد","","صباحية"]
[{"$f":"IF(C723=\"\",\"\",SUBTOTAL(3,C$5:C723))","v":719},null,"طالب رقم 719","2003-07-09",15,"انثى","ليبية","الاول","عام","3/1","مستجد","","صباحية"]
[{"$f":"IF(C724=\"\",\"\",SUBTOTAL(3,C$5:C724))","v":720},null,"طالب رقم 720","2003-07-29",15,"انثى","ليبية","الاول","عام","3/1","مستجد",null,"صباحية"]
[{"$f":"IF(C725=\"\",\"\",SUBTOTAL(3,C$5:C725))","v":721},null,"طالب رقم 721","2003-09-14",15,"انثى","ليبية","الاول","عام","3/1","مستجد","","صباحية"]
[{"$f":"IF(C726=\"\",\"\",SUBTOTAL(3,C$5:C726))","v":722},null,"طالب رقم 722","2002-04-16",16,"انثى","ليبية","الثاني","ادبي","1/2","مستجد","","صباحية"]
[{"$f":"IF(C727=\"\",\"\",SUBTOTAL(3,C$5:C727))","v":723},null,"طالب رقم 723","2002-01-26",17,"انثى","ليبية","الثاني","علمي","4/2","مستجد","","صباحية"]
[{"$f":"IF(C728=\"\",\"\",SUBTOTAL(3,C$5:C728))","v":724},null,"طالب رقم 724","2003-11-26",15,"انثى","ليبية","الاول","عام","4/1","مستجد","","صباحية"]
[{"$f":"IF(C729=\"\",\"\",SUBTOTAL(3,C$5:C729))","v":725},null,"طالب رقم 725","2001-05-02",17,"انثى","ليبية","الثالث","علمي","2/3","مستجد","","صباحية"]
[{"$f":"IF(C730=\"\",\"\",SUBTOTAL(3,C$5:C730))","v":726},null,"طالب رقم 726","2002-05-07",16,"انثى","ليبية","الثاني","علمي","4/2","مستجد","","صباحية"]
[{"$f":"IF(C731=\"\",\"\",SUBTOTAL(3,C$5:C731))","v":727},null,"طالب رقم 727","2002-03-08",16,"انثى","ليبية","الثاني","علمي","2/2","مستجد","","صباحية"]
[{"$f":"IF(C732=\"\",\"\",SUBTOTAL(3,C$5:C732))","v":728},null,"طالب رقم 728","2001-06-12",17,"انثى","ليبية","الثالث","علمي","1/3","مستجد","","صباحية"]
[{"$f":"IF(C733=\"\",\"\",SUBTOTAL(3,C$5:C733))","v":729},null,"طالب رقم 729","2003-01-24",16,"انثى","ليبية","الاول","عام","2/1","مستجد","","صباحية"]
[{"$f":"IF(C734=\"\",\"\",SUBTOTAL(3,C$5:C734))","v":730},null,"طالب رقم 730","2001-06-21",17,"انثى","ليبية","الثالث","علمي","1/3","مستجد","","صباحية"]
[{"$f":"IF(C735=\"\",\"\",SUBTOTAL(3,C$5:C735))","v":731},null,"طالب رقم 731","2003-06-12",15,"انثى","ليبية","الاول","عام","5/1","مستجد","","صباحية"]
[{"$f":"IF(C736=\"\",\"\",SUBTOTAL(3,C$5:C736))","v":732},null,"طالب رقم 732","2004-01-27",15,"انثى","ليبية","الاول","عام","6/1","مستجد","","صباحية"]
[{"$f":"IF(C737=\"\",\"\",SUBTOTAL(3,C$5:C737))","v":733},null,"طالب رقم 733","2003-10-12",15,"ذكر","ليبية","الاول","عام","6/1","مستجد","","مسائية"]
[{"$f":"IF(C738=\"\",\"\",SUBTOTAL(3,C$5:C738))","v":734},null,"طالب رقم 734","2001-08-05",17,"ذكر","ليبية","الثالث","علمي","6/3","مستجد","","صباحية"]
[{"$f":"IF(C739=\"\",\"\",SUBTOTAL(3,C$5:C739))","v":735},null,"طالب رقم 735","2003-06-09",15,"ذكر","ليبية","الاول","عام","2/1","مستجد","","مسائية"]
[{"$f":"IF(C740=\"\",\"\",SUBTOTAL(3,C$5:C740))","v":736},null,"طالب رقم 736","2003-09-07",15,"ذكر","مصرية","الاول","عام","6/1","مستجد","","مسائية"]
[{"$f":"IF(C741=\"\",\"\",SUBTOTAL(3,C$5:C741))","v":737},null,"طالب رقم 737","2001-10-19",17,"ذكر","ليبية","الثالث","علمي","5/3","مستجد","","صباحية"]
[{"$f":"IF(C742=\"\",\"\",SUBTOTAL(3,C$5:C742))","v":738},null,"طالب رقم 738","2001-03-10",17,"ذكر","ليبية","الثالث","علمي","4/3","مستجد","","صباحية"]
[{"$f":"IF(C743=\"\",\"\",SUBTOTAL(3,C$5:C743))","v":739},null,"طالب رقم 739","2003-10-18",15,"ذكر","ليبية","الاول","عام","6/1","مستجد","","مسائية"]
[{"$f":"IF(C744=\"\",\"\",SUBTOTAL(3,C$5:C744))","v":740},null,"طالب رقم 740","2001-02-05",18,"ذكر","ليبية","الثاني","علمي","3/2","مستجد","","مسائية"]
[{"$f":"IF(C745=\"\",\"\",SUBTOTAL(3,C$5:C745))","v":741},null,"طالب رقم 741","2003-09-13",15,"ذكر","ليبية","الاول","عام","3/1","مستجد","","مسائية"]
[{"$f":"IF(C746=\"\",\"\",SUBTOTAL(3,C$5:C746))","v":742},null,"طالب رقم 742","2003-08-15",15,"ذكر","ليبية","الاول","عام","3/1","مستجد","","مسائية"]
[{"$f":"IF(C747=\"\",\"\",SUBTOTAL(3,C$5:C747))","v":743},null,"طالب رقم 743","2003-11-20",15,"ذكر","ليبية","الاول","عام","3/1","مستجد","","مسائية"]
[{"$f":"IF(C748=\"\",\"\",SUBTOTAL(3,C$5:C748))","v":744},null,"طالب رقم 744","2001-03-16",17,"ذكر","ليبية","الثاني","علمي","2/2","معيد","مرة واحدة","مسائية"]
[{"$f":"IF(C749=\"\",\"\",SUBTOTAL(3,C$5:C749))","v":745},null,"طالب رقم 745","2002-02-03",17,"ذكر","ليبية","الثاني","علمي","1/2","مستجد","","مسائية"]
[{"$f":"IF(C750=\"\",\"\",SUBTOTAL(3,C$5:C750))","v":746},null,"طالب رقم 746","2002-03-10",16,"ذكر","ليبية","الثاني","علمي","2/2","مستجد","","مسائية"]
[{"$f":"IF(C751=\"\",\"\",SUBTOTAL(3,C$5:C751))","v":747},null,"طالب رقم 747","2002-08-17",16,"ذكر","ليبية","الثاني","علمي","3/2","مستجد","","مسائية"]
[{"$f":"IF(C752=\"\",\"\",SUBTOTAL(3,C$5:C752))","v":748},null,"طالب رقم 748","2003-10-19",15,"ذكر","ليبية","الاول","عام","3/1","مستجد","","مسائية"]
[{"$f":"IF(C753=\"\",\"\",SUBTOTAL(3,C$5:C753))","v":749},null,"طالب رقم 749","2003-03-13",15,"ذكر","ليبية","الاول","عام","6/1","مستجد","","مسائية"]
[{"$f":"IF(C754=\"\",\"\",SUBTOTAL(3,C$5:C754))","v":750},null,"طالب رقم 750","2000-08-10",18,"انثى","ليبية","الثالث","علمي","3/3","مستجد","","صباحية"]
[{"$f":"IF(C755=\"\",\"\",SUBTOTAL(3,C$5:C755))","v":751},null,"طالب رقم 751","2003-03-16",15,"ذكر","ليبية","الاول","عام","3/1","مستجد","","مسائية"]
[{"$f":"IF(C756=\"\",\"\",SUBTOTAL(3,C$5:C756))","v":752},null,"طالب رقم 752","2003-01-25",16,"ذكر","ليبية","الاول","عام","2/1","مستجد",null,"مسائية"]
[{"$f":"IF(C757=\"\",\"\",SUBTOTAL(3,C$5:C757))","v":753},null,"طالب رقم 753","2003-10-27",15,"انثى","ليبية","الاول","عام","3/1","مستجد","","صباحية"]
[{"$f":"IF(C758=\"\",\"\",SUBTOTAL(3,C$5:C758))","v":754},null,"طالب رقم 754","2001-05-07",17,"انثى","ليبية","الثالث","علمي","1/3","مستجد","","صباحية"]
[{"$f":"IF(C759=\"\",\"\",SUBTOTAL(3,C$5:C759))","v":755},null,"طالب رقم 755","2001-07-12",17,"ذكر","ليبية","الثالث","علمي","6/3","مستجد","","صباحية"]
[{"$f":"IF(C760=\"\",\"\",SUBTOTAL(3,C$5:C760))","v":756},null,"طالب رقم 756","2003-09-19",15,"انثى","ليبية","الاول","عام","6/1","مستجد","","صباحية"]
[{"$f":"IF(C761=\"\",\"\",SUBTOTAL(3,C$5:C761))","v":757},null,"طالب رقم 757","2001-06-20",17,"انثى","ليبية","الثاني","علمي","1/2","مستجد","","صباحية"]
[{"$f":"IF(C762=\"\",\"\",SUBTOTAL(3,C$5:C762))","v":758},null,"طالب رقم 758","2003-05-30",15,"انثى","ليبية","الاول","عام","1/1","مستجد","","صباحية"]
[{"$f":"IF(C763=\"\",\"\",SUBTOTAL(3,C$5:C763))","v":759},null,"طالب رقم 759","2002-01-16",17,"انثى","ليبية","الثاني","علمي","1/2","مستجد","","صباحية"]
[{"$f":"IF(C764=\"\",\"\",SUBTOTAL(3,C$5:C764))","v":760},null,"طالب رقم 760","2001-09-08",17,"انثى","ليبية","الثالث","علمي","3/3","مستجد","","صباحية"]
[{"$f":"IF(C765=\"\",\"\",SUBTOTAL(3,C$5:C765))","v":761},null,"طالب رقم 761","2001-12-09",17,"انثى","ليبية","الثالث","علمي","2/3","مستجد","","صباحية"]
[{"$f":"IF(C766=\"\",\"\",SUBTOTAL(3,C$5:C766))","v":762},null,"طالب رقم 762","2003-12-16",15,"انثى","ليبية","الاول","عام","5/1","مستجد","","صباحية"]
[{"$f":"IF(C767=\"\",\"\",SUBTOTAL(3,C$5:C767))","v":763},null,"طالب رقم 763","2003-05-03",15,"انثى","ليبية","الاول","عام","2/1","مستجد","","صباحية"]
[{"$f":"IF(C768=\"\",\"\",SUBTOTAL(3,C$5:C768))","v":764},null,"طالب رقم 764","2002-11-29",16,"انثى","ليبية","الثاني","علمي","3/2","مستجد","","صباحية"]
[{"$f":"IF(C769=\"\",\"\",SUBTOTAL(3,C$5:C769))","v":765},null,"طالب رقم 765","2003-02-02",16,"انثى","ليبية","الثاني","علمي","4/2","مستجد","","صباحية"]
[{"$f":"IF(C770=\"\",\"\",SUBTOTAL(3,C$5:C770))","v":766},null,"طالب رقم 766","2003-08-24",15,"ذكر","ليبية","الاول","عام","6/1","مستجد","","مسائية"]
[{"$f":"IF(C771=\"\",\"\",SUBTOTAL(3,C$5:C771))","v":767},null,"طالب رقم 767","2002-09-23",16,"انثى","ليبية","الثاني","علمي","3/2","مستجد","","صباحية"]
[{"$f":"IF(C772=\"\",\"\",SUBTOTAL(3,C$5:C772))","v":768},null,"طالب رقم 768","2001-06-18",17,"انثى","ليبية","الثالث","علمي","3/3","مستجد","","صباحية"]
[{"$f":"IF(C773=\"\",\"\",SUBTOTAL(3,C$5:C773))","v":769},null,"طالب رقم 769","2002-09-25",{"$f":"DATEDIF(D773,TODAY(),\"Y\")","v":16},"انثى","ليبية","الثاني","علمي","3/2","مستجد","","صباحية"]
[{"$f":"IF(C774=\"\",\"\",SUBTOTAL(3,C$5:C774))","v":770},null,"طالب رقم 770","2003-04-23",15,"انثى","ليبية","الاول","عام","2/1","مستجد","","صباحية"]
[{"$f":"IF(C775=\"\",\"\",SUBTOTAL(3,C$5:C775))","v":771},null,"طالب رقم 771","2002-08-28",16,"انثى","سورية","الاول","عام","3/1","مستجد",null,"صباحية"]
[{"$f":"IF(C776=\"\",\"\",SUBTOTAL(3,C$5:C776))","v":772},null,"طالب رقم 772","2003-08-11",15,"انثى","ليبية","الاول","عام","5/1","مستجد","","صباحية"]
[{"$f":"IF(C777=\"\",\"\",SUBTOTAL(3,C$5:C777))","v":773},null,"طالب رقم 773","2001-09-26",17,"انثى","ليبية","الثالث","علمي","1/3","مستجد","","صباحية"]
[{"$f":"IF(C778=\"\",\"\",SUBTOTAL(3,C$5:C778))","v":774},null,"طالب رقم 774","2003-01-02",16,"انثى","ليبية","الثاني","علمي","3/2","مستجد","","صباحية"]
[{"$f":"IF(C779=\"\",\"\",SUBTOTAL(3,C$5:C779))","v":775},null,"طالب رقم 775","2003-04-20",15,"انثى","ليبية","الاول","عام","5/1","مستجد","","صباحية"]
[{"$f":"IF(C780=\"\",\"\",SUBTOTAL(3,C$5:C780))","v":776},null,"طالب رقم 776","2003-01-19",16,"انثى","ليبية","الاول","عام","5/1","مستجد","","صباحية"]
[{"$f":"IF(C781=\"\",\"\",SUBTOTAL(3,C$5:C781))","v":777},null,"طالب رقم 777","2001-11-23",17,"انثى","ليبية","الثاني","علمي","4/2","معيد","مرة واحدة","صباحية"]
[{"$f":"IF(C782=\"\",\"\",SUBTOTAL(3,C$5:C782))","v":778},null,"طالب رقم 778","2002-10-22",16,"ذكر","ليبية","الاول","عام","6/1","مستجد","","مسائية"]
[{"$f":"IF(C783=\"\",\"\",SUBTOTAL(3,C$5:C783))","v":779},null,"طالب رقم 779","1999-07-13",19,"ذكر","ليبية","الثاني","علمي","1/2","معيد","مرة واحدة","مسائية"]
[{"$f":"IF(C784=\"\",\"\",SUBTOTAL(3,C$5:C784))","v":780},null,"طالب رقم 780","2001-09-21",17,"ذكر","ليبية","الثالث","علمي","4/3","مستجد","","صباحية"]
[{"$f":"IF(C785=\"\",\"\",SUBTOTAL(3,C$5:C785))","v":781},null,"طالب رقم 781","2002-05-21",16,"ذكر","ليبية","الثاني","علمي","1/2","مستجد","","مسائية"]
[{"$f":"IF(C786=\"\",\"\",SUBTOTAL(3,C$5:C786))","v":782},null,"طالب رقم 782","2001-07-22",17,"ذكر","ليبية","الثالث","علمي","5/3","مستجد","","صباحية"]
[{"$f":"IF(C787=\"\",\"\",SUBTOTAL(3,C$5:C787))","v":783},null,"طالب رقم 783","2003-03-30",15,"انثى","ليبية","الاول","عام","4/1","مستجد","","صباحية"]
[{"$f":"IF(C788=\"\",\"\",SUBTOTAL(3,C$5:C788))","v":784},null,"طالب رقم 784","2001-06-02",17,"انثى","ليبية","الثالث","علمي","3/3","مستجد","","صباحية"]
[{"$f":"IF(C789=\"\",\"\",SUBTOTAL(3,C$5:C789))","v":785},null,"طالب رقم 785","2003-09-27",15,"انثى","ليبية","الاول","عام","1/1","مستجد","","صباحية"]
[{"$f":"IF(C790=\"\",\"\",SUBTOTAL(3,C$5:C790))","v":786},null,"طالب رقم 786","2003-02-18",16,"انثى","ليبية","الاول","عام","4/1","مستجد","","صباحية"]
[{"$f":"IF(C791=\"\",\"\",SUBTOTAL(3,C$5:C791))","v":787},null,"طالب رقم 787","2002-01-12",17,"انثى","ليبية","الثاني","ادبي","1/2","مستجد","","صباحية"]
[{"$f":"IF(C792=\"\",\"\",SUBTOTAL(3,C$5:C792))","v":788},null,"طالب رقم 788","2003-11-26",15,"انثى","ليبية","الاول","عام","1/1","مستجد","","صباحية"]
[{"$f":"IF(C793=\"\",\"\",SUBTOTAL(3,C$5:C793))","v":789},null,"طالب رقم 789","2002-10-22",16,"انثى","ليبية","الثاني","ادبي","1/2","مستجد","","صباحية"]
[{"$f":"IF(C794=\"\",\"\",SUBTOTAL(3,C$5:C794))","v":790},null,"طالب رقم 790","2002-06-04",16,"ذكر","ليبية","الثاني","علمي","2/2","مستجد","","مسائية"]
[{"$f":"IF(C795=\"\",\"\",SUBTOTAL(3,C$5:C795))","v":791},null,"طالب رقم 791","2003-12-07",15,"انثى","ليبية","الاول","عام","5/1","مستجد","","صباحية"]
[{"$f":"IF(C796=\"\",\"\",SUBTOTAL(3,C$5:C796))","v":792},null,"طالب رقم 792","2003-09-20",15,"انثى","ليبية","الاول","عام","5/1","مستجد","","صباحية"]
[{"$f":"IF(C797=\"\",\"\",SUBTOTAL(3,C$5:C797))","v":793},null,"طالب رقم 793","2003-03-14",15,"انثى","سورية","الاول","عام","3/1","مستجد",null,"صباحية"]
[{"$f":"IF(C798=\"\",\"\",SUBTOTAL(3,C$5:C798))","v":794},null,"طالب رقم 794","2001-10-07",17,"انثى","ليبية","الثالث","علمي","3/3","مستجد","","صباحية"]
[{"$f":"IF(C799=\"\",\"\",SUBTOTAL(3,C$5:C799))","v":795},null,"طالب رقم 795","2003-07-04",15,"انثى","ليبية","الاول","عام","5/1","مستجد","","صباحية"]
[{"$f":"IF(C800=\"\",\"\",SUBTOTAL(3,C$5:C800))","v":796},null,"طالب رقم 796","2003-06-29",15,"انثى","ليبية","الاول","عام","4/1","مستجد","","صباحية"]
[{"$f":"IF(C801=\"\",\"\",SUBTOTAL(3,C$5:C801))","v":797},null,"طالب رقم 797","2003-04-02",15,"انثى","ليبية","الاول","عام","4/1","مستجد","","صباحية"]
[{"$f":"IF(C802=\"\",\"\",SUBTOTAL(3,C$5:C802))","v":798},null,"طالب رقم 798","2001-10-12",17,"انثى","ليبية","الاول","عام","2/1","مستجد","","صباحية"]
[{"$f":"IF(C803=\"\",\"\",SUBTOTAL(3,C$5:C803))","v":799},null,"طالب رقم 799","2003-08-25",15,"انثى","ليبية","الاول","عام","6/1","مستجد","","صباحية"]
[{"$f":"IF(C804=\"\",\"\",SUBTOTAL(3,C$5:C804))","v":800},null,"طالب رقم 800","2003-08-15",15,"انثى","ليبية","الاول","عام","5/1","مستجد","","صباحية"]
[{"$f":"IF(C805=\"\",\"\",SUBTOTAL(3,C$5:C805))","v":801},null,"طالب رقم 801","2002-05-10",16,"انثى","ليبية","الثاني","علمي","1/2","مستجد","","صباحية"]
[{"$f":"IF(C806=\"\",\"\",SUBTOTAL(3,C$5:C806))","v":802},null,"طالب رقم 802","2003-10-15",15,"انثى","ليبية","الاول","عام","4/1","مستجد","","صباحية"]
[{"$f":"IF(C807=\"\",\"\",SUBTOTAL(3,C$5:C807))","v":803},null,"طالب رقم 803","2003-10-12",15,"انثى","ليبية","الاول","عام","5/1","مستجد","","صباحية"]
[{"$f":"IF(C808=\"\",\"\",SUBTOTAL(3,C$5:C808))","v":804},null,"طالب رقم 804","2003-06-11",15,"انثى","ليبية","الثاني","علمي","2/2","مستجد","","صباحية"]
[{"$f":"IF(C809=\"\",\"\",SUBTOTAL(3,C$5:C809))","v":805},null,"طالب رقم 805","2003-09-25",15,"انثى","ليبية","الاول","عام","1/1","مستجد","","صباحية"]
[{"$f":"IF(C810=\"\",\"\",SUBTOTAL(3,C$5:C810))","v":806},null,"طالب رقم 806","2002-06-15",16,"انثى","ليبية","الثاني","علمي","2/2","مستجد","","صباحية"]
[{"$f":"IF(C811=\"\",\"\",SUBTOTAL(3,C$5:C811))","v":807},null,"طالب رقم 807","2002-11-06",16,"انثى","ليبية","الثاني","ادبي","1/2","مستجد","","صباحية"]
[{"$f":"IF(C812=\"\",\"\",SUBTOTAL(3,C$5:C812))","v":808},null,"طالب رقم 808","2002-08-12",16,"انثى","ليبية","الثاني","علمي","4/2","مستجد","","صباحية"]
[{"$f":"IF(C813=\"\",\"\",SUBTOTAL(3,C$5:C813))","v":809},null,"طالب رقم 809","2003-12-13",15,"انثى","ليبية","الاول","عام","5/1","مستجد","","صباحية"]
[{"$f":"IF(C814=\"\",\"\",SUBTOTAL(3,C$5:C814))","v":810},null,"طالب رقم 810","2003-09-23",15,"انثى","ليبية","الاول","عام","5/1","مستجد","","صباحية"]
[{"$f":"IF(C815=\"\",\"\",SUBTOTAL(3,C$5:C815))","v":811},null,"طالب رقم 811","2003-10-23",15,"انثى","ليبية","الاول","عام","1/1","مستجد","","صباحية"]
[{"$f":"IF(C816=\"\",\"\",SUBTOTAL(3,C$5:C816))","v":812},null,"طالب رقم 812","2001-11-11",17,"انثى","ليبية","الثاني","ادبي","1/2","معيد","مرة واحدة"]
[{"$f":"IF(C817=\"\",\"\",SUBTOTAL(3,C$5:C817))","v":813},null,"طالب رقم 813","2002-11-19",16,"انثى","ليبية","الثاني","علمي","1/2","مستجد","","صباحية"]
[{"$f":"IF(C818=\"\",\"\",SUBTOTAL(3,C$5:C818))","v":814},null,"طالب رقم 814","2002-06-08",16,"انثى","ليبية","الثاني","علمي","3/2","مستجد","","صباحية"]
[{"$f":"IF(C819=\"\",\"\",SUBTOTAL(3,C$5:C819))","v":815},null,"طالب رقم 815","2003-03-20",15,"انثى","ليبية","الاول","عام","5/1","مستجد","","صباحية"]
[{"$f":"IF(C820=\"\",\"\",SUBTOTAL(3,C$5:C820))","v":816},null,"طالب رقم 816","2002-09-05",16,"انثى","ليبية","الثاني","علمي","4/2","مستجد","","صباحية"]
[{"$f":"IF(C821=\"\",\"\",SUBTOTAL(3,C$5:C821))","v":817},null,"طالب رقم 817","2003-05-18",15,"انثى","ليبية","الاول","عام","1/1","مستجد","","صباحية"]
[{"$f":"IF(C822=\"\",\"\",SUBTOTAL(3,C$5:C822))","v":818},null,"طالب رقم 818","2003-05-19",15,"انثى","ليبية","الاول","عام","3/1","مستجد","","صباحية"]
[{"$f":"IF(C823=\"\",\"\",SUBTOTAL(3,C$5:C823))","v":819},null,"طالب رقم 819","2004-03-26",14,"انثى","مصرية","الاول","عام","3/1","مستجد","","صباحية"]
[{"$f":"IF(C824=\"\",\"\",SUBTOTAL(3,C$5:C824))","v":820},null,"طالب رقم 820","2004-01-08",15,"انثى","ليبية","الاول","عام","3/1","مستجد","","صباحية"]
[{"$f":"IF(C825=\"\",\"\",SUBTOTAL(3,C$5:C825))","v":821},null,"طالب رقم 821","2001-01-10",18,"انثى","ليبية","الثالث","علمي","1/3","مستجد","","صباحية"]
[{"$f":"IF(C826=\"\",\"\",SUBTOTAL(3,C$5:C826))","v":822},null,"طالب رقم 822","2003-06-05",15,"انثى","ليبية","الاول","عام","2/1","مستجد","","صباحية"]
[{"$f":"IF(C827=\"\",\"\",SUBTOTAL(3,C$5:C827))","v":823},null,"طالب رقم 823","2003-08-22",15,"ذكر","ليبية","الاول","عام","3/1","مستجد","","مسائية"]
[{"$f":"IF(C828=\"\",\"\",SUBTOTAL(3,C$5:C828))","v":824},null,"طالب رقم 824","2002-03-17",16,"انثى","ليبية","الثاني","ادبي","1/2","مستجد","","صباحية"]
[{"$f":"IF(C829=\"\",\"\",SUBTOTAL(3,C$5:C829))","v":825},null,"طالب رقم 825","2001-01-28",18,"انثى","ليبية","الثالث","علمي","1/3","مستجد","","صباحية"]
[{"$f":"IF(C830=\"\",\"\",SUBTOTAL(3,C$5:C830))","v":826},null,"طالب رقم 826","2002-10-26",16,"انثى","ليبية","الثاني","ادبي","1/2","مستجد","","صباحية"]
[{"$f":"IF(C831=\"\",\"\",SUBTOTAL(3,C$5:C831))","v":827},null,"طالب رقم 827","2002-08-17",16,"انثى","ليبية","الاول","عام","4/1","مستجد","","صباحية"]
[{"$f":"IF(C832=\"\",\"\",SUBTOTAL(3,C$5:C832))","v":828},null,"طالب رقم 828","2002-12-23",16,"انثى","ليبية","الثاني","علمي","2/2","مستجد","","صباحية"]
[{"$f":"IF(C833=\"\",\"\",SUBTOTAL(3,C$5:C833))","v":829},null,"طالب رقم 829","2001-11-23",17,"انثى","ليبية","الثاني","علمي","1/2","مستجد","","صباحية"]
[{"$f":"IF(C834=\"\",\"\",SUBTOTAL(3,C$5:C834))","v":830},null,"طالب رقم 830","2002-04-09",16,"انثى","ليبية","الثاني","علمي","4/2","مستجد","","صباحية"]
[{"$f":"IF(C835=\"\",\"\",SUBTOTAL(3,C$5:C835))","v":831},null,"طالب رقم 831","2002-03-09",16,"انثى","ليبية","الثاني","علمي","4/2","مستجد","","صباحية"]
[{"$f":"IF(C836=\"\",\"\",SUBTOTAL(3,C$5:C836))","v":832},null,"طالب رقم 832","2003-07-11",15,"انثى","ليبية","الثاني","علمي","4/2","مستجد","","صباحية"]
[{"$f":"IF(C837=\"\",\"\",SUBTOTAL(3,C$5:C837))","v":833},null,"طالب رقم 833","2001-02-11",{"$f":"DATEDIF(D837,TODAY(),\"Y\")","v":18},"انثى","ليبية","الثالث","علمي","2/3","مستجد","","صباحية"]
[{"$f":"IF(C838=\"\",\"\",SUBTOTAL(3,C$5:C838))","v":834},null,"طالب رقم 834","2004-01-31",15,"انثى","ليبية","الاول","عام","2/1","مستجد","","صباحية"]
[{"$f":"IF(C839=\"\",\"\",SUBTOTAL(3,C$5:C839))","v":835},null,"طالب رقم 835","2003-06-12",15,"انثى","ليبية","الاول","عام","1/1","مستجد","","صباحية"]
[{"$f":"IF(C840=\"\",\"\",SUBTOTAL(3,C$5:C840))","v":836},null,"طالب رقم 836","2003-09-10",15,"انثى","ليبية","الاول","عام","1/1","مستجد","","صباحية"]
[{"$f":"IF(C841=\"\",\"\",SUBTOTAL(3,C$5:C841))","v":837},null,"طالب رقم 837","2003-10-18",15,"ذكر","ليبية","الاول","عام","2/1","مستجد","","مسائية"]
[{"$f":"IF(C842=\"\",\"\",SUBTOTAL(3,C$5:C842))","v":838},null,"طالب رقم 838","2001-08-12",17,"ذكر","ليبية","الثالث","علمي","4/3","مستجد","","صباحية"]
[{"$f":"IF(C843=\"\",\"\",SUBTOTAL(3,C$5:C843))","v":839},null,"طالب رقم 839","2003-07-19",15,"انثى","ليبية","الاول","عام","4/1","مستجد","","صباحية"]
[{"$f":"IF(C844=\"\",\"\",SUBTOTAL(3,C$5:C844))","v":840},null,"طالب رقم 840","2002-10-09",16,"انثى","ليبية","الثاني","علمي","4/2","مستجد","","صباحية"]
[{"$f":"IF(C845=\"\",\"\",SUBTOTAL(3,C$5:C845))","v":841},null,"طالب رقم 841","2002-05-05",16,"انثى","ليبية","الثاني","علمي","4/2","مستجد","","صباحية"]
[{"$f":"IF(C846=\"\",\"\",SUBTOTAL(3,C$5:C846))","v":842},null,"طالب رقم 842","2001-09-02",17,"انثى","ليبية","الثالث","علمي","2/3","مستجد","","صباحية"]
[{"$f":"IF(C847=\"\",\"\",SUBTOTAL(3,C$5:C847))","v":843},null,"طالب رقم 843","2001-05-05",17,"انثى","ليبية","الثالث","علمي","3/3","مستجد","","صباحية"]
[{"$f":"IF(C848=\"\",\"\",SUBTOTAL(3,C$5:C848))","v":844},null,"طالب رقم 844","2003-01-01",16,"انثى","ليبية","الثاني","علمي","1/2","مستجد","","صباحية"]
[{"$f":"IF(C849=\"\",\"\",SUBTOTAL(3,C$5:C849))","v":845},null,"طالب رقم 845","2002-10-31",16,"انثى","ليبية","الثاني","علمي","1/2","مستجد","","صباحية"]
[{"$f":"IF(C850=\"\",\"\",SUBTOTAL(3,C$5:C850))","v":846},null,"طالب رقم 846","2002-08-31",16,"انثى","ليبية","الثاني","علمي","3/2","مستجد","","صباحية"]
[{"$f":"IF(C851=\"\",\"\",SUBTOTAL(3,C$5:C851))","v":847},null,"طالب رقم 847","2003-12-20",15,"انثى","ليبية","الاول","عام","3/1","مستجد","","صباحية"]
[{"$f":"IF(C852=\"\",\"\",SUBTOTAL(3,C$5:C852))","v":848},null,"طالب رقم 848","2002-11-01",16,"انثى","ليبية","الثاني","علمي","1/2","مستجد","","صباحية"]
[{"$f":"IF(C853=\"\",\"\",SUBTOTAL(3,C$5:C853))","v":849},null,"طالب رقم 849","2002-01-30",17,"انثى","ليبية","الثاني","علمي","3/2","مستجد","","صباحية"]
[{"$f":"IF(C854=\"\",\"\",SUBTOTAL(3,C$5:C854))","v":850},null,"طالب رقم 850","2003-12-18",15,"انثى","ليبية","الاول","عام","1/1","مستجد","","صباحية"]
[{"$f":"IF(C855=\"\",\"\",SUBTOTAL(3,C$5:C855))","v":851},null,"طالب رقم 851","2003-11-24",15,"انثى","ليبية","الاول","عام","4/1","مستجد","","صباحية"]
[{"$f":"IF(C856=\"\",\"\",SUBTOTAL(3,C$5:C856))","v":852},null,"طالب رقم 852","2001-06-24",17,"انثى","ليبية","الثالث","علمي","1/3","مستجد","","صباحية"]
[{"$f":"IF(C857=\"\",\"\",SUBTOTAL(3,C$5:C857))","v":853},null,"طالب رقم 853","2003-01-22",16,"انثى","ليبية","الاول","عام","1/1","مستجد","","صباحية"]
[{"$f":"IF(C858=\"\",\"\",SUBTOTAL(3,C$5:C858))","v":854},null,"طالب رقم 854","2003-11-12",15,"انثى","ليبية","الاول","عام","2/1","مستجد","","صباحية"]
[{"$f":"IF(C859=\"\",\"\",SUBTOTAL(3,C$5:C859))","v":855},null,"طالب رقم 855","2002-07-31",16,"انثى","ليبية","الاول","عام","4/1","مستجد","","صباحية"]
[{"$f":"IF(C860=\"\",\"\",SUBTOTAL(3,C$5:C860))","v":856},null,"طالب رقم 856","2002-03-16",16,"انثى","ليبية","الاول","عام","6/1","معيد","مرة واحدة","صباحية"]
[{"$f":"IF(C861=\"\",\"\",SUBTOTAL(3,C$5:C861))","v":857},null,"طالب رقم 857","2002-09-16",16,"انثى","ليبية","الثاني","ادبي","1/2","مستجد","","صباحية"]
[{"$f":"IF(C862=\"\",\"\",SUBTOTAL(3,C$5:C862))","v":858},null,"طالب رقم 858","2001-10-11",17,"انثى","ليبية","الثالث","علمي","1/3","مستجد","","صباحية"]
[{"$f":"IF(C863=\"\",\"\",SUBTOTAL(3,C$5:C863))","v":859},null,"طالب رقم 859","2002-08-19",16,"انثى","ليبية","الثاني","علمي","3/2","مستجد","","صباحية"]
[{"$f":"IF(C864=\"\",\"\",SUBTOTAL(3,C$5:C864))","v":860},null,"طالب رقم 860","2003-01-30",16,"انثى","ليبية","الاول","عام","4/1","مستجد","","صباحية"]
[{"$f":"IF(C865=\"\",\"\",SUBTOTAL(3,C$5:C865))","v":861},null,"طالب رقم 861","2002-03-31",16,"انثى","ليبية","الثاني","علمي","2/2","مستجد","","صباحية"]
[{"$f":"IF(C866=\"\",\"\",SUBTOTAL(3,C$5:C866))","v":862},null,"طالب رقم 862","2003-04-05",15,"انثى","ليبية","الاول","عام","3/1","مستجد","","صباحية"]
[{"$f":"IF(C867=\"\",\"\",SUBTOTAL(3,C$5:C867))","v":863},null,"طالب رقم 863","2001-10-29",17,"انثى","ليبية","الثالث","علمي","3/3","مستجد","","صباحية"]
[{"$f":"IF(C868=\"\",\"\",SUBTOTAL(3,C$5:C868))","v":864},null,"طالب رقم 864","2002-01-29",17,"ذكر","ليبية","الثاني","علمي","3/2","مستجد","","مسائية"]
[{"$f":"IF(C869=\"\",\"\",SUBTOTAL(3,C$5:C869))","v":865},null,"طالب رقم 865","2001-07-21",17,"انثى","ليبية","الثالث","علمي","1/3","مستجد","","صباحية"]
[{"$f":"IF(C870=\"\",\"\",SUBTOTAL(3,C$5:C870))","v":866},null,"طالب رقم 866","2003-04-28",15,"انثى","ليبية","الاول","عام","4/1","مستجد","","صباحية"]
[{"$f":"IF(C871=\"\",\"\",SUBTOTAL(3,C$5:C871))","v":867},null,"طالب رقم 867","2000-04-17",18,"انثى","ليبية","الثالث","ادبي","1/3","مستجد","","صباحية"]
[{"$f":"IF(C872=\"\",\"\",SUBTOTAL(3,C$5:C872))","v":868},null,"طالب رقم 868","2004-01-01",15,"انثى","ليبية","الاول","عام","4/1","مستجد","","صباحية"]
[{"$f":"IF(C873=\"\",\"\",SUBTOTAL(3,C$5:C873))","v":869},null,"طالب رقم 869","2001-06-19",17,"ذكر","ليبية","الثالث","علمي","4/3","مستجد","","صباحية"]
[{"$f":"IF(C874=\"\",\"\",SUBTOTAL(3,C$5:C874))","v":870},null,"طالب رقم 870","2001-11-09",17,"انثى","ليبية","الثاني","ادبي","1/2","مستجد","","صباحية"]
[{"$f":"IF(C875=\"\",\"\",SUBTOTAL(3,C$5:C875))","v":871},null,"طالب رقم 871","2001-07-01",17,"ذكر","ليبية","الاول","عام","4/1","مستجد","","مسائية"]
[{"$f":"IF(C876=\"\",\"\",SUBTOTAL(3,C$5:C876))","v":872},null,"طالب رقم 872","2003-12-20",15,"انثى","ليبية","الاول","عام","3/1","مستجد","","صباحية"]
[{"$f":"IF(C877=\"\",\"\",SUBTOTAL(3,C$5:C877))","v":873},null,"طالب رقم 873","2002-01-08",17,"انثى","ليبية","الاول","عام","6/1","مستجد","","صباحية"]
[{"$f":"IF(C878=\"\",\"\",SUBTOTAL(3,C$5:C878))","v":874},null,"طالب رقم 874","2002-06-13",16,"انثى","ليبية","الثاني","علمي","1/2","مستجد","","صباحية"]
[{"$f":"IF(C879=\"\",\"\",SUBTOTAL(3,C$5:C879))","v":875},null,"طالب رقم 875","2002-04-28",16,"انثى","ليبية","الثاني","علمي","2/2","مستجد","","صباحية"]
[{"$f":"IF(C880=\"\",\"\",SUBTOTAL(3,C$5:C880))","v":876},null,"طالب رقم 876","2003-04-13",15,"انثى","ليبية","الاول","عام","3/1","مستجد","","صباحية"]
[{"$f":"IF(C881=\"\",\"\",SUBTOTAL(3,C$5:C881))","v":877},null,"طالب رقم 877","2003-06-20",15,"انثى","ليبية","الاول","عام","4/1","مستجد","","صباحية"]
[{"$f":"IF(C882=\"\",\"\",SUBTOTAL(3,C$5:C882))","v":878},null,"طالب رقم 878","2000-09-23",18,"انثى","ليبية","الثالث","علمي","2/3","مستجد","","صباحية"]
[{"$f":"IF(C883=\"\",\"\",SUBTOTAL(3,C$5:C883))","v":879},null,"طالب رقم 879","2001-09-29",17,"انثى","ليبية","الثاني","علمي","1/2","معيد","مرة واحدة","صباحية"]
[{"$f":"IF(C884=\"\",\"\",SUBTOTAL(3,C$5:C884))","v":880},null,"طالب رقم 880","2003-12-01",15,"انثى","ليبية","الاول","عام","5/1","مستجد","","صباحية"]
[{"$f":"IF(C885=\"\",\"\",SUBTOTAL(3,C$5:C885))","v":881},null,"طالب رقم 881","2001-08-13",17,"انثى","ليبية","الثالث","علمي","2/3","مستجد","","صباحية"]
[{"$f":"IF(C886=\"\",\"\",SUBTOTAL(3,C$5:C886))","v":882},null,"طالب رقم 882","2003-08-21",15,"انثى","ليبية","الاول","عام","2/1","مستجد","","صباحية"]
[{"$f":"IF(C887=\"\",\"\",SUBTOTAL(3,C$5:C887))","v":883},null,"طالب رقم 883","2002-09-22",16,"انثى","ليبية","الثاني","علمي","4/2","مستجد","","صباحية"]
[{"$f":"IF(C888=\"\",\"\",SUBTOTAL(3,C$5:C888))","v":884},null,"طالب رقم 884","2003-09-25",15,"انثى","ليبية","الاول","عام","5/1","مستجد","","صباحية"]
[{"$f":"IF(C889=\"\",\"\",SUBTOTAL(3,C$5:C889))","v":885},null,"طالب رقم 885","2003-04-30",15,"انثى","ليبية","الاول","عام","6/1","مستجد","","صباحية"]
[{"$f":"IF(C890=\"\",\"\",SUBTOTAL(3,C$5:C890))","v":886},null,"طالب رقم 886","2003-06-12",15,"ذكر","ليبية","الاول","عام","6/1","مستجد","","مسائية"]
[{"$f":"IF(C891=\"\",\"\",SUBTOTAL(3,C$5:C891))","v":887},null,"طالب رقم 887","2003-06-03",15,"ذكر","ليبية","الاول","عام","6/1","مستجد","","مسائية"]
[{"$f":"IF(C892=\"\",\"\",SUBTOTAL(3,C$5:C892))","v":888},null,"طالب رقم 888","2003-10-06",15,"انثى","ليبية","الاول","عام","3/1","مستجد","","صباحية"]
[{"$f":"IF(C893=\"\",\"\",SUBTOTAL(3,C$5:C893))","v":889},null,"طالب رقم 889","2003-11-29",15,"انثى","ليبية","الاول","عام","1/1","مستجد","","صباحية"]
[{"$f":"IF(C894=\"\",\"\",SUBTOTAL(3,C$5:C894))","v":890},null,"طالب رقم 890","2003-05-15",15,"انثى","ليبية","الاول","عام","6/1","مستجد","","صباحية"]
[{"$f":"IF(C895=\"\",\"\",SUBTOTAL(3,C$5:C895))","v":891},null,"طالب رقم 891","2003-08-19",15,"انثى","ليبية","الاول","عام","5/1","مستجد","","صباحية"]
[{"$f":"IF(C896=\"\",\"\",SUBTOTAL(3,C$5:C896))","v":892},null,"طالب رقم 892","2001-10-01",17,"ذكر","ليبية","الثالث","علمي","4/3","مستجد","","صباحية"]
[{"$f":"IF(C897=\"\",\"\",SUBTOTAL(3,C$5:C897))","v":893},null,"طالب رقم 893","2003-12-22",15,"ذكر","ليبية","الاول","عام","6/1","مستجد","","مسائية"]
[{"$f":"IF(C898=\"\",\"\",SUBTOTAL(3,C$5:C898))","v":894},null,"طالب رقم 894","2002-06-30",16,"ذكر","فلسطينية","الثاني","علمي","3/2","مستجد","","مسائية"]
[{"$f":"IF(C899=\"\",\"\",SUBTOTAL(3,C$5:C899))","v":895},null,"طالب رقم 895","2002-02-13",17,"انثى","ليبية","الاول","عام","1/1","مستجد","","صباحية"]
[{"$f":"IF(C900=\"\",\"\",SUBTOTAL(3,C$5:C900))","v":896},null,"طالب رقم 896","2001-07-08",17,"ذكر","فلسطينية","الثالث","علمي","4/3","مستجد","","صباحية"]
[{"$f":"IF(C901=\"\",\"\",SUBTOTAL(3,C$5:C901))","v":897},null,"طالب رقم 897","2002-08-29",{"$f":"DATEDIF(D901,TODAY(),\"Y\")","v":16},"ذكر","ليبية","الاول","عام","6/1","معيد","مرة واحدة","مسائية"]

{"sheet":"قوائم الفصول","index":1,"n_rows":57,"n_cols":34,"rows_kept":57,"cut":false,"hidden":false,"merged":[[9,0,9,10],[4,0,4,10],[5,0,5,10],[6,0,6,10],[7,0,7,10],[8,0,8,10],[12,0,14,0],[12,1,14,1],[12,2,12,5],[12,6,12,9],[12,10,13,10],[10,0,10,10],[11,2,11,3],[11,4,11,5],[11,6,11,7],[11,8,11,10],[56,0,56,10],[50,0,50,10],[51,0,51,10],[52,0,52,10],[53,0,53,10],[54,0,54,10],[55,0,55,10]]}
["الجنس","التخصص","الفصل",null,"انثى","علمي"]
["انثى","ادبي",{"$f":"B12","v":"1/3"},null,"ذكر","ادبي",null,null,null,null,null,null,"الصف","الفصل"]
[null,null,null,null,null,null,null,null,null,null,null,null,3,1]
[]
["دولة ليبيا"]
["وزارة التعليم"]
["ادارة الامتحانات"]
[]
["ــــــــــــــــــــــــــــــــــــــــــــــــــــــــــــــــــــــــــــــــــــــ",null,null,null,null,null,null,null,null,null,null,null,null,null,null,null,null,null,null,null,null,null,null,null,null,null,null,null,"اسم المعلم","المادة","الأنشطة اليومية","التطبيقات الشهرية","امتحان الفترة الأولى","مجموع درجات الفترة"]
["كشف رصد درجات أعمال الفصلين لسنوات النقل",null,null,null,null,null,null,null,null,null,null,null,null,null,null,null,null,null,null,null,null,null,null,null,null,null,null,null,"منى عبدالرحمن","الرياضيات",12.5,12.5]
[]
["الفصل :",{"$f":"N3&\"/\"&M3","v":"1/3"},"المادة :  ",null,null,null,"العام الدراسي :",null,"1439 -1440هـ  * 2018-2019 م"]
["ر.م","اسم الطالب مطابقاً لشهادة الميلاد","الفترة الأولى",null,null,null,"الفترة الثانية ",null,null,null,"ملاحظات"]
[null,null,"الأنشطة اليومية","التطبيقات الشهرية","امتحان الفترة الأولى","مجموع درجات الفترة","الأنشطة اليومية","التطبيقات الشهرية","امتحان الفترة الأولى","مجموع درجات الفترة"]
[null,null,null,null,null,null,null,null,null,null,null,null,null,null,null,null,null,"الرقم","الاسم رباعي","الجنس","الصف","التخصص","الفصل"]
[1,null,null,null,null,null,null,null,null,null,null,null,"1/1",null,null,null,null,{"$f":"IF(S16=\"\",\"\",SUBTOTAL(3,S$16:S16))","v":1},"اروى عبدالله محمد علي","انثى","الثالث","ادبي","1/3"]
[2,null,null,null,null,null,null,null,null,null,null,null,"2/1",null,null,null,null,{"$f":"IF(S17=\"\",\"\",SUBTOTAL(3,S$16:S17))","v":2},"اسيل عزمي القمودي البشتي","انثى","الثالث","ادبي","1/3"]
[3,null,null,null,null,null,null,null,null,null,null,null,"3/1",null,null,null,null,{"$f":"IF(S18=\"\",\"\",SUBTOTAL(3,S$16:S18))","v":3},"امامة صلاح الدين عبدالله الترهوني","انثى","الثالث","ادبي","1/3"]
[4,null,null,null,null,null,null,null,null,null,null,null,"4/1",null,null,null,null,{"$f":"IF(S19=\"\",\"\",SUBTOTAL(3,S$16:S19))","v":4},"اية عبدالباسط علي جمهور","انثى","الثالث","ادبي","1/3"]
[5,null,null,null,null,null,null,null,null,null,null,null,"5/1",null,null,null,null,{"$f":"IF(S20=\"\",\"\",SUBTOTAL(3,S$16:S20))","v":5},"اية عبدالله مفتاح العجيلي","انثى","الثالث","ادبي","1/3"]
[6,null,null,null,null,null,null,null,null,null,null,null,"6/1",null,null,null,null,{"$f":"IF(S21=\"\",\"\",SUBTOTAL(3,S$16:S21))","v":6},"حنين علي مصباح النجار","انثى","الثالث","ادبي","1/3"]
[7,null,null,null,null,null,null,null,null,null,null,null,"1/2",null,null,null,null,{"$f":"IF(S22=\"\",\"\",SUBTOTAL(3,S$16:S22))","v":7},"رتاج عثمان مصباح الامين","انثى","الثالث","ادبي","1/3"]
[8,null,null,null,null,null,null,null,null,null,null,null,"2/2",null,null,null,null,{"$f":"IF(S23=\"\",\"\",SUBTOTAL(3,S$16:S23))","v":8},"رنا عثمان مصباح الامين","انثى","الثالث","ادبي","1/3"]
[9,null,null,null,null,null,null,null,null,null,null,null,"3/2",null,null,null,null,{"$f":"IF(S24=\"\",\"\",SUBTOTAL(3,S$16:S24))","v":9},"ريان صلاح الدين مختار العروسي","انثى","الثالث","ادبي","1/3"]
[10,null,null,null,null,null,null,null,null,null,null,null,"4/2",null,null,null,null,{"$f":"IF(S25=\"\",\"\",SUBTOTAL(3,S$16:S25))","v":10},"سالمة امحمد جمعة النفاتي","انثى","الثالث","ادبي","1/3"]
[11,null,null,null,null,null,null,null,null,null,null,null,"1/3",null,null,null,null,{"$f":"IF(S26=\"\",\"\",SUBTOTAL(3,S$16:S26))","v":11},"فاطمة جمال محمد الشاوش","انثى","الثالث","ادبي","1/3"]
[12,null,null,null,null,null,null,null,null,null,null,null,"2/3",null,null,null,null,{"$f":"IF(S27=\"\",\"\",SUBTOTAL(3,S$16:S27))","v":12},"مبروكة عبدالقادر عبدالوهاب ابريدح","انثى","الثالث","ادبي","1/3"]
[13,null,null,null,null,null,null,null,null,null,null,null,"3/3",null,null,null,null,{"$f":"IF(S28=\"\",\"\",SUBTOTAL(3,S$16:S28))","v":13},"هيام عبدالحفيظ محمد ادريس","انثى","الثالث","ادبي","1/3"]
[14,null,null,null,null,null,null,null,null,null,null,null,"4/3",null,null,null,null,{"$f":"IF(S29=\"\",\"\",SUBTOTAL(3,S$16:S29))","v":""}]
[15,null,null,null,null,null,null,null,null,null,null,null,"5/3",null,null,null,null,{"$f":"IF(S30=\"\",\"\",SUBTOTAL(3,S$16:S30))","v":""}]
[16,null,null,null,null,null,null,null,null,null,null,null,"6/3",null,null,null,null,{"$f":"IF(S31=\"\",\"\",SUBTOTAL(3,S$16:S31))","v":""}]
[17,null,null,null,null,null,null,null,null,null,null,null,null,null,null,null,null,{"$f":"IF(S32=\"\",\"\",SUBTOTAL(3,S$16:S32))","v":""}]
[18,{"$f":"IFERROR(VLOOKUP(A33,$R$16:$S$56,2,0),\"\")","v":""},null,null,null,null,null,null,null,null,null,null,null,null,null,null,null,{"$f":"IF(S33=\"\",\"\",SUBTOTAL(3,S$16:S33))","v":""}]
[19,"",null,null,null,null,null,null,null,null,null,null,null,null,null,null,null,{"$f":"IF(S34=\"\",\"\",SUBTOTAL(3,S$16:S34))","v":""}]
[20,"",null,null,null,null,null,null,null,null,null,null,null,null,null,null,null,{"$f":"IF(S35=\"\",\"\",SUBTOTAL(3,S$16:S35))","v":""}]
[21,"",null,null,null,null,null,null,null,null,null,null,null,null,null,null,null,{"$f":"IF(S36=\"\",\"\",SUBTOTAL(3,S$16:S36))","v":""}]
[22,"",null,null,null,null,null,null,null,null,null,null,null,null,null,null,null,{"$f":"IF(S37=\"\",\"\",SUBTOTAL(3,S$16:S37))","v":""}]
[23,"",null,null,null,null,null,null,null,null,null,null,null,null,null,null,null,{"$f":"IF(S38=\"\",\"\",SUBTOTAL(3,S$16:S38))","v":""}]
[24,"",null,null,null,null,null,null,null,null,null,null,null,null,null,null,null,{"$f":"IF(S39=\"\",\"\",SUBTOTAL(3,S$16:S39))","v":""}]
[25,"",null,null,null,null,null,null,null,null,null,null,null,null,null,null,null,{"$f":"IF(S40=\"\",\"\",SUBTOTAL(3,S$16:S40))","v":""}]
[26,"",null,null,null,null,null,null,null,null,null,null,null,null,null,null,null,{"$f":"IF(S41=\"\",\"\",SUBTOTAL(3,S$16:S41))","v":""}]
[27,"",null,null,null,null,null,null,null,null,null,null,null,null,null,null,null,{"$f":"IF(S42=\"\",\"\",SUBTOTAL(3,S$16:S42))","v":""}]
[28,"",null,null,null,null,null,null,null,null,null,null,null,null,null,null,null,{"$f":"IF(S43=\"\",\"\",SUBTOTAL(3,S$16:S43))","v":""}]
[29,"",null,null,null,null,null,null,null,null,null,null,null,null,null,null,null,{"$f":"IF(S44=\"\",\"\",SUBTOTAL(3,S$16:S44))","v":""}]
[30,"",null,null,null,null,null,null,null,null,null,null,null,null,null,null,null,{"$f":"IF(S45=\"\",\"\",SUBTOTAL(3,S$16:S45))","v":""}]
[31,"",null,null,null,null,null,null,null,null,null,null,null,null,null,null,null,{"$f":"IF(S46=\"\",\"\",SUBTOTAL(3,S$16:S46))","v":""}]
[32,"",null,null,null,null,null,null,null,null,null,null,null,null,null,null,null,{"$f":"IF(S47=\"\",\"\",SUBTOTAL(3,S$16:S47))","v":""}]
[33,"",null,null,null,null,null,null,null,null,null,null,null,null,null,null,null,{"$f":"IF(S48=\"\",\"\",SUBTOTAL(3,S$16:S48))","v":""}]
[34,"",null,null,null,null,null,null,null,null,null,null,null,null,null,null,null,{"$f":"IF(S49=\"\",\"\",SUBTOTAL(3,S$16:S49))","v":""}]
[35,"",null,null,null,null,null,null,null,null,null,null,null,null,null,null,null,{"$f":"IF(S50=\"\",\"\",SUBTOTAL(3,S$16:S50))","v":""}]
["اسم معلم المادة(الفصل الأول):........................................التوقيع:...............................التاريخ:      /     /    20م"]
["اسم معلم المادة(الفصل الثاني):........................................التوقيع:...............................التاريخ:      /     /    20م"]
["اسم منسق الامتحانـــــــــــــات:........................................التوقيع:...............................التاريخ:      /     /    20م"]
["  / اي كشط او تغيير بالكشف يلغيه "]
["/ يمنع استعمال قلم الرصاص منعاً باتاًز"]
["/ يجب مراعاة الدرجة الكبرى لأعمال كل مادة عند الرصد حتى لايتم تجاوزها . "]
[" لايعتد بالكشف ما ام يكن مستوفياً البيانات الإدارية من حيث التوقيع و الاعتماد                                                   اعتماد ادارة المدرسة"]